Workbook

Sheet Intro
F2: Exploratory Software for Confidence Intervals
F3: ESCI Chapters 1- 4 | L3: www.thenewstatistics.com
G5: Geoff Cumming | N5: Copyright © Geoff Cumming 2011
H6: School of Psychological Science | N6: ESCI is free software: you can redistribute it and/or modify it under the terms of the GNU General Public License
H7: La Trobe University, Melbourne | N7: as published by the Free Software Foundation, either version 3 of the License, or (at your option) any later version.
H8: Australia 3086 | N8: This program is distributed in the hope that it will be useful, but WITHOUT ANY WARRANTY; without even the implied warranty of
H9: esci@latrobe.edu.au | N9: MERCHANTABILITY or FITNESS FOR A PARTICULAR PURPOSE. Scroll down to see the GNU General Public License for more details.
B12: ► ESCI Chapters 1-4 accompanies the book Understanding The New Statistics: Effect Sizes, Confidence Intervals, and Meta-analysis (Routledge, 2012)
B13: ► For help, see the book's Appendix A.
B14: ► Use the tabs below to go to your page of choice.
B15: ► At any page, explore--with guidance from one of the first four chapters of the book.
B19: Click the tabs at the bottom of the screen to go to these pages:
C21: Two studies See Chapter 1. See the vignette of two studies, Lucky (2008) and Noluck (2008), and explore the NHST, CI, and meta-analysis presentations of results.
C23: CIjumping See Chapter 3. See population, samples, sample means, and CIs. Explore the mean heap, dance of the means, dance of the CIs.
C25: Normal z t See Appendix B, and Chapter 3. See the normal and t distributions. Find tail areas, heights, and critical values of z and t.
C27: CI function See Chapter 4. See a graph of level of confidence C and two-tailed p, against the two limits of a CI. See cat's eye intervals.
C29: CI and p See Chapter 4. See how two-tailed p varies as a 95% CI falls in different positions relative to a null hypothesised value, m0.
B41: Please scroll down to see the GNU General Public License below
B53: GNU GENERAL PUBLIC LICENSE
B54: Version 3, 29 June 2007
B56: Copyright (C) 2007 Free Software Foundation, Inc. <http://fsf.org/>
B57: Everyone is permitted to copy and distribute verbatim copies
B58: of this license document, but changing it is not allowed.
B60: Preamble
B62: The GNU General Public License is a free, copyleft license for
B63: software and other kinds of works.
B65: The licenses for most software and other practical works are designed
B66: to take away your freedom to share and change the works. By contrast,
B67: the GNU General Public License is intended to guarantee your freedom to
B68: share and change all versions of a program--to make sure it remains free
B69: software for all its users. We, the Free Software Foundation, use the
B70: GNU General Public License for most of our software; it applies also to
B71: any other work released this way by its authors. You can apply it to
B72: your programs, too.
B74: When we speak of free software, we are referring to freedom, not
B75: price. Our General Public Licenses are designed to make sure that you
B76: have the freedom to distribute copies of free software (and charge for
B77: them if you wish), that you receive source code or can get it if you
B78: want it, that you can change the software or use pieces of it in new
B79: free programs, and that you know you can do these things.
B81: To protect your rights, we need to prevent others from denying you
B82: these rights or asking you to surrender the rights. Therefore, you have
B83: certain responsibilities if you distribute copies of the software, or if
B84: you modify it: responsibilities to respect the freedom of others.
B86: For example, if you distribute copies of such a program, whether
B87: gratis or for a fee, you must pass on to the recipients the same
B88: freedoms that you received. You must make sure that they, too, receive
B89: or can get the source code. And you must show them these terms so they
B90: know their rights.
B92: Developers that use the GNU GPL protect your rights with two steps:
B93: (1) assert copyright on the software, and (2) offer you this License
B94: giving you legal permission to copy, distribute and/or modify it.
B96: For the developers' and authors' protection, the GPL clearly explains
B97: that there is no warranty for this free software. For both users' and
B98: authors' sake, the GPL requires that modified versions be marked as
B99: changed, so that their problems will not be attributed erroneously to
B100: authors of previous versions.
B102: Some devices are designed to deny users access to install or run
B103: modified versions of the software inside them, although the manufacturer
B104: can do so. This is fundamentally incompatible with the aim of
B105: protecting users' freedom to change the software. The systematic
B106: pattern of such abuse occurs in the area of products for individuals to
B107: use, which is precisely where it is most unacceptable. Therefore, we
B108: have designed this version of the GPL to prohibit the practice for those
B109: products. If such problems arise substantially in other domains, we
B110: stand ready to extend this provision to those domains in future versions
B111: of the GPL, as needed to protect the freedom of users.
B113: Finally, every program is threatened constantly by software patents.
B114: States should not allow patents to restrict development and use of
B115: software on general-purpose computers, but in those that do, we wish to
B116: avoid the special danger that patents applied to a free program could
B117: make it effectively proprietary. To prevent this, the GPL assures that
B118: patents cannot be used to render the program non-free.
B120: The precise terms and conditions for copying, distribution and
B121: modification follow.
B123: TERMS AND CONDITIONS
B125: 0. Definitions.
B127: "This License" refers to version 3 of the GNU General Public License.
B129: "Copyright" also means copyright-like laws that apply to other kinds of
B130: works, such as semiconductor masks.
B132: "The Program" refers to any copyrightable work licensed under this
B133: License. Each licensee is addressed as "you". "Licensees" and
B134: "recipients" may be individuals or organizations.
B136: To "modify" a work means to copy from or adapt all or part of the work
B137: in a fashion requiring copyright permission, other than the making of an
B138: exact copy. The resulting work is called a "modified version" of the
B139: earlier work or a work "based on" the earlier work.
B141: A "covered work" means either the unmodified Program or a work based
B142: on the Program.
B144: To "propagate" a work means to do anything with it that, without
B145: permission, would make you directly or secondarily liable for
B146: infringement under applicable copyright law, except executing it on a
B147: computer or modifying a private copy. Propagation includes copying,
B148: distribution (with or without modification), making available to the
B149: public, and in some countries other activities as well.
B151: To "convey" a work means any kind of propagation that enables other
B152: parties to make or receive copies. Mere interaction with a user through
B153: a computer network, with no transfer of a copy, is not conveying.
B155: An interactive user interface displays "Appropriate Legal Notices"
B156: to the extent that it includes a convenient and prominently visible
B157: feature that (1) displays an appropriate copyright notice, and (2)
B158: tells the user that there is no warranty for the work (except to the
B159: extent that warranties are provided), that licensees may convey the
B160: work under this License, and how to view a copy of this License. If
B161: the interface presents a list of user commands or options, such as a
B162: menu, a prominent item in the list meets this criterion.
B164: 1. Source Code.
B166: The "source code" for a work means the preferred form of the work
B167: for making modifications to it. "Object code" means any non-source
B168: form of a work.
B170: A "Standard Interface" means an interface that either is an official
B171: standard defined by a recognized standards body, or, in the case of
B172: interfaces specified for a particular programming language, one that
B173: is widely used among developers working in that language.
B175: The "System Libraries" of an executable work include anything, other
B176: than the work as a whole, that (a) is included in the normal form of
B177: packaging a Major Component, but which is not part of that Major
B178: Component, and (b) serves only to enable use of the work with that
B179: Major Component, or to implement a Standard Interface for which an
B180: implementation is available to the public in source code form. A
B181: "Major Component", in this context, means a major essential component
B182: (kernel, window system, and so on) of the specific operating system
B183: (if any) on which the executable work runs, or a compiler used to
B184: produce the work, or an object code interpreter used to run it.
B186: The "Corresponding Source" for a work in object code form means all
B187: the source code needed to generate, install, and (for an executable
B188: work) run the object code and to modify the work, including scripts to
B189: control those activities. However, it does not include the work's
B190: System Libraries, or general-purpose tools or generally available free
B191: programs which are used unmodified in performing those activities but
B192: which are not part of the work. For example, Corresponding Source
B193: includes interface definition files associated with source files for
B194: the work, and the source code for shared libraries and dynamically
B195: linked subprograms that the work is specifically designed to require,
B196: such as by intimate data communication or control flow between those
B197: subprograms and other parts of the work.
B199: The Corresponding Source need not include anything that users
B200: can regenerate automatically from other parts of the Corresponding
B201: Source.
B203: The Corresponding Source for a work in source code form is that
B204: same work.
B206: 2. Basic Permissions.
B208: All rights granted under this License are granted for the term of
B209: copyright on the Program, and are irrevocable provided the stated
B210: conditions are met. This License explicitly affirms your unlimited
B211: permission to run the unmodified Program. The output from running a
B212: covered work is covered by this License only if the output, given its
B213: content, constitutes a covered work. This License acknowledges your
B214: rights of fair use or other equivalent, as provided by copyright law.
B216: You may make, run and propagate covered works that you do not
B217: convey, without conditions so long as your license otherwise remains
B218: in force. You may convey covered works to others for the sole purpose
B219: of having them make modifications exclusively for you, or provide you
B220: with facilities for running those works, provided that you comply with
B221: the terms of this License in conveying all material for which you do
B222: not control copyright. Those thus making or running the covered works
B223: for you must do so exclusively on your behalf, under your direction
B224: and control, on terms that prohibit them from making any copies of
B225: your copyrighted material outside their relationship with you.
B227: Conveying under any other circumstances is permitted solely under
B228: the conditions stated below. Sublicensing is not allowed; section 10
B229: makes it unnecessary.
B231: 3. Protecting Users' Legal Rights From Anti-Circumvention Law.
B233: No covered work shall be deemed part of an effective technological
B234: measure under any applicable law fulfilling obligations under article
B235: 11 of the WIPO copyright treaty adopted on 20 December 1996, or
B236: similar laws prohibiting or restricting circumvention of such
B237: measures.
B239: When you convey a covered work, you waive any legal power to forbid
B240: circumvention of technological measures to the extent such circumvention
B241: is effected by exercising rights under this License with respect to
B242: the covered work, and you disclaim any intention to limit operation or
B243: modification of the work as a means of enforcing, against the work's
B244: users, your or third parties' legal rights to forbid circumvention of
B245: technological measures.
B247: 4. Conveying Verbatim Copies.
B249: You may convey verbatim copies of the Program's source code as you
B250: receive it, in any medium, provided that you conspicuously and
B251: appropriately publish on each copy an appropriate copyright notice;
B252: keep intact all notices stating that this License and any
B253: non-permissive terms added in accord with section 7 apply to the code;
B254: keep intact all notices of the absence of any warranty; and give all
B255: recipients a copy of this License along with the Program.
B257: You may charge any price or no price for each copy that you convey,
B258: and you may offer support or warranty protection for a fee.
B260: 5. Conveying Modified Source Versions.
B262: You may convey a work based on the Program, or the modifications to
B263: produce it from the Program, in the form of source code under the
B264: terms of section 4, provided that you also meet all of these conditions:
B266: a) The work must carry prominent notices stating that you modified
B267: it, and giving a relevant date.
B269: b) The work must carry prominent notices stating that it is
B270: released under this License and any conditions added under section
B271: 7. This requirement modifies the requirement in section 4 to
B272: "keep intact all notices".
B274: c) You must license the entire work, as a whole, under this
B275: License to anyone who comes into possession of a copy. This
B276: License will therefore apply, along with any applicable section 7
B277: additional terms, to the whole of the work, and all its parts,
B278: regardless of how they are packaged. This License gives no
... 371 more rows

Sheet Two studies
E1: Two studies | L1: Two studies that evaluated a new treatment for insomnia | AJ1: For label | AK1: 0 | AL1: =IF(AK6,0.4,NA()) -> 
E2: Results from two studies, | L2: Only two studies have evaluated the therapeutic effectiveness of a new treatment for insomnia. Both Lucky (2008) and Noluck (2008) | AK2: Mdiff | AL2: y | AM2: bar | AN2: LL | AO2: UL
E3: presented in various formats | L3: used two independent, equal-sized groups and reported the difference between the means for the new treatment and current treatment. | AJ3: Lucky | AK3: =H6 -> 4 | AL3: 0.24 | AM3: =H9*AK8/SQRT(H11) -> 1.811680077 | AN3: =AK3-AM3 -> 2.188319923 | AO3: =AK3+AM3 -> 5.811680077
AJ4: Unlucky | AK4: =H16 -> 1.5 | AL4: 0.12 | AM4: =H19*AK9/SQRT(H21) -> 2.196575218 | AN4: =AK4-AM4 -> -0.6965752183 | AO4: =AK4+AM4 -> 3.696575218
C5: 1 | D5: Lucky (2008) | J5: 2 | L5: NHST results | AJ5: MA | AK5: =AK19 -> 2.830655333 | AL5: 0.2 | AM5: =AK22 -> 2.444894539
G6: M(diff) | H6: =AN23/100 -> 4 | L6: Lucky (2008) found the new treatment showed a statistically | U6: =IF(F13<0.05,"significant","nonsignificant") -> significant | V6: advantage over the current treatment: | AJ6: for Ho | AK6: FALSE | AL6: X axis L end | AM6: =AN6/10-4 -> -2 | AN6: 20
L7: Each group, N = | N7: =H11 -> 20 | O7: . M (difference) = | Q7: =H6 -> 4 | T7: , SD (difference) = | U7: =H9 -> 4.002224382 | V7: , t ( | W7: =H12 -> 38 | X7: ) = | Y7: =H13 -> 4.469650403 | Z7: , p = | AA7: =F13 -> 6.850910512e-05 | AJ7: For C | AK7: 95 | AL7: X axis R end | AM7: =AN7/10 -> 8 | AN7: 80
G8: SD(pooled) | H8: =AN24/100 -> 2.83 | L8: Noluck (2008) found the new treatment showed a statistically | U8: =IF(F23<0.05,"significant","nonsignificant") -> nonsignificant | V8: advantage over the current treatment: | AJ8: Lucky tcrit | AK8: =TINV(1-AK7/100,H12) -> 2.024394147
G9: SD(diff) | H9: =H8*SQRT(2) -> 4.002224382 | L9: Each group, N = | N9: =H21 -> 30 | O9: . M (difference) = | Q9: =H16 -> 1.5 | T9: , SD (difference) = | U9: =H19 -> 6.01040764 | V9: , t ( | W9: =H22 -> 58 | X9: ) = | Y9: =H23 -> 1.366935299 | Z9: , p = | AA9: =F23 -> 0.1769206709 | AJ9: Unlucky tcrit | AK9: =TINV(1-AK7/100,H22) -> 2.001717468
G11: N | H11: 20 | J11: 4 | L11: CI results | AK11: Rand effects MA
G12: df | H12: =2*(H11-1) -> 38 | K12: =($H$6+$H$11+$H$9+$H$16+$H$19+$H$21+dlend+drend)/10000000000 -> 7.151263202e-09 | L12: =$K$12 -> 7.151263202e-09 | M12: 7.151263202e-09 | N12: 7.151263202e-09 | O12: 7.151263202e-09 | P12: 7.151263202e-09 | Q12: 7.151263202e-09 | R12: 7.151263202e-09 | S12: 7.151263202e-09 | U12: =$K$12 -> 7.151263202e-09 | V12: 7.151263202e-09 | W12: 7.151263202e-09 | X12: 7.151263202e-09 | Y12: 7.151263202e-09 | Z12: 7.151263202e-09 | AA12: 7.151263202e-09 | AB12: 7.151263202e-09 | AC12: 7.151263202e-09 | AD12: 7.151263202e-09 | AK12: M(diff) | AL12: N | AM12: SDpooled | AN12: SD(diff) | AO12: SE(diff) | AP12: V(diff) | AQ12: W | AR12: WY | AS12: WYY | AT12: WW | AU12: V* | AV12: W* | AW12: W*Y
E13: p | F13: =TDIST(H13,H12,2) -> 6.850910512e-05 | G13: t | H13: =H6/(H9/SQRT(H11)) -> 4.469650403 | K13: =$K$12 -> 7.151263202e-09 | AD13: =$K$12 -> 7.151263202e-09 | AJ13: Lucky | AK13: =H6 -> 4 | AL13: =H11 -> 20 | AM13: =AN13/SQRT(2) -> 2.83 | AN13: =H9 -> 4.002224382 | AO13: =AN13/SQRT(AL13) -> 0.8949245778 | AP13: =AO13^2 -> 0.80089 | AQ13: =1/AP13 -> 1.24861092 | AR13: =AQ13*AK13 -> 4.994443681 | AS13: =AR13*AK13 -> 19.97777473 | AT13: =AQ13^2 -> 1.55902923 | AU13: =AP13+$AK$18 -> 2.923361667 | AV13: =1/AU13 -> 0.3420719411 | AW13: =AV13*AK13 -> 1.368287765
K14: 7.151263202e-09 | AD14: 7.151263202e-09 | AJ14: Unlucky | AK14: =H16 -> 1.5 | AL14: =H21 -> 30 | AM14: =AN14/SQRT(2) -> 4.25 | AN14: =H19 -> 6.01040764 | AO14: =AN14/SQRT(AL14) -> 1.097345281 | AP14: =AO14^2 -> 1.204166667 | AQ14: =1/AP14 -> 0.830449827 | AR14: =AQ14*AK14 -> 1.24567474 | AS14: =AR14*AK14 -> 1.868512111 | AT14: =AQ14^2 -> 0.6896469151 | AU14: =AP14+$AK$18 -> 3.326638333 | AV14: =1/AU14 -> 0.3006037627 | AW14: =AV14*AK14 -> 0.450905644
C15: 3 | D15: Noluck (2008) | K15: 7.151263202e-09 | AD15: 7.151263202e-09 | AP15: Total | AQ15: =AQ13+AQ14 -> 2.079060747 | AR15: =AR13+AR14 -> 6.240118422 | AS15: =AS13+AS14 -> 21.84628684 | AT15: =AT13+AT14 -> 2.248676146 | AV15: =AV13+AV14 -> 0.6426757038 | AW15: =AW13+AW14 -> 1.819193409
G16: M(diff) | H16: =AN25/100 -> 1.5 | K16: 7.151263202e-09 | AD16: 7.151263202e-09 | AJ16: Q | AK16: =AS15-((AR15^2)/AQ15) -> 3.117118884
K17: 7.151263202e-09 | AD17: 7.151263202e-09 | AJ17: C | AK17: =AQ15-(AT15/AQ15) -> 0.997478043 | AM17: Reveal NHST | AN17: TRUE
G18: SD(pooled) | H18: =AN26/100 -> 4.25 | K18: 7.151263202e-09 | AD18: 7.151263202e-09 | AJ18: T^2 | AK18: =MAX(0,(AK16-1)/AK17) -> 2.122471667 | AM18: Reveal CI | AN18: FALSE
G19: SD(diff) | H19: =H18*SQRT(2) -> 6.01040764 | K19: 7.151263202e-09 | AD19: 7.151263202e-09 | AJ19: M* | AK19: =AW15/AV15 -> 2.830655333 | AM19: Reveal MA | AN19: FALSE
K20: 7.151263202e-09 | AD20: 7.151263202e-09 | AJ20: V(M*) | AK20: =1/AV15 -> 1.555994717
G21: N | H21: 30 | K21: 7.151263202e-09 | AD21: 7.151263202e-09 | AJ21: SE(M*) | AK21: =SQRT(AK20) -> 1.247395173
G22: df | H22: =2*(H21-1) -> 58 | AJ22: moe | AK22: =1.96*AK21 -> 2.444894539 | AN22: sliders
E23: p | F23: =TDIST(H23,H22,2) -> 0.1769206709 | G23: t | H23: =H16/(H19/SQRT(H21)) -> 1.366935299 | L23: 5 | M23: =dlend -> -2 | R23: 6 | AB23: 7 | AC23: =drend -> 8 | AJ23: LL | AK23: =AK19-AK22 -> 0.3857607946 | AN23: 400
M24: Left end of X axis | AC24: Right end of X axis | AJ24: UL | AK24: =AK19+AK22 -> 5.275549872 | AN24: 283
AJ25: p | AK25: =2*(1-NORMSDIST(AK19/AK21)) -> 0.02325294027 | AN25: 150
J26: 8 | L26: Meta-analysis results | AN26: 425
K27: =$K$12 -> 7.151263202e-09 | L27: 7.151263202e-09 | M27: 7.151263202e-09 | N27: 7.151263202e-09 | O27: 7.151263202e-09 | P27: 7.151263202e-09 | Q27: 7.151263202e-09 | R27: 7.151263202e-09 | S27: 7.151263202e-09 | U27: =$K$12 -> 7.151263202e-09 | V27: 7.151263202e-09 | W27: 7.151263202e-09 | X27: 7.151263202e-09 | Y27: 7.151263202e-09 | Z27: 7.151263202e-09 | AA27: 7.151263202e-09 | AB27: 7.151263202e-09 | AC27: 7.151263202e-09 | AD27: 7.151263202e-09 | AL27: MOE
K28: =$K$12 -> 7.151263202e-09 | AD28: =$K$12 -> 7.151263202e-09 | AK28: Lucky | AL28: =AM3 -> 1.811680077
K29: 7.151263202e-09 | AD29: 7.151263202e-09 | AK29: Noluck | AL29: =AM4 -> 2.196575218
K30: 7.151263202e-09 | AD30: 7.151263202e-09 | AK30: Average | AL30: =(AL28+AL29)/2 -> 2.004127648
K31: 7.151263202e-09 | AD31: 7.151263202e-09 | AK31: MA combination | AL31: =AM5 -> 2.444894539
K32: 7.151263202e-09 | AD32: 7.151263202e-09 | AK32: % MA lower than av. | AL32: =(AL30-AL31)/AL30 -> -0.2199295497
K33: 7.151263202e-09 | AD33: 7.151263202e-09
K34: 7.151263202e-09
Q35: To test the null hypothesis of no difference, p = | R35: =AK25 -> 0.02325294027

Sheet CIjumping
J1: CIjumping | W1: =($U$6+$U$8+$H$12+$T$28+$AU$2+$D$20+$D$21)/10000 -> 0.0236978 | X1: =$W$1 -> 0.0236978 | Y1: 0.0236978 | Z1: 0.0236978 | AA1: 0.0236978 | AB1: 0.0236978 | AC1: 0.0236978 | AD1: 0.0236978 | AE1: 0.0236978 | AF1: 0.0236978 | AG1: 0.0236978 | AH1: 0.0236978 | AI1: 0.0236978 | AR1: X step size | AS1: 0.5 | AT1: Show m0 | AU1: FALSE | AV1: SwToMeanHeap | AW1: FALSE | AY1: rand no. | AZ1: data point | BB1: New Sample, for display
A2: =$U$6+$U$8+$H$12+$T$28 -> 185 | B2: FALSE | C2: n samp | D2: FALSE | E2: =AU5 -> FALSE | J2: Take samples, explore CI concepts | W2: =$W$1 -> 0.0236978 | AI2: =$W$1 -> 0.0236978 | AR2: Bars indicator | AS2: =IF(AS4,2,1) -> 1 | AT2: m0 value | AU2: =U6 -> 50 | AV2: DispMeanHeap | AW2: =AW6 -> FALSE | AX2: 1 | AY2: =$D$8 -> 0.3770988324 | AZ2: =IF(AND($AU$7,$AX2<=$H$12),$D$4+$D$5*NORMSINV(AY2),"") -> 43.73781508 | BA2: =IF(AND($AU$4,AZ2<>"",$A$4<>""),AZ2,-999) -> -999 | BB2: =IF(BA2=-999,-999,0) -> -999
A3: =AR14 -> 55.38229995 | B3: =AS14 -> 15.06829907 | C3: =C4+1 -> 1 | D3: 1 | E3: =AS2 -> 1 | J3: See the dance of the means, and the mean heap | W3: =$W$1 -> 0.0236978 | AI3: 0.0236978 | AR3: Max height | AS3: =MAX(AS42:AS242) -> -999 | AT3: Show t, p | AU3: FALSE | AV3: DispSampDist | AW3: FALSE | AX3: 2 | AY3: =MOD(AY2*10000013,1) -> 0.2265307736 | AZ3: 34.99358496 | BA3: -999 | BB3: -999
C4: 0 | D4: 50 | E4: =U6 -> 50 | W4: 0.0236978 | AI4: 0.0236978 | AR4: Show CI | AS4: FALSE | AT4: Show data pts | AU4: FALSE | AV4: Display MOE | AW4: FALSE | AX4: 3 | AY4: 0.6805517878 | AZ4: 59.38484681 | BA4: -999 | BB4: -999
D5: 20 | E5: =U8 -> 20 | G5: 2 | H5: The population | W5: 0.0236978 | AI5: 0.0236978 | AR5: DisplayPopDist | AS5: FALSE | AT5: Show m0 capt | AU5: FALSE | AV5: Assume s known | AW5: TRUE | AX5: 4 | AY5: 0.72555664 | AZ5: 61.98858369 | BA5: -999 | BB5: -999
D6: 95 | E6: =T28 -> 95 | H6: Display population | T6: m | U6: 50 | W6: 0.0236978 | AI6: 0.0236978 | AR6: Disp SD lines | AS6: FALSE | AT6: Don'tClearDisp | AU6: =AND(D2=E2,D3=E3,D4=E4,D5=E5,D6=E6,D7=E7,D9=E9,D10=E10) -> TRUE | AV6: Display means | AW6: FALSE | AX6: 5 | AY6: 0.8317807969 | AZ6: 69.22452556 | BA6: -999 | BB6: -999
D7: 20 | E7: =H12 -> 20 | I7: Display SD lines | W7: 0.0236978 | AI7: 0.0236978 | AR7: Disp SE lines | AS7: FALSE | AT7: KeepShowSmps | AU7: =AND(D4=E4,D5=E5,D7=E7) -> TRUE | AV7: Population SE | AW7: =$U$8/SQRT($H$12) -> 4.472135955 | AX7: 6 | AY7: 0.7818562519 | AZ7: 65.56955237 | BA7: -999 | BB7: -999
D8: 0.3770988324 | E8: =RAND() -> 0.2132882148 | T8: s | U8: 20 | W8: 0.0236978 | AI8: 0.0236978 | AR8: For m0 line | AS8: 24.5 | AT8: =IF(AU1,AU2,NA()) ->  | AU8: For Tails | AV8: ToCountCapture | AW8: =IF(ISNA(AU15),AR15,IF(AND($AU$5,$AS$2>1,AR15+AU15>=$AU$2,AR15-AU15<=$AU$2),AR15,-999)) -> -999 | AX8: 7 | AY8: 0.6829365399 | AZ8: 59.518525 | BA8: -999 | BB8: -999
D9: 50 | E9: =AU2 -> 50 | I9: Fill random | W9: 0.0236978 | AI9: 0.0236978 | AR9: For m line | AS9: =IF(AS6,U6,NA()) ->  | AT9: 0 | AV9: =IF($AW$4,$U$6-$T$24,NA()) ->  | AW9: 26 | AX9: 8 | AY9: 0.2769098263 | AZ9: 38.15907603 | BA9: -999 | BB9: -999
D10: TRUE | E10: =AW5 -> TRUE | I10: 1 | W10: 0.0236978 | AI10: 0.0236978 | AR10: 3 points on MOE | AS10: =AV11-AU11 ->  | AT10: 26 | AU10: For MOE | AV10: =IF($AW$4,$U$6+$T$24,NA()) ->  | AW10: 26 | AX10: 9 | AY10: 0.8630616423 | AZ10: 71.88356925 | BA10: -999 | BB10: -999
D11: Show Stats | E11: FALSE | G11: 3 | W11: 0.0236978 | AI11: 0.0236978 | AS11: =AV11 ->  | AT11: 26 | AU11: =$AW$7*NORMSINV(0.5+$T$28/200) -> 8.765225406 | AV11: =IF($AW$4,$U$6,NA()) ->  | AW11: 26.2 | AX11: 10 | AY11: 0.6425439548 | AZ11: 57.3053405 | BA11: -999 | BB11: -999
D12: For fill | G12: N | H12: 20 | W12: 0.0236978 | AI12: 0.0236978 | AS12: =AV11+AU11 ->  | AT12: 26 | AV12: m0 line bar | AW12: =IF(AU1,25.5,0) -> 0 | AX12: 11 | AY12: 0.9008187857 | AZ12: 75.72462152 | BA12: -999 | BB12: -999
D13: FALSE | W13: 0.0236978 | AI13: 0.0236978 | AR13: Samp mean | AS13: SD | AV13: Bars capture pop mean? | AX13: 12 | AY13: 0.5671693962 | AZ13: 53.3834437 | BA13: -999 | BB13: -999
D14: =RAND() -> 0.9722923283 | H14: Display means | T14: Number of samples | U14: =IF(AND($AU$7,C4<>""),C4,"") -> 0 | W14: 0.0236978 | AI14: 0.0236978 | AR14: =IF($AU$7,AVERAGE(AZ2:AZ101),-999) -> 55.38229995 | AS14: =IF(AND($AU$7,$H$12>1),STDEV(AZ2:AZ101),-999) -> 15.06829907 | AT14: SE | AU14: Bar disp | AV14: Yes | AW14: No | AX14: 13 | AY14: 0.3352695163 | AZ14: 41.49183335 | BA14: -999 | BB14: -999
D15: 0.6856553692 | W15: 0.0236978 | AI15: 0.0236978 | AR15: =IF(AND($AU$7,$AW$6,A4<>""),A4,-999) -> -999 | AS15: =IF(AND($AU$7,$H$12>1,B4<>""),B4,-999) -> -999 | AT15: =IF(AND($AU$7,$H$12>1,AS15>-999),AS15/SQRT($H$12),"") ->  | AU15: =IF(AND($AU$7,$H$12>1,AT15<>""),IF($AS$2=2,IF($AW$5,$AW$7*NORMSINV(0.5+$T$28/200),AT15*TINV(1-$T$28/100,($H$12-1))),NA()),NA()) ->  | AV15: =IF(AND($AU$5,$AU$1,$AS$2>1,AR15+AU15>=$AU$2,AR15-AU15<=$AU$2),AR15,NA()) ->  | AW15: =IF(AND($AU$5,$AU$1,$AS$2>1,OR(AR15+AU15<$AU$2,AR15-AU15>$AU$2)),AR15,NA()) ->  | AX15: 14 | AY15: 0.5218430888 | AZ15: 51.09559778 | BA15: -999 | BB15: -999
D16: not capt'g | AI16: 0.0236978 | AR16: -999 | AS16: -999 | AX16: 15 | AY16: 0.6718678977 | AZ16: 58.90153737 | BA16: -999 | BB16: -999
D17: 0 | G17: 4 | H17: Latest sample | Q17: Show | T17: Mean M | U17: =IF(AND(E11,$AU$7,$AW$6,A4<>""),AR14,"") ->  | W17: =$W$1 -> 0.0236978 | AI17: 0.0236978 | AR17: -999 | AS17: -999 | AX17: 16 | AY17: 0.7116231304 | AZ17: 61.16265498 | BA17: -999 | BB17: -999
D18: =D17+1 -> 1 | H18: Display data points | Q18: values | T18: SD s | U18: =IF(AND(E11,AW6,$AU$7,$H$12>1,B4<>""),AS14,"") ->  | W18: 0.0236978 | AI18: 0.0236978 | AR18: -999 | AS18: -999 | AX18: 17 | AY18: 0.5547627565 | AZ18: 52.75407673 | BA18: -999 | BB18: -999
D19: increments | T19: MOE | U19: =IF(AND(E11,AW6,NOT(AW1),NOT(ISNA(AU15))),AU15,"") ->  | W19: 0.0236978 | AI19: 0.0236978 | AR19: -999 | AS19: -999 | AX19: 18 | AY19: 0.7764354777 | AZ19: 65.2042008 | BA19: -999 | BB19: -999
D20: =AN23/500 -> 0.658 | E20: y | W20: 0.0236978 | AI20: 0.0236978 | AO20: Mean heap | AR20: -999 | AS20: -999 | AX20: 19 | AY20: 0.8702522721 | AZ20: 72.55168905 | BA20: -999 | BB20: -999
D21: =AN26/500 -> 1.32 | E21: x | G21: 6 | H21: Mean heap | T21: =IF(AND(A4<>"",A5<>""),"Mean heap SE ","") ->  | U21: =IF(AND(A4<>"",A5<>"",AU7),STDEV(A4:A303),"") ->  | W21: 0.0236978 | AI21: 0.0236978 | AO21: appearance | AR21: -999 | AS21: -999 | AX21: 20 | AY21: 0.03442111425 | AZ21: 13.61092444 | BA21: -999 | BB21: -999
H22: Display sampling distribution curve | T22: Curve SE | U22: =IF(AW3,$AW$7,"") ->  | W22: 0.0236978 | AI22: 0.0236978 | AN22: y | AR22: -999 | AS22: -999 | AX22: 21 | AY22: 0.589984661 | BA22: -999 | BB22: -999
I23: Display ±MOE around m | W23: 0.0236978 | AI23: 0.0236978 | AN23: 329 | AR23: -999 | AS23: -999 | AX23: 22 | AY23: 0.2794824373 | BA23: -999 | BB23: -999
S24: MOE | T24: =IF(AND($AW$4,H12>1),$AW$7*NORMSINV(0.5+$T$28/200),"") ->  | W24: 0.0236978 | AI24: 0.0236978 | AR24: -999 | AS24: -999 | AX24: 23 | AY24: 0.006248703226 | BA24: -999 | BB24: -999
K25: Display SE lines | W25: 0.0236978 | AI25: 0.0236978 | AN25: x | AR25: -999 | AS25: -999 | AX25: 24 | AY25: 0.113497613 | BA25: -999 | BB25: -999
W26: 0.0236978 | AI26: 0.0236978 | AN26: 660 | AR26: -999 | AS26: -999 | AX26: 25 | AY26: 0.6054478642 | BA26: -999 | BB26: -999
G27: 7 | H27: Dance of the means | W27: 0.0236978 | AI27: 0.0236978 | AR27: -999 | AS27: -999 | AX27: 26 | AY27: 0.5124216508 | BA27: -999 | BB27: -999
H28: Display CIs | S28: C | T28: 95 | W28: 0.0236978 | AI28: 0.0236978 | AR28: -999 | AS28: -999 | AX28: 27 | AY28: 0.1696017589 | BA28: -999 | BB28: -999
K29: Assume s known | W29: 0.0236978 | AI29: 0.0236978 | AR29: -999 | AS29: -999 | AX29: 28 | AY29: 0.7942429464 | BA29: -999 | BB29: -999
W30: 0.0236978 | AI30: 0.0236978 | AR30: -999 | AS30: -999 | AX30: 29 | AY30: 0.7894687112 | BA30: -999 | BB30: -999
G31: 8 | H31: Display m line | W31: 0.0236978 | AI31: 0.0236978 | AR31: -999 | AS31: -999 | AX31: 30 | AY31: 0.3755140435 | BA31: -999 | BB31: -999
W32: 0.0236978 | AI32: 0.0236978 | AR32: -999 | AS32: -999 | AX32: 31 | AY32: 0.3166331556 | BA32: -999 | BB32: -999
W33: 0.0236978 | AI33: 0.0236978 | AR33: -999 | AS33: -999 | AX33: 32 | AY33: 0.6719253641 | BA33: -999 | BB33: -999
G34: 9 | H34: Show capture of m | T34: =IF(AU5,"Number capturing ","") ->  | U34: =IF(AND($AU$7,$AU$5,$AU$1,$AU$6,AS2=2,C4<>""),C4-D17,"") ->  | V34: 5 | W34: 0.0236978 | AI34: 0.0236978 | AR34: -999 | AS34: -999 | AX34: 33 | AY34: 0.3756516334 | AZ34: =IF(AND($AU$7,$AX34<=$H$12),$D$4+$D$5*NORMSINV(AY34),"") ->  | BA34: =IF(AND($AU$4,AZ34<>"",$A$4<>""),AZ34,-999) -> -999 | BB34: =IF(BA34=-999,-999,0) -> -999
S35: =IF(AU5,"Percent capturing ","") ->  | T35: =IF(AND(U14<>"",U34<>"",U14<>0),U34*100/U14,"") ->  | W35: 0.0236978 | AI35: 0.0236978 | AR35: -999 | AS35: -999 | AX35: 34 | AY35: =MOD(AY34*10000013,1) -> 0.2171406578 | BA35: -999 | BB35: -999
W36: 0.0236978 | AI36: 0.0236978 | AR36: -999 | AS36: -999 | AX36: 35 | AY36: 0.4011011329 | BA36: -999 | BB36: -999
W37: 0.0236978 | AI37: 0.0236978 | AR37: -999 | AS37: -999 | AX37: 36 | AY37: 0.5428629201 | BA37: -999 | BB37: -999
AR38: -999 | AS38: -999 | AX38: 37 | AY38: 0.2581235226 | BA38: -999 | BB38: -999
AR39: -999 | AS39: -999 | AX39: 38 | AY39: 0.5818495285 | BA39: -999 | BB39: -999
AR40: Maxpop | AS40: =MAX(AS42:AS242) -> -999 | AT40: DotFraction | AU40: 40 | AV40: SampDistMult | AW40: =COUNT(A4:A303)*$D$20*$D$21 -> 0 | AX40: 39 | AY40: 0.848809829 | BA40: -999 | BB40: -999
AQ41: NormDist | AR41: x | AS41: Population | AT41: SampDist | AV41: For pop label | AX41: 40 | AY41: 0.3243453484 | BA41: -999 | BB41: -999
AQ42: =NORMDIST(AR42,$U$6,$U$8,TRUE) -> 0.006209665326 | AR42: 0 | AS42: =IF($AS$5,NORMDIST(AR42,$U$6,$U$8,FALSE),-999) -> -999 | AT42: =IF($AW$3,26-$AW$40*NORMDIST(AR42,$U$6,$U$8/SQRT($H$12),FALSE),-999) -> -999 | AV42: 10 | AW42: =AS40 -> -999 | AX42: 41 | AY42: 0.700518107 | BA42: -999 | BB42: -999
AQ43: 0.006661808792 | AR43: =AR42+$AS$1 -> 0.5 | AS43: -999 | AT43: -999 | AX43: 42 | AY43: 0.1771525573 | BA43: -999 | BB43: -999
AQ44: 0.007142810735 | AR44: 1 | AS44: -999 | AT44: -999 | AV44: For SD lines | AX44: 43 | AY44: 0.8759686556 | BA44: -999 | BB44: -999
AQ45: 0.007654193377 | AR45: 1.5 | AS45: -999 | AT45: -999 | AV45: =IF(AND($AS$5,$AS$6),$U$6-5*$U$8,NA()) ->  | AW45: 0 | AX45: 44 | AY45: 0.9433059376 | BA45: -999 | BB45: -999
AQ46: 0.008197535925 | AR46: 2 | AS46: -999 | AT46: -999 | AV46: =IF(AND($AS$5,$AS$6),$U$6-4*$U$8,NA()) ->  | AW46: 0 | AX46: 45 | AY46: 0.6387103256 | BA46: -999 | BB46: -999
AQ47: 0.008774475096 | AR47: 2.5 | AS47: -999 | AT47: -999 | AV47: =IF(AND($AS$5,$AS$6),$U$6-3*$U$8,NA()) ->  | AW47: 0 | AX47: 46 | AY47: 0.5590723883 | BA47: -999 | BB47: -999
AQ48: 0.009386705535 | AR48: 3 | AS48: -999 | AT48: -999 | AV48: =IF(AND($AS$5,$AS$6),$U$6-2*$U$8,NA()) ->  | AW48: 0 | AX48: 47 | AY48: 0.1513016727 | BA48: -999 | BB48: -999
AQ49: 0.0100359801 | AR49: 3.5 | AS49: -999 | AT49: -999 | AV49: =IF(AND($AS$5,$AS$6),$U$6-1*$U$8,NA()) ->  | AW49: 0 | AX49: 48 | AY49: 0.6937434059 | BA49: -999 | BB49: -999
AQ50: 0.01072411002 | AR50: 4 | AS50: -999 | AT50: -999 | AV50: =IF(AND($AS$5,$AS$6),$U$6+1*$U$8,NA()) ->  | AW50: 0 | AX50: 49 | AY50: 0.07730070315 | BA50: -999 | BB50: -999
AQ51: 0.01145296492 | AR51: 4.5 | AS51: -999 | AT51: -999 | AV51: =IF(AND($AS$5,$AS$6),$U$6+2*$U$8,NA()) ->  | AW51: 0 | AX51: 50 | AY51: 0.03643928282 | BA51: -999 | BB51: -999
AQ52: 0.01222447266 | AR52: 5 | AS52: -999 | AT52: -999 | AV52: =IF(AND($AS$5,$AS$6),$U$6+3*$U$8,NA()) ->  | AW52: 0 | AX52: 51 | AY52: 0.3019069638 | BA52: -999 | BB52: -999
AQ53: 0.01304061907 | AR53: 5.5 | AS53: -999 | AT53: -999 | AV53: =IF(AND($AS$5,$AS$6),$U$6+4*$U$8,NA()) ->  | AW53: 0 | AX53: 52 | AY53: 0.5628937762 | BA53: -999 | BB53: -999
AQ54: 0.01390344751 | AR54: 6 | AS54: -999 | AT54: -999 | AV54: =IF(AND($AS$5,$AS$6),$U$6+5*$U$8,NA()) ->  | AW54: 0 | AX54: 53 | AY54: 0.07984972559 | BA54: -999 | BB54: -999
AQ55: 0.01481505819 | AR55: 6.5 | AS55: -999 | AT55: -999 | AX55: 54 | AY55: 0.2939379942 | BA55: -999 | BB55: -999
AQ56: 0.01577760739 | AR56: 7 | AS56: -999 | AT56: -999 | AX56: 55 | AY56: 0.7628660109 | BA56: -999 | BB56: -999
AQ57: 0.01679330645 | AR57: 7.5 | AS57: -999 | AT57: -999 | AX57: 56 | AY57: 0.02615225129 | BA57: -999 | BB57: -999
AQ58: 0.01786442056 | AR58: 8 | AS58: -999 | AT58: -999 | AV58: For SE lines | AX58: 57 | AY58: 0.8528622147 | BA58: -999 | BB58: -999
AQ59: 0.01899326739 | AR59: 8.5 | AS59: -999 | AT59: -999 | AV59: =IF(AND($AW$3,$AS$7),$U$6-5*$U$22,NA()) ->  | AW59: 26 | AX59: 58 | AY59: 0.233904643 | BA59: -999 | BB59: -999
AQ60: 0.02018221541 | AR60: 9 | AS60: -999 | AT60: -999 | AV60: =IF(AND($AW$3,$AS$7),$U$6-4*$U$22,NA()) ->  | AW60: 26 | AX60: 59 | AY60: 0.4706030693 | BA60: -999 | BB60: -999
AQ61: 0.02143368211 | AR61: 9.5 | AS61: -999 | AT61: -999 | AV61: =IF(AND($AW$3,$AS$7),$U$6-3*$U$22,NA()) ->  | AW61: 26 | AX61: 60 | AY61: 0.8107450884 | BA61: -999 | BB61: -999
AQ62: 0.02275013195 | AR62: 10 | AS62: -999 | AT62: -999 | AV62: =IF(AND($AW$3,$AS$7),$U$6-2*$U$22,NA()) ->  | AW62: 26 | AX62: 61 | AY62: 0.4235217031 | BA62: -999 | BB62: -999
AQ63: 0.024134074 | AR63: 10.5 | AS63: -999 | AT63: -999 | AV63: =IF(AND($AW$3,$AS$7),$U$6-1*$U$22,NA()) ->  | AW63: 26 | AX63: 62 | AY63: 0.5368735921 | BA63: -999 | BB63: -999
AQ64: 0.02558805952 | AR64: 11 | AS64: -999 | AT64: -999 | AV64: =IF(AND($AW$3,$AS$7),$U$6,NA()) ->  | AW64: 26 | AX64: 63 | AY64: 0.8999945428 | BA64: -999 | BB64: -999
AQ65: 0.02711467912 | AR65: 11.5 | AS65: -999 | AT65: -999 | AV65: =IF(AND($AW$3,$AS$7),$U$6+1*$U$22,NA()) ->  | AW65: 26 | AX65: 64 | AY65: 0.1281514745 | BA65: -999 | BB65: -999
AQ66: 0.02871655982 | AR66: 12 | AS66: -999 | AT66: -999 | AV66: =IF(AND($AW$3,$AS$7),$U$6+2*$U$22,NA()) ->  | AW66: 26 | AX66: 65 | AY66: 0.4111748096 | AZ66: =IF(AND($AU$7,$AX66<=$H$12),$D$4+$D$5*NORMSINV(AY66),"") ->  | BA66: =IF(AND($AU$4,AZ66<>"",$A$4<>""),AZ66,-999) -> -999 | BB66: =IF(BA66=-999,-999,0) -> -999
T67: m0 | U67: =U6 -> 50 | AQ67: 0.03039636177 | AR67: 12.5 | AS67: -999 | AT67: -999 | AV67: =IF(AND($AW$3,$AS$7),$U$6+3*$U$22,NA()) ->  | AW67: 26 | AX67: 66 | AY67: =MOD(AY66*10000013,1) -> 0.4408743214 | BA67: -999 | BB67: -999
H68: Show t or z, and p | AQ68: 0.0321567748 | AR68: 13 | AS68: -999 | AT68: -999 | AV68: =IF(AND($AW$3,$AS$7),$U$6+4*$U$22,NA()) ->  | AW68: 26 | AX68: 67 | AY68: 0.9452283587 | BA68: -999 | BB68: -999
Q69: =IF(AND($AU$1,$AU$3),"For latest sample:","") ->  | R69: =IF(AND($AU$1,$AU$3),IF($AW$5,"z","t"),"") ->  | S69: =IF(AND(AR15>-999,$AU$1,H12>1,$AU$3),(AR15-U67)/IF($AW$5,$AW$7,AT15),"") ->  | T69: =IF(AND($AU$1,$AU$3),"p","") ->  | U69: =IF(AND($AU$3,S69<>""),IF($AW$5,2*(1-NORMSDIST(ABS(S69))),TDIST(ABS(S69),H12-1,2)),"") ->  | AQ69: 0.03400051467 | AR69: 13.5 | AS69: -999 | AT69: -999 | AV69: =IF(AND($AW$3,$AS$7),$U$6+5*$U$22,NA()) ->  | AW69: 26 | AX69: 68 | AY69: 0.8752754014 | BA69: -999 | BB69: -999
H70: To fill population curve with data points | W70: X adjust | X70: -0.5 | AQ70: 0.03593031911 | AR70: 14 | AS70: -999 | AT70: -999 | AX70: 69 | AY70: 0.3925656136 | BA70: -999 | BB70: -999
H71: rand | I71: rand | Q71: x | S71: y | T71: rand | U71: rand | X71: x | Y71: y | AC71: rand | AD71: rand | AF71: x | AG71: y | AH71: rand | AI71: rand | AO71: x | AP71: y | AQ71: 0.03794894359 | AR71: 14.5 | AS71: -999 | AT71: -999 | AX71: 70 | AY71: 0.2394783031 | BA71: -999 | BB71: -999
H72: =D15 -> 0.6856553692 | I72: =MOD(H72*10000013,1) -> 0.6051422833 | K72: =VLOOKUP(H72,$AQ$42:$AR$242,2) -> 59.5 | Q72: =IF(AND(K72<100,$D$13),K72+H73+$X$70,NA()) ->  | S72: =IF(I72*VLOOKUP(K72,$AR$42:$AS$242,2)<VLOOKUP(K72,$AR$42:$AS$242,2)-$AS$40/$AU$40,I72*VLOOKUP(K72,$AR$42:$AS$242,2),NA()) ->  | T72: =MOD(H472*10000013,1) -> 0.5721187927 | U72: =MOD(T72*10000013,1) -> 0.3643731661 | W72: =VLOOKUP(T72,$AQ$42:$AR$242,2) -> 53.5 | X72: =IF(AND(W72<100,$D$13),W72+T73+$X$70,NA()) ->  | Y72: =IF(U72*VLOOKUP(W72,$AR$42:$AS$242,2)<VLOOKUP(W72,$AR$42:$AS$242,2)-$AS$40/$AU$40,U72*VLOOKUP(W72,$AR$42:$AS$242,2),NA()) ->  | AC72: =MOD(T472*10000013,1) -> 0.5350870676 | AD72: =MOD(AC72*10000013,1) -> 0.6324705519 | AE72: =VLOOKUP(AC72,$AQ$42:$AR$242,2) -> 51.5 | AF72: =IF(AND(AE72<100,$D$13),AE72+AC73+$X$70,NA()) ->  | AG72: =IF(AD72*VLOOKUP(AE72,$AR$42:$AS$242,2)<VLOOKUP(AE72,$AR$42:$AS$242,2)-$AS$40/$AU$40,AD72*VLOOKUP(AE72,$AR$42:$AS$242,2),NA()) ->  | AH72: =MOD(AC472*10000013,1) -> 0.7888850607 | AI72: =MOD(AH72*10000013,1) -> 0.8624837287 | AN72: =VLOOKUP(AH72,$AQ$42:$AR$242,2) -> 66 | AO72: =IF(AND(AN72<100,$D$13),AN72+AH73+$X$70,NA()) ->  | AP72: =IF(AI72*VLOOKUP(AN72,$AR$42:$AS$242,2)<VLOOKUP(AN72,$AR$42:$AS$242,2)-$AS$40/$AU$40,AI72*VLOOKUP(AN72,$AR$42:$AS$242,2),NA()) ->  | AQ72: 0.04005915686 | AR72: 15 | AS72: -999 | AT72: -999 | AX72: 71 | AY72: 0.1444133427 | BA72: -999 | BB72: -999
H73: =MOD(I72*10000013,1) -> 0.6993833994 | I73: 0.08647708129 | K73: 60 | T73: =MOD(U72*10000013,1) -> 0.3979920782 | U73: 0.9560458548 | W73: 44.5 | AC73: =MOD(AD72*10000013,1) -> 0.7408993132 | AD73: 0.7641035058 | AE73: 62.5 | AH73: =MOD(AI72*10000013,1) -> 0.4990588166 | AI73: 0.6535842605 | AN73: 49.5 | AQ73: 0.04226373626 | AR73: 15.5 | AS73: -999 | AT73: -999 | AX73: 72 | AY73: 0.3043675404 | BA73: -999 | BB73: -999
H74: 0.9371158322 | I74: 0.5048252083 | K74: 80.5 | T74: 0.9769631363 | U74: 0.06397225335 | W74: 89.5 | AC74: 0.9909498878 | AD74: 0.760171894 | AE74: 97 | AH74: 0.1015305556 | AI74: 0.8762541302 | AN74: 24.5 | AQ74: 0.04456546276 | AR74: 16 | AS74: -999 | AT74: -999 | AX74: 73 | AY74: 0.3608200308 | BA74: -999 | BB74: -999
H75: 0.6460888572 | I75: 0.9711923636 | K75: 57 | T75: 0.36516333 | U75: 0.04701047018 | W75: 43 | AC75: 0.8220754154 | AD75: 0.8410069086 | AE75: 68 | AH75: 0.692852173 | AI75: 0.7370839901 | AN75: 60 | AQ75: 0.04696711583 | AR75: =AR74+$AS$1 -> 16.5 | AS75: -999 | AT75: -999 | AX75: 74 | AY75: 0.9985958766 | BA75: -999 | BB75: -999
H76: 0.2619967945 | I76: 0.3508783914 | K76: 37 | T76: 0.312953148 | U76: 0.5487628765 | W76: 40 | AC76: 0.01874740794 | AD76: 0.3231464066 | AE76: 8 | AH76: 0.4833603539 | AI76: 0.8222573884 | AN76: 49 | AQ76: 0.04947146803 | AR76: 17 | AS76: -999 | AT76: -999 | AX76: 75 | AY76: 0.7479385938 | BA76: -999 | BB76: -999
H77: 0.4755678959 | I77: 0.1415734924 | K77: 48.5 | T77: 0.8993216194 | U77: 0.8853934892 | W77: 75.5 | AC77: 0.2665146478 | AD77: 0.9422108866 | AE77: 37.5 | AH77: 0.57317755 | AI77: 0.9511884637 | AN77: 53.5 | AQ77: 0.05208127942 | AR77: 17.5 | AS77: -999 | AT77: -999 | AX77: 76 | AY77: 0.6616971176 | BA77: -999 | BB77: -999
H78: 0.7648314126 | I78: 0.06864425912 | K78: 64 | T78: 0.4016372897 | U78: 0.1180156656 | W78: 45 | AC78: 0.115015883 | AD78: 0.3251935281 | AE78: 25.5 | AH78: 0.002627018839 | AI78: 0.2225424536 | AQ78: 0.0547992917 | AR78: 18 | AS78: -999 | AT78: -999 | AX78: 77 | AY78: 0.7781801876 | BA78: -999 | BB78: -999
H79: 0.4836253114 | I79: 0.4011737145 | K79: 49 | T79: 0.18981326 | U79: 0.06746261194 | W79: 32 | AC79: 0.5083753355 | AD79: 0.9637267925 | AE79: 50 | AH79: 0.4286244251 | AI79: 0.8229515143 | AN79: 46 | AQ79: 0.05762822228 | AR79: 18.5 | AS79: -999 | AT79: -999 | AX79: 78 | AY79: 0.9920231234 | BA79: -999 | BB79: -999
H80: 0.3607417829 | I80: 0.518977914 | K80: 42.5 | T80: 0.9964487888 | U80: 0.8417532034 | W80: 100 | AC80: 0.453293521 | AD80: 0.1023880877 | AE80: 47.5 | AH80: 0.8411085047 | AI80: 0.981238354 | AN80: 69.5 | AP80: -980.2571156 | AQ80: 0.060570758 | AR80: 19 | AS80: -999 | AT80: -999 | AX80: 79 | AY80: 0.1305828597 | BA80: -999 | BB80: -999
H81: 0.8867680617 | I81: 0.1446616091 | K81: 74 | T81: 0.9770099558 | U81: 0.2590656169 | W81: 89.5 | AC81: 0.2076458819 | AD81: 0.5186069943 | AE81: 33.5 | AH81: 0.2960732915 | AI81: 0.7634601779 | AN81: 39 | AQ81: 0.06362954883 | AR81: 19.5 | AS81: -999 | AT81: -999 | AX81: 80 | AY81: 0.2949737888 | BA81: -999 | BB81: -999
H82: 0.9714350589 | I82: 0.2172754742 | K82: 88 | T82: 0.5366118886 | U82: 0.8615312763 | W82: 51.5 | AC82: 0.684901733 | AD82: 0.233236555 | AE82: 59.5 | AH82: 0.7042644061 | AI82: 0.2165854461 | AN82: 60.5 | AQ82: 0.06680720127 | AR82: 20 | AS82: -999 | AT82: -999 | AX82: 81 | AY82: 0.7224887963 | BA82: -999 | BB82: -999
H83: 0.5667863078 | I83: 0.4466373958 | K83: 53 | T83: 0.9624650516 | U83: 0.02766161039 | W83: 85.5 | AC83: 0.5821760185 | AD83: 0.7533511259 | AE83: 54 | AH83: 0.2771019079 | AI83: 0.6811159439 | AN83: 38 | AQ83: 0.07010627171 | AR83: 20.5 | AS83: -999 | AT83: -999 | AX83: 82 | AY83: 0.3557387423 | BA83: -999 | BB83: -999
H84: 0.7639797218 | I84: 0.1498803236 | K84: 64 | T84: 0.4635480978 | U84: 0.003720123321 | W84: 48 | AC84: 0.05222638324 | AD84: 0.5113332905 | AE84: 17.5 | AH84: 0.2938922085 | AI84: 0.9054666646 | AN84: 39 | AQ84: 0.07352925961 | AR84: 21 | AS84: -999 | AT84: -999 | AX84: 83 | AY84: 0.04737391137 | BA84: -999 | BB84: -999
H85: 0.1840346642 | I85: 0.03428918496 | K85: 31.5 | T85: 0.2815697826 | U85: 0.4868522771 | W85: 38 | AC85: 0.5522080548 | AD85: 0.7268123366 | AE85: 52.5 | AH85: 0.4168915488 | AI85: 0.9074160047 | AN85: 45.5 | AQ85: 0.07707860055 | AR85: 21.5 | AS85: -999 | AT85: -999 | AX85: 84 | AY85: 0.7295195144 | BA85: -999 | BB85: -999
H86: 0.2953368314 | I86: 0.1529893614 | K86: 39 | T86: 0.09978244081 | U86: 0.705285687 | W86: 24 | AC86: 0.8144990392 | AD86: 0.9805167951 | AE86: 67.5 | AG86: -979.5362783 | AH86: 0.8432835378 | AI86: 0.340438772 | AN86: 70 | AQ86: 0.08075665923 | AR86: 22 | AS86: -999 | AT86: -999 | AX86: 85 | AY86: 0.6274235304 | BA86: -999 | BB86: -999
H87: 0.6032134481 | I87: 0.3225492276 | K87: 55 | T87: 0.03870952502 | U87: 0.7534131296 | W87: 14.5 | AC87: 0.6974081285 | AD87: 0.3516035415 | AE87: 60 | AH87: 0.1456332542 | AI87: 0.4352345057 | AN87: 28.5 | AQ87: 0.08456572235 | AR87: 22.5 | AS87: -999 | AT87: -999 | AX87: 86 | AY87: 0.4609509241 | BA87: -999 | BB87: -999
H88: 0.4693912752 | I88: 0.8540592529 | K88: 48 | T88: 0.09034970775 | U88: 0.2520708628 | W88: 23 | AC88: 0.9860782214 | AD88: 0.03252596036 | AE88: 93.5 | AH88: 0.7148804106 | AI88: 0.3992636092 | AN88: 61 | AQ88: 0.08850799144 | AR88: 23 | AS88: -999 | AT88: -999 | AX88: 87 | AY88: 0.2331979182 | BA88: -999 | BB88: -999
H89: 0.63164993 | I89: 0.5117501654 | K89: 56.5 | T89: 0.9049200453 | U89: 0.2168247588 | W89: 76 | AC89: 0.02639745548 | AD89: 0.8980036713 | AE89: 11 | AH89: 0.2824340798 | AI89: 0.4696037956 | AN89: 38 | AQ89: 0.09258557566 | AR89: 23.5 | AS89: -999 | AT89: -999 | AX89: 88 | AY89: 0.2131904345 | BA89: -999 | BB89: -999
H90: 0.3064830191 | I90: 0.1757126786 | K90: 39.5 | T90: 0.4067007042 | U90: 0.3295767494 | W90: 45 | AC90: 0.3872306533 | AD90: 0.5671563186 | AE90: 44 | AH90: 0.06043148413 | AI90: 0.6269393452 | AN90: 18.5 | AQ90: 0.09680048459 | AR90: 24 | AS90: -999 | AT90: -999 | AX90: 89 | AY90: 0.1164813992 | BA90: -999 | BB90: -999
H91: 0.07007958367 | I91: 0.7477812804 | K91: 20 | T91: 0.7780437507 | U91: 0.6213040836 | W91: 65 | AC91: 0.5587835796 | AD91: 0.06036392227 | AE91: 52.5 | AH91: 0.6017233469 | AI91: 0.2909956761 | AN91: 55 | AQ91: 0.101154621 | AR91: 24.5 | AS91: -999 | AT91: -999 | AX91: 90 | AY91: 0.505894227 | BA91: -999 | BB91: -999
H92: 0.5254383571 | I92: 0.4021445848 | K92: 51 | T92: 0.9131085016 | U92: 0.8862438984 | W92: 77 | AC92: 0.007412511855 | AD92: 0.2149162926 | AE92: 1 | AH92: 0.5436483063 | AI92: 0.1302317269 | AN92: 52 | AQ92: 0.1056497737 | AR92: 25 | AS92: -999 | AT92: -999 | AX92: 91 | AY92: 0.846158823 | BA92: -999 | BB92: -999
H93: 0.07592733577 | I93: 0.3447447456 | K93: 21 | T93: 0.505385939 | U93: 0.9603356011 | W93: 50 | AC93: 0.719691623 | AD93: 0.5860140063 | AE93: 61.5 | AH93: 0.9621588923 | AI93: 0.4311026521 | AN93: 85.5 | AQ93: 0.1102876103 | AR93: 25.5 | AS93: -999 | AT93: -999 | AX93: 92 | AY93: 0.230048744 | BA93: -999 | BB93: -999
H94: 0.9381011613 | I94: 0.8080284335 | K94: 80.5 | T94: 0.4955746867 | U94: 0.3092335649 | W94: 49.5 | AC94: 0.6810506769 | AD94: 0.6221834458 | AE94: 59 | AH94: 0.1253615655 | AI94: 0.2847053297 | AN94: 27 | AQ94: 0.1150696702 | AR94: 26 | AS94: -999 | AT94: -999 | AX94: 93 | AY94: 0.4307131227 | BA94: -999 | BB94: -999
H95: 0.8390888162 | I95: 0.07011187449 | K95: 69.5 | T95: 0.6688710488 | U95: 0.1837026365 | W95: 58.5 | AC95: 0.5467955358 | AD95: 0.4666684009 | AE95: 52 | AH95: 0.9980333187 | AI95: 0.1611191817 | AN95: 100 | AQ95: 0.1199973579 | AR95: 26.5 | AS95: -999 | AT95: -999 | AX95: 94 | AY95: 0.8263764512 | BA95: -999 | BB95: -999
H96: 0.6563641317 | I96: 0.8499224521 | K96: 58 | T96: 0.7532356121 | U96: 0.9127089567 | W96: 63.5 | AC96: 0.07582398131 | AD96: 0.7988607325 | AE96: 21 | AH96: 0.9111773409 | AI96: 0.2542548068 | AN96: 76.5 | AQ96: 0.1250719356 | AR96: 27 | AS96: -999 | AT96: -999 | AX96: 95 | AY96: 0.2546877172 | BA96: -999 | BB96: -999
H97: 0.570211608 | I97: 0.4923793711 | K97: 53.5 | T97: 0.4326989092 | U97: 0.7170185931 | W97: 46.5 | AC97: 0.7098493464 | AD97: 0.6923325993 | AE97: 61 | AH97: 0.3731802441 | AI97: 0.2925229259 | AN97: 43.5 | AQ97: 0.1302945171 | AR97: 27.5 | AS97: -999 | AT97: -999 | AX97: 96 | AY97: 0.4827845674 | BA97: -999 | BB97: -999
H98: 0.1117000468 | I98: 0.9201758839 | K98: 25.5 | T98: 0.2522686459 | U98: 0.7386164851 | W98: 36.5 | AC98: 0.9934444614 | AD98: 0.5285327472 | AE98: 99.5 | AH98: 0.06163335219 | AI98: 0.3231361397 | AN98: 19 | AQ98: 0.1356660609 | AR98: 28 | AS98: -999 | AT98: -999 | AX98: 97 | AY98: 0.9502075072 | AZ98: =IF(AND($AU$7,$AX98<=$H$12),$D$4+$D$5*NORMSINV(AY98),"") ->  | BA98: =IF(AND($AU$4,AZ98<>"",$A$4<>""),AZ98,-999) -> -999 | BB98: =IF(BA98=-999,-999,0) -> -999
H99: 0.8014764972 | I99: 0.3912255801 | K99: 66.5 | T99: 0.4535009898 | U99: 0.7937582023 | W99: 47.5 | AC99: 0.3427184112 | AD99: 0.5677093603 | AE99: 41.5 | AH99: 0.5973805524 | AI99: 0.290355999 | AN99: 54.5 | AQ99: 0.1411873642 | AR99: 28.5 | AS99: -999 | AT99: -999 | AX99: 98 | AY99: 0.4250755142 | AZ99: =IF(AND($AU$7,$AX99<=$H$12),$D$4+$D$5*NORMSINV(AY99),"") ->  | BA99: =IF(AND($AU$4,AZ99<>"",$A$4<>""),AZ99,-999) -> -999 | BB99: =IF(BA99=-999,-999,0) -> -999
H100: 0.887193013 | I100: 0.6633352377 | K100: 74 | T100: 0.342298422 | U100: 0.6699670143 | W100: 41.5 | AC100: 0.9829386063 | AD100: 0.8411219753 | AE100: 92 | AH100: 0.7648552097 | AI100: 0.04049788788 | AN100: 64 | AQ100: 0.1468590564 | AR100: 29 | AS100: -999 | AT100: -999 | AX100: 99 | AY100: 0.6684022155 | AZ100: =IF(AND($AU$7,$AX100<=$H$12),$D$4+$D$5*NORMSINV(AY100),"") ->  | BA100: =IF(AND($AU$4,AZ100<>"",$A$4<>""),AZ100,-999) -> -999 | BB100: =IF(BA100=-999,-999,0) -> -999
H101: 0.9998787232 | I101: 0.230166737 | K101: 100 | T101: 0.8529966511 | U101: 0.5997887738 | W101: 70.5 | AC101: 0.6879106648 | AD101: 0.5911049582 | AE101: 59.5 | AH101: 0.4052686431 | AI101: 0.6990062185 | AN101: 45 | AQ101: 0.1526815938 | AR101: 29.5 | AS101: -999 | AT101: -999 | AX101: 100 | AY101: 0.8438878339 | AZ101: =IF(AND($AU$7,$AX101<=$H$12),$D$4+$D$5*NORMSINV(AY101),"") ->  | BA101: =IF(AND($AU$4,AZ101<>"",$A$4<>""),AZ101,-999) -> -999 | BB101: =IF(BA101=-999,-999,0) -> -999
H102: 0.3620697148 | I102: 0.8550505377 | K102: 42.5 | T102: 0.5353030898 | U102: 0.8566171117 | W102: 51.5 | AC102: 0.2664286084 | AD102: 0.5480450429 | AE102: 37.5 | AH102: 0.2717126645 | AI102: 0.1774124391 | AN102: 37.5 | AQ102: 0.1586552539 | AR102: 30 | AS102: -999 | AT102: -999
H103: 0.4930092283 | I103: 0.6917132176 | K103: 49.5 | T103: 0.2531493939 | U103: 0.2304014452 | W103: 36.5 | AC103: 0.5536078699 | AD103: 0.8958354332 | AE103: 52.5 | AH103: 0.697738681 | AI103: 0.8804883547 | AN103: 60 | AQ103: 0.16478013 | AR103: 30.5 | AS103: -999 | AT103: -999 | AU103: Display mean heap | AW103: =AW105 ->  | AX103: =IF(AND($AU$7,$AU$4),AX105,NA()) -> 
H104: 0.168730665 | I104: 0.8434815742 | K104: 30.5 | T104: 0.4470205642 | U104: 0.4535502978 | W104: 47 | AC104: 0.9774136133 | AD104: 0.8398689665 | AE104: 90 | AH104: 0.9934758581 | AI104: 0.4964072593 | AN104: 99.5 | AQ104: 0.1710561263 | AR104: 31 | AS104: -999 | AT104: -999 | AU104: xticks | AV104: yticks | AW104: x for display | AX104: y for display
H105: 0.707335908 | I105: 0.2750257887 | K105: 60.5 | T105: 0.87382311 | U105: 0.4598424323 | W105: 72.5 | AC105: 0.5831968673 | AD105: 0.2541328408 | AE105: 54 | AH105: 0.04585084692 | AI105: 0.0652253814 | AN105: 16 | AQ105: 0.1774829537 | AR105: 31.5 | AS105: -999 | AT105: -999 | AU105: =IF(A4="","",ROUND(A4/$D$21,0)) ->  | AV105: =IF(AU105="",NA(),COUNTIF(AU105:$AU$404,AU105)) ->  | AW105: =AU105*$D$21 ->  | AX105: =IF(AND($AU$7,$AW$2),26+$D$20/2-AV105*$D$20,NA()) -> 
H106: 0.4622814544 | I106: 0.5532041527 | K106: 48 | T106: 0.3008547761 | U106: 0.6716582961 | W106: 39.5 | AC106: 0.7115509696 | AD106: 0.9464674033 | AE106: 61 | AH106: 0.6619715728 | AI106: 0.3334961422 | AN106: 58 | AQ106: =NORMDIST(AR106,$U$6,$U$8,TRUE) -> 0.1840601253 | AR106: 32 | AS106: =IF($AS$5,NORMDIST(AR106,$U$6,$U$8,FALSE),-999) -> -999 | AT106: =IF($AW$3,26-$AW$40*NORMDIST(AR106,$U$6,$U$8/SQRT($H$12),FALSE),-999) -> -999 | AV106: =IF(AU106="",NA(),COUNTIF(AU106:$AU$404,AU106)) -> 
H107: 0.7189848609 | I107: 0.9560718574 | K107: 61.5 | T107: 0.6929383315 | U107: 0.3233442791 | W107: 60 | AC107: 0.3373008259 | AD107: 0.6435515024 | AE107: 41.5 | AH107: 0.7572375871 | AI107: 0.7153297253 | AN107: 63.5 | AQ107: 0.1907869529 | AR107: =AR106+$AS$1 -> 32.5 | AS107: -999 | AT107: -999 | AV107: =IF(AU107="",NA(),COUNTIF(AU107:$AU$404,AU107)) -> 
H108: 0.002564001828 | I108: 0.0516163446 | T108: 0.9942819215 | U108: 0.1410222836 | W108: 100 | AC108: 0.389937479 | AD108: 0.8596769013 | AE108: 44 | AH108: 0.5522394814 | AI108: 0.99271046 | AN108: 52.5 | AP108: -991.7177495 | AQ108: 0.1976625431 | AR108: 33 | AS108: -999 | AT108: -999 | AV108: =IF(AU108="",NA(),COUNTIF(AU108:$AU$404,AU108)) -> 
H109: 0.1170216389 | I109: 0.9102817215 | K109: 26 | T109: 0.6691284813 | U109: 0.5116571076 | W109: 58.5 | AC109: 0.1883104928 | AD109: 0.3758742549 | AE109: 32 | AH109: 0.5050098635 | AI109: 0.2003845163 | AN109: 50 | AQ109: 0.2046857953 | AR109: 33.5 | AS109: -999 | AT109: -999 | AV109: =IF(AU109="",NA(),COUNTIF(AU109:$AU$404,AU109)) -> 
H110: 0.04868780449 | I110: 0.6778447367 | K110: 16.5 | T110: 0.7277567126 | U110: 0.58669414 | W110: 62 | AC110: 0.4348906465 | AD110: 0.1184531488 | AE110: 46.5 | AH110: 0.7676883973 | AI110: 0.9531304128 | AN110: 64.5 | AQ110: 0.2118553986 | AR110: 34 | AS110: -999 | AT110: -999 | AV110: =IF(AU110="",NA(),COUNTIF(AU110:$AU$404,AU110)) -> 
H111: 0.1792324968 | I111: 0.2977048196 | K111: 31.5 | T111: 0.02689612284 | U111: 0.5780798681 | W111: 11 | AC111: 0.02741544321 | AD111: 0.7885187007 | AE111: 11.5 | AH111: 0.5191634037 | AI111: 0.7857248373 | AN111: 50.5 | AQ111: 0.2191698298 | AR111: 34.5 | AS111: -999 | AT111: -999 | AV111: =IF(AU111="",NA(),COUNTIF(AU111:$AU$404,AU111)) -> 
H112: 0.06606118754 | I112: 0.7341506816 | K112: 19.5 | T112: 0.1961186267 | U112: 0.8169776984 | W112: 32.5 | AC112: 0.25822993 | AD112: 0.6565272249 | AE112: 37 | AH112: 0.5877525248 | AI112: 0.8884162791 | AN112: 54 | AQ112: 0.2266273524 | AR112: 35 | AS112: -999 | AT112: -999 | AV112: =IF(AU112="",NA(),COUNTIF(AU112:$AU$404,AU112)) -> 
H113: 0.3604056425 | I113: 0.1106659807 | K113: 42.5 | T113: 0.6042692102 | U113: 0.9579915889 | W113: 55 | AC113: 0.7841353305 | AD113: 0.4984434582 | AE113: 65.5 | AH113: 0.3404849507 | AI113: 0.9332189746 | AN113: 41.5 | AQ113: 0.2342260152 | AR113: 35.5 | AS113: -999 | AT113: -999 | AV113: =IF(AU113="",NA(),COUNTIF(AU113:$AU$404,AU113)) -> 
H114: 0.2459225543 | I114: 0.7398365475 | K114: 36 | T114: 0.3424981572 | U114: 0.02420999482 | W114: 41.5 | AC114: 0.06205799058 | AD114: 0.7125618495 | AE114: 19 | AH114: 0.8780477084 | AI114: 0.4988396652 | AN114: 73 | AQ114: 0.2419636522 | AR114: 36 | AS114: -999 | AT114: -999 | AV114: =IF(AU114="",NA(),COUNTIF(AU114:$AU$404,AU114)) -> 
H115: 0.09311248735 | I115: 0.08392167464 | K115: 23.5 | T115: 0.2629573382 | U115: 0.8008826263 | W115: 37 | AC115: 0.758351136 | AD115: 0.2185544111 | AE115: 64 | AH115: 0.1369585134 | AI115: 0.9145496674 | AN115: 28 | AQ115: 0.2498378825 | AR115: 36.5 | AS115: -999 | AT115: -999 | AV115: =IF(AU115="",NA(),COUNTIF(AU115:$AU$404,AU115)) -> 
H116: 0.8373716362 | I116: 0.2476519682 | K116: 69.5 | T116: 0.6747230627 | U116: 0.3980425186 | W116: 59 | AC116: 0.9520419426 | AD116: 0.8028076328 | AE116: 83 | AH116: 0.5630276836 | AI116: 0.1558147557 | AN116: 53 | AQ116: 0.2578461108 | AR116: 37 | AS116: -999 | AT116: -999 | AV116: =IF(AU116="",NA(),COUNTIF(AU116:$AU$404,AU116)) -> 
H117: 0.9009888954 | I117: 0.6673162617 | K117: 75.5 | T117: 0.3610079922 | U117: 0.6148859151 | W117: 42.5 | AC117: 0.7648364194 | AD117: 0.1366109587 | AE117: 64 | AH117: 0.5826716162 | AI117: 0.736995358 | AN117: 54 | AQ117: 0.265985529 | AR117: 37.5 | AS117: -999 | AT117: -999 | AV117: =IF(AU117="",NA(),COUNTIF(AU117:$AU$404,AU117)) -> 
H118: 0.2919007428 | I118: 0.2227000929 | K118: 39 | T118: 0.1442246176 | U118: 0.05122246221 | W118: 28.5 | AC118: 0.3631946035 | AD118: 0.7562593259 | AE118: 43 | AH118: 0.1611403264 | AI118: 0.3589295633 | AN118: 30 | AQ118: 0.2742531178 | AR118: 38 | AS118: -999 | AT118: -999 | AV118: =IF(AU118="",NA(),COUNTIF(AU118:$AU$404,AU118)) -> 
H119: 0.8245164342 | I119: 0.06093824282 | K119: 68.5 | T119: 0.287962798 | U119: 0.7238082178 | W119: 38.5 | AC119: 0.09028856829 | AD119: 0.8566322662 | AE119: 23 | AH119: 0.2992215492 | AI119: 0.381711442 | AN119: 39 | AQ119: 0.2826456485 | AR119: 38.5 | AS119: -999 | AT119: -999 | AV119: =IF(AU119="",NA(),COUNTIF(AU119:$AU$404,AU119)) -> 
H120: 0.2204260118 | I120: 0.9838438369 | K120: 34.5 | S120: -982.8599931 | T120: 0.5874438621 | U120: 0.257873971 | W120: 54 | AC120: 0.7981557436 | AD120: 0.8123120703 | AE120: 66.5 | AH120: 0.3824839033 | AI120: 0.005477178842 | AN120: 44 | AQ120: 0.2911596868 | AR120: 39 | AS120: -999 | AT120: -999 | AV120: =IF(AU120="",NA(),COUNTIF(AU120:$AU$404,AU120)) -> 
H121: 0.1593036242 | I121: 0.3127765097 | K121: 30 | T121: 0.0625137724 | U121: 0.5366613753 | W121: 19 | AC121: 0.2628600486 | AD121: 0.9028035142 | AE121: 37 | AH121: 0.8596216179 | AI121: 0.354511518 | AN121: 71.5 | AQ121: 0.2997915955 | AR121: 39.5 | AS121: -999 | AT121: -999 | AV121: =IF(AU121="",NA(),COUNTIF(AU121:$AU$404,AU121)) -> 
H122: 0.1628186591 | I122: 0.7076121308 | K122: 30 | T122: 0.7297378518 | U122: 0.004279393703 | W122: 62 | AC122: 0.8779733367 | AD122: 0.7809176482 | AE122: 73 | AH122: 0.7889633216 | AI122: 0.4724870212 | AN122: 66 | AQ122: 0.3085375387 | AR122: 40 | AS122: -999 | AT122: -999 | AV122: =IF(AU122="",NA(),COUNTIF(AU122:$AU$404,AU122)) -> 
H123: 0.506867189 | I123: 0.4788765945 | K123: 50 | T123: 0.9926595725 | U123: 0.6296935566 | W123: 98.5 | AC123: 0.6341896541 | AD123: 0.7858821489 | AE123: 56.5 | AH123: 0.3547073938 | AI123: 0.5491486378 | AN123: 42.5 | AQ123: 0.3173934866 | AR123: 40.5 | AS123: -999 | AT123: -999 | AV123: =IF(AU123="",NA(),COUNTIF(AU123:$AU$404,AU123)) -> 
H124: 0.1699362285 | I124: 0.4946061708 | K124: 30.5 | T124: 0.7517859079 | U124: 0.852160532 | W124: 63.5 | AC124: 0.7053848095 | AD124: 0.2652407326 | AE124: 60.5 | AH124: 0.5169463791 | AI124: 0.5112560876 | AN124: 50.5 | AQ124: 0.3263552203 | AR124: 41 | AS124: -999 | AT124: -999 | AV124: =IF(AU124="",NA(),COUNTIF(AU124:$AU$404,AU124)) -> 
H125: 0.1379133053 | I125: 0.84599692 | K125: 28 | T125: 0.3983617462 | U125: 0.6409205087 | W125: 44.5 | AC125: 0.7739337571 | AD125: 0.6321041323 | AE125: 65 | AH125: 0.5220429637 | AI125: 0.4230965562 | AN125: 51 | AQ125: 0.3354183374 | AR125: 41.5 | AS125: -999 | AT125: -999 | AV125: =IF(AU125="",NA(),COUNTIF(AU125:$AU$404,AU125)) -> 
H126: 0.1981538422 | I126: 0.9984056689 | K126: 33 | S126: -997.4072632 | T126: 0.4184958674 | U126: 0.1144598909 | W126: 45.5 | AC126: 0.5405982919 | AD126: 0.9468151368 | AE126: 52 | AH126: 0.06242001429 | AI126: 0.954380203 | AN126: 19 | AQ126: 0.3445782584 | AR126: 42 | AS126: -999 | AT126: -999 | AV126: =IF(AU126="",NA(),COUNTIF(AU126:$AU$404,AU126)) -> 
H127: 0.6681188531 | I127: 0.2167650498 | K127: 58.5 | T127: 0.396700982 | U127: 0.9771568067 | W127: 44.5 | Y127: -976.1796499 | AC127: 0.6767975576 | AD127: 0.374590192 | AE127: 59 | AH127: 0.4373271801 | AI127: 0.4858309813 | AN127: 46.5 | AQ127: 0.3538302333 | AR127: 42.5 | AS127: -999 | AT127: -999 | AV127: =IF(AU127="",NA(),COUNTIF(AU127:$AU$404,AU127)) -> 
H128: 0.3163954504 | I128: 0.6169751026 | K128: 40 | T128: 0.7704103328 | U128: 0.3436219282 | W128: 64.5 | AC128: 0.7895738669 | AD128: 0.933200065 | AE128: 66 | AH128: 0.1286465563 | AI128: 0.235285271 | AN128: 27 | AQ128: 0.3631693488 | AR128: 43 | AS128: -999 | AT128: -999 | AV128: =IF(AU128="",NA(),COUNTIF(AU128:$AU$404,AU128)) -> 
H129: 0.0464126654 | I129: 0.257333938 | K129: 16 | T129: 0.749533359 | U129: 0.3335471042 | W129: 63 | AC129: 0.782066334 | AD129: 0.5072520711 | AE129: 65.5 | AH129: 0.7682999112 | AI129: 0.09961082414 | AN129: 64.5 | AQ129: 0.3725905358 | AR129: 43.5 | AS129: -999 | AT129: -999 | AV129: =IF(AU129="",NA(),COUNTIF(AU129:$AU$404,AU129)) -> 
H130: 0.7256650813 | I130: 0.246569965 | K130: 61.5 | T130: 0.3776129223 | U130: 0.1323743053 | W130: 43.5 | AC130: 0.3048048206 | AD130: 0.168136362 | AE130: 39.5 | AH130: 0.5363199748 | AI130: 0.7202585228 | AN130: 51.5 | AQ130: 0.3820885778 | AR130: 44 | AS130: -999 | AT130: -999 | AV130: =IF(AU130="",NA(),COUNTIF(AU130:$AU$404,AU130)) -> 
H131: 0.8557567783 | I131: 0.9075381793 | K131: 71 | T131: 0.7736465968 | U131: 0.02559738234 | W131: 65 | AC131: 0.8056366928 | AD131: 0.4011987783 | AE131: 67 | AH131: 0.5911482908 | AI131: 0.592759449 | AN131: 54.5 | AQ131: 0.3916581192 | AR131: 44.5 | AS131: -999 | AT131: -999 | AV131: =IF(AU131="",NA(),COUNTIF(AU131:$AU$404,AU131)) -> 
H132: 0.5910780914 | I132: 0.5981430151 | K132: 54.5 | T132: 0.1561345197 | U132: 0.2270091362 | W132: 29.5 | AC132: 0.9985988922 | AD132: 0.904202763 | AE132: 100 | AH132: 0.1962221302 | AI132: 0.8529797681 | AN132: 32.5 | AQ132: 0.4012936743 | AR132: 45 | AS132: -999 | AT132: -999 | AV132: =IF(AU132="",NA(),COUNTIF(AU132:$AU$404,AU132)) -> 
H133: 0.926427681 | I133: 0.853550259 | K133: 78.5 | T133: 0.3134163059 | U133: 0.1337062009 | W133: 40 | AC133: 0.3845478185 | AD133: 0.1836428382 | AE133: 44 | AH133: 0.7694129683 | AI133: 0.6854459234 | AN133: 64.5 | AQ133: 0.4109896371 | AR133: 45.5 | AS133: -999 | AT133: -999 | AV133: =IF(AU133="",NA(),COUNTIF(AU133:$AU$404,AU133)) -> 
H134: 0.6863924153 | I134: 0.07625052705 | K134: 59.5 | T134: 0.7468595244 | U134: 0.9531642385 | W134: 63 | AC134: 0.7688595243 | AD134: 0.237972144 | AE134: 64.5 | AH134: 0.1443790235 | AI134: 0.1115526445 | AN134: 28.5 | AQ134: 0.4207402906 | AR134: 46 | AS134: -999 | AT134: -999 | AV134: =IF(AU134="",NA(),COUNTIF(AU134:$AU$404,AU134)) -> 
H135: 0.261797566 | I135: 0.06303680316 | K135: 37 | T135: 0.7759622373 | U135: 0.4601959474 | W135: 65 | AC135: 0.5340127237 | AD135: 0.1793065406 | AE135: 51.5 | AH135: 0.8953943588 | AI135: 0.2279662676 | AN135: 75 | AQ135: 0.4305398168 | AR135: 46.5 | AS135: -999 | AT135: -999 | AV135: =IF(AU135="",NA(),COUNTIF(AU135:$AU$404,AU135)) -> 
H136: 0.8510398157 | I136: =MOD(H136*10000013,1) -> 0.2204585411 | K136: =VLOOKUP(H136,$AQ$42:$AR$242,2) -> 70.5 | Q136: =IF(AND(K136<100,$D$13),K136+H137+$X$70,NA()) ->  | S136: =IF(I136*VLOOKUP(K136,$AR$42:$AS$242,2)<VLOOKUP(K136,$AR$42:$AS$242,2)-$AS$40/$AU$40,I136*VLOOKUP(K136,$AR$42:$AS$242,2),NA()) ->  | T136: 0.4569321014 | U136: =MOD(T136*10000013,1) -> 0.9541043825 | W136: =VLOOKUP(T136,$AQ$42:$AR$242,2) -> 47.5 | X136: =IF(AND(W136<100,$D$13),W136+T137+$X$70,NA()) ->  | Y136: =IF(U136*VLOOKUP(W136,$AR$42:$AS$242,2)<VLOOKUP(W136,$AR$42:$AS$242,2)-$AS$40/$AU$40,U136*VLOOKUP(W136,$AR$42:$AS$242,2),NA()) ->  | AC136: 0.7373671122 | AD136: =MOD(AC136*10000013,1) -> 0.7076677717 | AE136: =VLOOKUP(AC136,$AQ$42:$AR$242,2) -> 62.5 | AF136: =IF(AND(AE136<100,$D$13),AE136+AC137+$X$70,NA()) ->  | AG136: =IF(AD136*VLOOKUP(AE136,$AR$42:$AS$242,2)<VLOOKUP(AE136,$AR$42:$AS$242,2)-$AS$40/$AU$40,AD136*VLOOKUP(AE136,$AR$42:$AS$242,2),NA()) ->  | AH136: 0.6397170462 | AI136: =MOD(AH136*10000013,1) -> 0.778035868 | AN136: =VLOOKUP(AH136,$AQ$42:$AR$242,2) -> 57 | AO136: =IF(AND(AN136<100,$D$13),AN136+AH137+$X$70,NA()) ->  | AP136: =IF(AI136*VLOOKUP(AN136,$AR$42:$AS$242,2)<VLOOKUP(AN136,$AR$42:$AS$242,2)-$AS$40/$AU$40,AI136*VLOOKUP(AN136,$AR$42:$AS$242,2),NA()) ->  | AQ136: 0.4403823076 | AR136: 47 | AS136: -999 | AT136: -999 | AV136: =IF(AU136="",NA(),COUNTIF(AU136:$AU$404,AU136)) -> 
H137: =MOD(I136*10000013,1) -> 0.2766155787 | I137: 0.3828148283 | K137: 38 | T137: =MOD(U136*10000013,1) -> 0.2288045324 | U137: 0.2988440879 | W137: 35 | AC137: =MOD(AD136*10000013,1) -> 0.9169494994 | AD137: 0.9143281914 | AE137: 77.5 | AH137: =MOD(AI136*10000013,1) -> 0.7940588929 | AI137: 0.2515247054 | AN137: 66 | AQ137: 0.4502617752 | AR137: 47.5 | AS137: -999 | AT137: -999 | AV137: =IF(AU137="",NA(),COUNTIF(AU137:$AU$404,AU137)) -> 
H138: 0.2596571334 | I138: 0.7092491128 | K138: 37 | T138: 0.7636624314 | U138: 0.241502542 | W138: 64 | AC138: 0.8005602546 | AD138: 0.9533195533 | AE138: 66.5 | AH138: 0.3242192306 | AI138: 0.5204744823 | AN138: 40.5 | AQ138: 0.4601721627 | AR138: 48 | AS138: -999 | AT138: -999 | AV138: =IF(AU138="",NA(),COUNTIF(AU138:$AU$404,AU138)) -> 
H139: 0.3477890678 | I139: 0.1990079917 | K139: 42 | T139: 0.5600199737 | U139: 0.0169144161 | W139: 53 | AC139: 0.9260125645 | AD139: 0.6826683618 | AE139: 78.5 | AH139: 0.5894452669 | AI139: 0.3315149136 | AN139: 54.5 | AQ139: 0.4701073559 | AR139: =AR138+$AS$1 -> 48.5 | AS139: -999 | AT139: -999 | AV139: =IF(AU139="",NA(),COUNTIF(AU139:$AU$404,AU139)) -> 
H140: 0.5041175373 | I140: 0.9264265634 | K140: 50 | T140: 0.3809329607 | U140: 0.5587211438 | W140: 43.5 | AC140: 0.4928170033 | AD140: 0.4394202866 | AE140: 49.5 | AH140: 0.4455814995 | AI140: 0.7874311097 | AN140: 47 | AQ140: 0.4800611942 | AR140: 49 | AS140: -999 | AT140: -999 | AV140: =IF(AU140="",NA(),COUNTIF(AU140:$AU$404,AU140)) -> 
H141: 0.677664835 | I141: 0.1597028412 | K141: 59 | T141: 0.7008982338 | U141: 0.4496883042 | W141: 60.5 | AC141: 0.5781239159 | AD141: 0.6750161387 | AE141: 53.5 | AH141: 0.3335706927 | AI141: 0.2633012719 | AN141: 41 | AQ141: 0.4900274818 | AR141: 49.5 | AS141: -999 | AT141: -999 | AV141: =IF(AU141="",NA(),COUNTIF(AU141:$AU$404,AU141)) -> 
H142: 0.4880617745 | I142: 0.09002372995 | K142: 49 | T142: 0.8881046511 | U142: 0.05659331754 | W142: 74 | AC142: 0.1622361131 | AD142: 0.24008191 | AE142: 30 | AH142: 0.1423689164 | AI142: 0.01501720026 | AN142: 28.5 | AQ142: 0.5 | AR142: 50 | AS142: -999 | AT142: -999 | AV142: =IF(AU142="",NA(),COUNTIF(AU142:$AU$404,AU142)) -> 
H143: 0.4698103853 | I143: 0.9601050653 | K143: 48 | T143: 0.9110981263 | U143: 0.1074959524 | W143: 76.5 | AC143: 0.2215043791 | AD143: 0.6701953746 | AE143: 34.5 | AH143: 0.1978371479 | AI143: 0.05050011352 | AN143: 33 | AQ143: 0.5099725182 | AR143: 50.5 | AS143: -999 | AT143: -999 | AV143: =IF(AU143="",NA(),COUNTIF(AU143:$AU$404,AU143)) -> 
H144: 0.1339294203 | I144: 0.9437082149 | K144: 27.5 | T144: 0.9214232303 | U144: 0.2817041464 | W144: 78 | AC144: 0.4589182921 | AD144: 0.8866917528 | AE144: 47.5 | AH144: 0.7916719355 | AI144: 0.6464242823 | AN144: 66 | AQ144: 0.5199388058 | AR144: 51 | AS144: -999 | AT144: -999 | AV144: =IF(AU144="",NA(),COUNTIF(AU144:$AU$404,AU144)) -> 
H145: 0.4172951765 | I145: 0.190195743 | K145: 45.5 | T145: 0.1263038553 | U145: 0.195247639 | W145: 27 | AC145: 0.05520485714 | AD145: 0.2890709378 | AE145: 18 | AH145: 0.2269376256 | AI145: 0.2057609744 | AN145: 35 | AQ145: 0.5298926441 | AR145: 51.5 | AS145: -999 | AT145: -999 | AV145: =IF(AU145="",NA(),COUNTIF(AU145:$AU$404,AU145)) -> 
H146: 0.9024901278 | I146: 0.01068863645 | K146: 75.5 | T146: 0.9279254414 | U146: 0.4771719165 | W146: 79 | AC146: 0.1357474513 | AD146: 0.2780687846 | AE146: 28 | AH146: 0.4192626514 | AI146: 0.9639552124 | AN146: 45.5 | AQ146: 0.5398278373 | AR146: 52 | AS146: -999 | AT146: -999 | AV146: =IF(AU146="",NA(),COUNTIF(AU146:$AU$404,AU146)) -> 
H147: 0.50347187 | I147: 0.2448875941 | K147: 50 | T147: 0.3683812656 | U147: 0.4444649704 | W147: 43 | AC147: 0.4611375816 | AD147: 0.8109549619 | AE147: 48 | AH147: 0.6552623846 | AI147: 0.364047844 | AN147: 57.5 | AQ147: 0.5497382248 | AR147: 52.5 | AS147: -999 | AT147: -999 | AV147: =IF(AU147="",NA(),COUNTIF(AU147:$AU$404,AU147)) -> 
H148: 0.1248748787 | I148: 0.4101208784 | K148: 26.5 | T148: 0.4818452932 | U148: 0.1959293671 | W148: 49 | AC148: 0.1616719551 | AD148: 0.6531198658 | AE148: 30 | AH148: 0.1722510494 | AI148: 0.733555425 | AN148: 31 | AQ148: 0.5596176924 | AR148: 53 | AS148: -999 | AT148: -999 | AV148: =IF(AU148="",NA(),COUNTIF(AU148:$AU$404,AU148)) -> 
H149: 0.1152575798 | I149: 0.296681229 | K149: 26 | T149: 0.2180340923 | U149: 0.7578121312 | W149: 34 | AC149: 0.1486073621 | AD149: 0.5525130965 | AE149: 29 | AH149: 0.7858051993 | AI149: 0.2084204145 | AN149: 65.5 | AQ149: 0.5694601832 | AR149: 53.5 | AS149: -999 | AT149: -999 | AV149: =IF(AU149="",NA(),COUNTIF(AU149:$AU$404,AU149)) -> 
H150: 0.1471072324 | I150: 0.2360143401 | K150: 29 | T150: 0.1635203101 | U150: 0.2265049405 | W150: 30 | AC150: 0.1474858709 | AD150: 0.6259959973 | AE150: 29 | AH150: 0.8542412557 | AI150: 0.6618441828 | AN150: 71 | AQ150: 0.5792597094 | AR150: 54 | AS150: -999 | AT150: -999 | AV150: =IF(AU150="",NA(),COUNTIF(AU150:$AU$404,AU150)) -> 
H151: 0.4689151235 | I151: 0.3308213986 | K151: 48 | T151: 0.3499602117 | U151: 0.6661271341 | W151: 42 | AC151: 0.1113428362 | AD151: 0.8091707565 | AE151: 25.5 | AH151: 0.4315696098 | AI151: 0.7083153315 | AN151: 46.5 | AQ151: 0.5890103629 | AR151: 54.5 | AS151: -999 | AT151: -999 | AV151: =IF(AU151="",NA(),COUNTIF(AU151:$AU$404,AU151)) -> 
H152: 0.2871345766 | I152: 0.4986381866 | K152: 38.5 | T152: 0.0007977820933 | U152: 0.8313040324 | AC152: 0.08411021903 | AD152: 0.2837485708 | AE152: 22 | AH152: 0.5229877867 | AI152: 0.6656458266 | AN152: 51 | AQ152: 0.5987063257 | AR152: 55 | AS152: -999 | AT152: -999 | AV152: =IF(AU152="",NA(),COUNTIF(AU152:$AU$404,AU152)) -> 
H153: 0.3483342715 | I153: 0.2429532446 | K153: 42 | T153: 0.1305078901 | U153: 0.59795307 | W153: 27.5 | AC153: 0.3970277198 | AD153: 0.3590193726 | AE153: 44.5 | AH153: 0.9194751717 | AI153: 0.6703274436 | AN153: 78 | AQ153: 0.6083418808 | AR153: 55.5 | AS153: -999 | AT153: -999 | AV153: =IF(AU153="",NA(),COUNTIF(AU153:$AU$404,AU153)) -> 
H154: 0.6043593772 | I154: 0.6284275986 | K154: 55 | T154: 0.4729410149 | U154: 0.2973902412 | W154: 48.5 | AC154: 0.3933742233 | AD154: 0.3464856185 | AE154: 44.5 | AH154: 0.1505517997 | AI154: 0.9540210254 | AN154: 29 | AQ154: 0.6179114222 | AR154: 56 | AS154: -999 | AT154: -999 | AV154: =IF(AU154="",NA(),COUNTIF(AU154:$AU$404,AU154)) -> 
H155: 0.1558129974 | I155: 0.9992785491 | K155: 29.5 | S155: -998.2792706 | T155: 0.277832035 | U155: 0.9615693577 | W155: 38 | AC155: 0.6893320568 | AD155: 0.5292226411 | AE155: 59.5 | AH155: 0.6567637064 | AI155: 0.6014910527 | AN155: 58 | AQ155: 0.6274094642 | AR155: 56.5 | AS155: -999 | AT155: -999 | AV155: =IF(AU155="",NA(),COUNTIF(AU155:$AU$404,AU155)) -> 
H156: 0.4816704281 | I156: 0.5423900224 | K156: 49 | T156: 0.07703557983 | U156: 0.7997666188 | W156: 21 | AC156: 0.2912965603 | AD156: 0.3900280632 | AE156: 39 | AH156: 0.3459573425 | AI156: 0.9227980264 | AN156: 42 | AQ156: 0.6368306512 | AR156: 57 | AS156: -999 | AT156: -999 | AV156: =IF(AU156="",NA(),COUNTIF(AU156:$AU$404,AU156)) -> 
H157: 0.275338728 | I157: 0.859211985 | K157: 38 | T157: 0.584550444 | U157: 0.03952299431 | W157: 54 | AC157: 0.7024434693 | AD157: 0.824922774 | AE157: 60.5 | AH157: 0.2599055506 | AI157: 0.8850611635 | AN157: 37 | AQ157: 0.6461697667 | AR157: 57.5 | AS157: -999 | AT157: -999 | AV157: =IF(AU157="",NA(),COUNTIF(AU157:$AU$404,AU157)) -> 
H158: 0.01997410133 | I158: 0.2730114199 | K158: 8.5 | T158: 0.4568955638 | U158: 0.57715692 | W158: 47.5 | AC158: 0.4638666101 | AD158: 0.1310659684 | AE158: 48 | AH158: 0.1403476037 | AI158: 0.8616039045 | AN158: 28 | AQ158: 0.6554217416 | AR158: 58 | AS158: -999 | AT158: -999 | AV158: =IF(AU158="",NA(),COUNTIF(AU158:$AU$404,AU158)) -> 
H159: 0.7483695932 | I159: 0.6605373658 | K159: 63 | T159: 0.7029000558 | U159: 0.6956598051 | W159: 60.5 | AC159: 0.3880984075 | AD159: 0.1206467487 | AE159: 44 | AH159: 0.2460058071 | AI159: 0.268794734 | AN159: 36 | AQ159: 0.6645816626 | AR159: 58.5 | AS159: -999 | AT159: -999 | AV159: =IF(AU159="",NA(),COUNTIF(AU159:$AU$404,AU159)) -> 
H160: 0.2452255972 | I160: 0.1596625187 | K160: 36 | T160: 0.09446981922 | U160: 0.4202868529 | W160: 23.5 | AC160: 0.05532570556 | AD160: 0.7748147883 | AE160: 18 | AH160: 0.8346411623 | AI160: 0.4733958133 | AN160: 69 | AQ160: 0.6736447797 | AR160: 59 | AS160: -999 | AT160: -999 | AV160: =IF(AU160="",NA(),COUNTIF(AU160:$AU$404,AU160)) -> 
H161: 0.262115676 | I161: 0.1670638956 | K161: 37 | T161: 0.9923931994 | U161: 0.8946556933 | W161: 98.5 | AC161: 0.9551133998 | AD161: 0.4142125584 | AE161: 83.5 | AH161: 0.2867105938 | AI161: 0.6657319255 | AN161: 38.5 | AQ161: 0.6826065134 | AR161: 59.5 | AS161: -999 | AT161: -999 | AV161: =IF(AU161="",NA(),COUNTIF(AU161:$AU$404,AU161)) -> 
H162: 0.1279601939 | I162: 0.6025050618 | K162: 27 | T162: 0.5637482144 | U162: 0.4726653285 | W162: 53 | AC162: 0.9689483829 | AD162: 0.4251716174 | AE162: 87 | AH162: 0.9096882381 | AI162: 0.206492234 | AN162: 76.5 | AQ162: 0.6914624613 | AR162: 60 | AS162: -999 | AT162: -999 | AV162: =IF(AU162="",NA(),COUNTIF(AU162:$AU$404,AU162)) -> 
H163: 0.4503202625 | I163: 0.4787824191 | K163: 47.5 | T163: 0.4299738444 | U163: 0.03404789045 | W163: 46 | AC163: 0.7014163025 | AD163: 0.143135462 | AE163: 60.5 | AH163: 0.02461329475 | AI163: 0.2674773522 | AN163: 10.5 | AQ163: 0.7002084045 | AR163: 60.5 | AS163: -999 | AT163: -999 | AV163: =IF(AU163="",NA(),COUNTIF(AU163:$AU$404,AU163)) -> 
H164: 0.415324498 | I164: 0.3788980581 | K164: 45.5 | T164: 0.3471678831 | U164: 0.3438657112 | W164: 42 | AC164: 0.4803236313 | AD164: 0.5573714413 | AE164: 49 | AH164: 0.9989269413 | AI164: 0.3991042264 | AN164: 100 | AQ164: 0.7088403132 | AR164: 61 | AS164: -999 | AT164: -999 | AV164: =IF(AU164="",NA(),COUNTIF(AU164:$AU$404,AU164)) -> 
H165: 0.5065410919 | I165: 0.5045216717 | K165: 50 | T165: 0.5826738514 | U165: 0.08876620606 | W165: 54 | AC165: 0.6585775502 | AD165: 0.06353423372 | AE165: 58 | AH165: 0.4521608092 | AI165: 0.9699813314 | AN165: 47.5 | AQ165: 0.7173543515 | AR165: 61.5 | AS165: -999 | AT165: -999 | AV165: =IF(AU165="",NA(),COUNTIF(AU165:$AU$404,AU165)) -> 
H166: 0.2756076939 | I166: 0.522304032 | K166: 38 | T166: 0.2145194747 | U166: 0.5353070684 | W166: 34 | AC166: 0.1631361432 | AD166: 0.5531433858 | AE166: 30 | AH166: 0.923539523 | AI166: 0.236366678 | AN166: 78.5 | AQ166: 0.7257468822 | AR166: 62 | AS166: -999 | AT166: -999 | AV166: =IF(AU166="",NA(),COUNTIF(AU166:$AU$404,AU166)) -> 
H167: 0.1099316068 | I167: 0.4971045293 | K167: 25 | T167: 0.6427692212 | U167: 0.5681642778 | W167: 57 | AC167: 0.04884140566 | AD167: 0.6915374137 | AE167: 16.5 | AH167: 0.8530598022 | AI167: 0.1118211336 | AN167: 70.5 | AQ167: 0.734014471 | AR167: 62.5 | AS167: -999 | AT167: -999 | AV167: =IF(AU167="",NA(),COUNTIF(AU167:$AU$404,AU167)) -> 
H168: 0.7552727945 | I168: 0.7636952735 | K168: 63.5 | T168: 0.1643534042 | U168: 0.1785354204 | W168: 30 | AC168: 0.1274475642 | AD168: 0.2983669676 | AE168: 27 | AH168: 0.7901086248 | AI168: 0.5198695548 | AN168: 66 | AQ168: 0.7421538892 | AR168: 63 | AS168: -999 | AT168: -999 | AV168: =IF(AU168="",NA(),COUNTIF(AU168:$AU$404,AU168)) -> 
H169: 0.6635222025 | I169: 0.6510042585 | K169: 58 | T169: 0.5254363455 | U169: 0.2855508216 | W169: 51 | AC169: 0.5546572097 | AD169: 0.3071895577 | AE169: 52.5 | AH169: 0.3061829545 | AI169: 0.5249822326 | AN169: 39.5 | AQ169: 0.7501621175 | AR169: 63.5 | AS169: -999 | AT169: -999 | AU169: =IF(A68="","",ROUND(A68/$D$21,0)) ->  | AV169: =IF(AU169="",NA(),COUNTIF(AU169:$AU$404,AU169)) ->  | AW169: =AU169*$D$21 ->  | AX169: =IF(AND($AU$7,$AW$2),26+$D$20/2-AV169*$D$20,NA()) -> 
H170: 0.04848789051 | I170: 0.5354600884 | K170: 16.5 | T170: 0.9278861023 | U170: 0.08600499108 | W170: 79 | AC170: 0.5704777427 | AD170: 0.8432283439 | AE170: 53.5 | AH170: 0.150773529 | AI170: 0.2496891506 | AN170: 29 | AQ170: =NORMDIST(AR170,$U$6,$U$8,TRUE) -> 0.7580363478 | AR170: 64 | AS170: =IF($AS$5,NORMDIST(AR170,$U$6,$U$8,FALSE),-999) -> -999 | AT170: =IF($AW$3,26-$AW$40*NORMDIST(AR170,$U$6,$U$8/SQRT($H$12),FALSE),-999) -> -999 | AV170: =IF(AU170="",NA(),COUNTIF(AU170:$AU$404,AU170)) -> 
H171: 0.8450014777 | I171: 0.7625007667 | K171: 70 | T171: 0.02890825644 | U171: 0.9402208813 | W171: 12 | AC171: 0.4007106312 | AD171: 0.5208574869 | AE171: 44.5 | AH171: 0.7519752122 | AI171: 0.898139555 | AN171: 63.5 | AQ171: 0.7657739848 | AR171: =AR170+$AS$1 -> 64.5 | AS171: -999 | AT171: -999 | AV171: =IF(AU171="",NA(),COUNTIF(AU171:$AU$404,AU171)) -> 
H172: 0.5791574009 | I172: 0.5378090478 | K172: 53.5 | T172: 0.03540626541 | U172: 0.114359457 | W172: 13.5 | AC172: 0.6398859806 | AD172: 0.1248765625 | AE172: 57 | AH172: 0.2258864082 | AI172: 0.01891933754 | AN172: 34.5 | AQ172: 0.7733726476 | AR172: 65 | AS172: -999 | AT172: -999 | AV172: =IF(AU172="",NA(),COUNTIF(AU172:$AU$404,AU172)) -> 
H173: 0.4699974842 | I173: 0.9523368515 | K173: 48 | T173: 0.05713087693 | U173: 0.5119870789 | W173: 18 | AC173: 0.2484549172 | AD173: 0.4021365382 | AE173: 36 | AH173: 0.6213600375 | AI173: 0.4524387307 | AN173: 56 | AQ173: 0.7808301702 | AR173: 65.5 | AS173: -999 | AT173: -999 | AV173: =IF(AU173="",NA(),COUNTIF(AU173:$AU$404,AU173)) -> 
H174: 0.8954533227 | I174: 0.8676812388 | K174: 75 | T174: 0.4451811053 | U174: 0.8402131982 | W174: 47 | AC174: 0.6095522828 | AD174: 0.752579812 | AE174: 55.5 | AH174: 0.1891685762 | AI174: 0.2207028158 | AN174: 32 | AQ174: 0.7881446014 | AR174: 66 | AS174: -999 | AT174: -999 | AV174: =IF(AU174="",NA(),COUNTIF(AU174:$AU$404,AU174)) -> 
H175: 0.6678589769 | I175: 0.4508744515 | K175: 58.5 | T175: 0.9049192704 | U175: 0.4682108648 | W175: 76 | AC175: 0.903142143 | AD175: 0.1712568142 | AE175: 75.5 | AH175: 0.02714565769 | AI175: 0.9297773428 | AN175: 11.5 | AQ175: 0.7953142047 | AR175: 66.5 | AS175: -999 | AT175: -999 | AV175: =IF(AU175="",NA(),COUNTIF(AU175:$AU$404,AU175)) -> 
H176: 0.3768464811 | I176: 0.7101505138 | K176: 43.5 | T176: 0.7348625995 | U176: 0.5484325476 | W176: 62.5 | AC176: 0.3678586073 | AD176: 0.8553816713 | AE176: 43 | AH176: 0.5153667368 | AI176: 0.0677623637 | AN176: 50.5 | AQ176: 0.8023374569 | AR176: 67 | AS176: -999 | AT176: -999 | AV176: =IF(AU176="",NA(),COUNTIF(AU176:$AU$404,AU176)) -> 
H177: 0.3699366637 | I177: 0.4457508959 | K177: 43 | T177: 0.605613891 | U177: 0.7833337672 | W177: 55 | AC177: 0.8333544619 | AD177: 0.452989433 | AE177: 69 | AH177: 0.517931316 | AI177: 0.8935861774 | AN177: 50.5 | AQ177: 0.8092130471 | AR177: 67.5 | AS177: -999 | AT177: -999 | AV177: =IF(AU177="",NA(),COUNTIF(AU177:$AU$404,AU177)) -> 
H178: 0.7536377795 | I178: 0.592331741 | K178: 63.5 | T178: 0.8553937413 | U178: 0.5329170413 | W178: 71 | AC178: 0.2184701152 | AD178: 0.9922573604 | AE178: 34 | AG178: -991.265103 | AH178: 0.3904092349 | AI178: 0.4244320877 | AN178: 44 | AQ178: 0.8159398747 | AR178: 68 | AS178: -999 | AT178: -999 | AV178: =IF(AU178="",NA(),COUNTIF(AU178:$AU$404,AU178)) -> 
H179: 0.1103644557 | I179: 0.9920351543 | K179: 25.5 | S179: -991.0431191 | T179: 0.3412368335 | U179: 0.7709086426 | W179: 41.5 | AC179: 0.5030353554 | AD179: 0.09305277839 | AE179: 50 | AH179: 0.3945135213 | AI179: 0.3421104737 | AN179: 44.5 | AQ179: 0.8225170463 | AR179: 68.5 | AS179: -999 | AT179: -999 | AV179: =IF(AU179="",NA(),COUNTIF(AU179:$AU$404,AU179)) -> 
H180: 0.4389894493 | I180: 0.1997870542 | K180: 46.5 | T180: 0.4474147893 | U180: 0.7098806687 | W180: 47 | AC180: 0.9936164208 | AD180: 0.1247699894 | AE180: 99.5 | AH180: 0.1840623058 | AI180: 0.4511886723 | AN180: 32 | AQ180: 0.8289438737 | AR180: 69 | AS180: -999 | AT180: -999 | AV180: =IF(AU180="",NA(),COUNTIF(AU180:$AU$404,AU180)) -> 
H181: 0.1393407173 | I181: 0.984884087 | K181: 28 | S181: -983.8992029 | T181: 0.9151480831 | U181: 0.7281309254 | W181: 77 | AC181: 0.5160208829 | AD181: 0.5370187499 | AE181: 50.5 | AH181: 0.588792298 | AI181: 0.6341911741 | AN181: 54 | AQ181: 0.83521987 | AR181: 69.5 | AS181: -999 | AT181: -999 | AV181: =IF(AU181="",NA(),COUNTIF(AU181:$AU$404,AU181)) -> 
H182: 0.6734563001 | I182: 0.7554321028 | K182: 58.5 | T182: 0.7201695181 | U182: 0.543633122 | W182: 61.5 | AC182: 0.4798728414 | AD182: 0.6522268094 | AE182: 48.5 | AH182: 0.9850863256 | AI182: 0.06168263033 | AN182: 93 | AQ182: 0.8413447461 | AR182: 70 | AS182: -999 | AT182: -999 | AV182: =IF(AU182="",NA(),COUNTIF(AU182:$AU$404,AU182)) -> 
H183: 0.8489095159 | I183: 0.1946986951 | K183: 70.5 | T183: 0.2872017659 | U183: 0.3928698786 | W183: 38.5 | AC183: 0.5730709322 | AD183: 0.7717190124 | AE183: 53.5 | AH183: 0.105177436 | AI183: 0.7275461741 | AN183: 24.5 | AQ183: 0.8473184062 | AR183: 70.5 | AS183: -999 | AT183: -999 | AV183: =IF(AU183="",NA(),COUNTIF(AU183:$AU$404,AU183)) -> 
H184: 0.4820169695 | I184: 0.9609423019 | K184: 49 | T184: 0.8929114677 | U184: 0.2848610468 | W184: 74.5 | AC184: 0.1564416476 | AD184: 0.509335462 | AE184: 29.5 | AH184: 0.1988920607 | AI184: 0.1922695525 | AN184: 33 | AQ184: 0.8531409436 | AR184: 71 | AS184: -999 | AT184: -999 | AV184: =IF(AU184="",NA(),COUNTIF(AU184:$AU$404,AU184)) -> 
H185: 0.5112418719 | I185: 0.3647803701 | K185: 50.5 | T185: 0.1714023985 | U185: 0.2131998427 | W185: 31 | AC185: 0.2414004691 | AD185: 0.8291512467 | AE185: 35.5 | AH185: 0.02449474111 | AI185: 0.7295515724 | AN185: 10.5 | AQ185: 0.8588126358 | AR185: 71.5 | AS185: -999 | AT185: -999 | AV185: =IF(AU185="",NA(),COUNTIF(AU185:$AU$404,AU185)) -> 
H186: 0.4436051734 | I186: 0.5006590821 | K186: 47 | T186: 0.1988101937 | U186: 0.5214092918 | W186: 33 | AC186: 0.2459333129 | AD186: 0.3263602294 | AE186: 36 | AH186: 0.2076969184 | AI186: 0.8840413578 | AN186: 33.5 | AQ186: 0.8643339391 | AR186: 72 | AS186: -999 | AT186: -999 | AV186: =IF(AU186="",NA(),COUNTIF(AU186:$AU$404,AU186)) -> 
H187: 0.3294170089 | I187: 0.3714871444 | K187: 41 | T187: 0.6960611381 | U187: 0.4294314869 | W187: 60 | AC187: 0.5367107876 | AD187: 0.852885399 | AE187: 51.5 | AH187: 0.07039228454 | AI187: 0.7605229206 | AN187: 20.5 | AQ187: 0.8697054829 | AR187: 72.5 | AS187: -999 | AT187: -999 | AV187: =IF(AU187="",NA(),COUNTIF(AU187:$AU$404,AU187)) -> 
H188: 0.2731409557 | I188: 0.1079961397 | K188: 37.5 | T188: 0.4513575174 | U188: 0.04156215861 | W188: 47.5 | AC188: 0.07764776424 | AD188: 0.6517782845 | AE188: 21.5 | AH188: 0.0931811966 | AI188: 0.1773575433 | AN188: 23.5 | AQ188: 0.8749280644 | AR188: 73 | AS188: -999 | AT188: -999 | AV188: =IF(AU188="",NA(),COUNTIF(AU188:$AU$404,AU188)) -> 
H189: 0.8007036038 | I189: 0.4468899406 | K189: 66.5 | T189: 0.1264520325 | U189: 0.9686430581 | W189: 27 | AC189: 0.3177207597 | AD189: 0.7269699313 | AE189: 40.5 | AH189: 0.7382466532 | AI189: 0.1294964738 | AN189: 62.5 | AQ189: 0.8800026421 | AR189: 73.5 | AS189: -999 | AT189: -999 | AV189: =IF(AU189="",NA(),COUNTIF(AU189:$AU$404,AU189)) -> 
H190: 0.2160619386 | I190: 0.1943456866 | K190: 34 | T190: 0.1732737757 | U190: 0.009824652225 | W190: 31 | AC190: 0.7633556314 | AD190: 0.2374359407 | AE190: 64 | AH190: 0.4216443338 | AI190: 0.8188764341 | AN190: 46 | AQ190: 0.8849303298 | AR190: 74 | AS190: -999 | AT190: -999 | AV190: =IF(AU190="",NA(),COUNTIF(AU190:$AU$404,AU190)) -> 
H191: 0.3923410363 | I191: 0.4639288224 | K191: 44.5 | T191: 0.6499682702 | U191: 0.1517116316 | W191: 57.5 | AC191: 0.4931980856 | AD191: 0.267338071 | AE191: 49.5 | AH191: 0.9865691997 | AI191: 0.8225104399 | AN191: 94 | AQ191: 0.8897123897 | AR191: 74.5 | AS191: -999 | AT191: -999 | AV191: =IF(AU191="",NA(),COUNTIF(AU191:$AU$404,AU191)) -> 
H192: 0.2553545721 | I192: 0.04048470035 | K192: 36.5 | T192: 0.2879140712 | U192: 0.4552037306 | W192: 38.5 | AC192: 0.1855794974 | AD192: 0.3862049021 | AE192: 32 | AH192: 0.09166115895 | AI192: 0.7810864337 | AN192: 23 | AQ192: 0.8943502263 | AR192: 75 | AS192: -999 | AT192: -999 | AV192: =IF(AU192="",NA(),COUNTIF(AU192:$AU$404,AU192)) -> 
H193: 0.5298206396 | I193: 0.2840692438 | K193: 51 | T193: 0.2237784304 | U193: 0.2128443606 | W193: 34.5 | AC193: 0.04149054363 | AD193: 0.9757140614 | AE193: 15 | AG193: -974.7383473 | AH193: 0.4909122922 | AI193: 0.30338623 | AN193: 49.5 | AQ193: 0.898845379 | AR193: 75.5 | AS193: -999 | AT193: -999 | AV193: =IF(AU193="",NA(),COUNTIF(AU193:$AU$404,AU193)) -> 
H194: 0.1310853846 | I194: 0.5504811741 | K194: 27.5 | T194: 0.3731745221 | U194: 0.07198955491 | W194: 43.5 | AC194: 0.2983751483 | AD194: 0.3621385135 | AE194: 39 | AH194: 0.2442381419 | AI194: 0.5943372734 | AN194: 36 | AQ194: 0.9031995154 | AR194: 76 | AS194: -999 | AT194: -999 | AV194: =IF(AU194="",NA(),COUNTIF(AU194:$AU$404,AU194)) -> 
H195: 0.8976669498 | I195: 0.1674582995 | K195: 75 | T195: 0.4849827327 | U195: 0.6316097267 | W195: 49 | AC195: 0.8425572403 | AD195: 0.3560194112 | AE195: 70 | AH195: 0.4602755643 | AI195: 0.6270097084 | AN195: 48 | AQ195: 0.9074144243 | AR195: 76.5 | AS195: -999 | AT195: -999 | AV195: =IF(AU195="",NA(),COUNTIF(AU195:$AU$404,AU195)) -> 
H196: 0.1724322326 | I196: 0.5681003667 | K196: 31 | T196: 0.477898512 | U196: 0.3330367394 | W196: 48.5 | AC196: 0.7406128235 | AD196: 0.8631280102 | AE196: 62.5 | AH196: 0.235469643 | AI196: 0.4913712628 | AN196: 35.5 | AQ196: 0.9114920086 | AR196: 77 | AS196: -999 | AT196: -999 | AV196: =IF(AU196="",NA(),COUNTIF(AU196:$AU$404,AU196)) -> 
H197: 0.05271895602 | I197: 0.245580975 | K197: 17.5 | T197: 0.7232692875 | U197: 0.2774687894 | W197: 61.5 | AC197: 0.3224998601 | AD197: 0.7932791449 | AE197: 40.5 | AH197: 0.0160121657 | AI197: 0.8651124425 | AN197: 7 | AQ197: 0.9154342776 | AR197: 77.5 | AS197: -999 | AT197: -999 | AV197: =IF(AU197="",NA(),COUNTIF(AU197:$AU$404,AU197)) -> 
H198: 0.9422155507 | I198: 0.7557110526 | K198: 81 | T198: 0.5007829405 | U198: 0.9155456014 | W198: 50 | AC198: 0.7617584653 | AD198: 0.5560587682 | AE198: 64 | AH198: 0.6716941632 | AI198: 0.3643545397 | AN198: 58.5 | AQ198: 0.9192433408 | AR198: 78 | AS198: -999 | AT198: -999 | AV198: =IF(AU198="",NA(),COUNTIF(AU198:$AU$404,AU198)) -> 
H199: 0.3499113508 | I199: 0.05641639605 | K199: 42 | T199: 0.9160703458 | U199: 0.3668064363 | W199: 77.5 | AC199: 0.9105939157 | AD199: 0.9950280525 | AE199: 76.5 | AG199: -994.0330244 | AH199: 0.1332350112 | AI199: 0.8445529528 | AN199: 27.5 | AQ199: 0.9229213994 | AR199: 78.5 | AS199: -999 | AT199: -999 | AV199: =IF(AU199="",NA(),COUNTIF(AU199:$AU$404,AU199)) -> 
H200: 0.6939296015 | I200: =MOD(H200*10000013,1) -> 0.03569177166 | K200: =VLOOKUP(H200,$AQ$42:$AR$242,2) -> 60 | Q200: =IF(AND(K200<100,$D$13),K200+H201+$X$70,NA()) ->  | S200: =IF(I200*VLOOKUP(K200,$AR$42:$AS$242,2)<VLOOKUP(K200,$AR$42:$AS$242,2)-$AS$40/$AU$40,I200*VLOOKUP(K200,$AR$42:$AS$242,2),NA()) ->  | T200: 0.1317844726 | U200: =MOD(T200*10000013,1) -> 0.4393434115 | W200: =VLOOKUP(T200,$AQ$42:$AR$242,2) -> 27.5 | X200: =IF(AND(W200<100,$D$13),W200+T201+$X$70,NA()) ->  | Y200: =IF(U200*VLOOKUP(W200,$AR$42:$AS$242,2)<VLOOKUP(W200,$AR$42:$AS$242,2)-$AS$40/$AU$40,U200*VLOOKUP(W200,$AR$42:$AS$242,2),NA()) ->  | AC200: 0.4601549692 | AD200: =MOD(AC200*10000013,1) -> 0.6744665541 | AE200: =VLOOKUP(AC200,$AQ$42:$AR$242,2) -> 47.5 | AF200: =IF(AND(AE200<100,$D$13),AE200+AC201+$X$70,NA()) ->  | AG200: =IF(AD200*VLOOKUP(AE200,$AR$42:$AS$242,2)<VLOOKUP(AE200,$AR$42:$AS$242,2)-$AS$40/$AU$40,AD200*VLOOKUP(AE200,$AR$42:$AS$242,2),NA()) ->  | AH200: 0.5071505941 | AI200: =MOD(AH200*10000013,1) -> 0.5344083197 | AN200: =VLOOKUP(AH200,$AQ$42:$AR$242,2) -> 50 | AO200: =IF(AND(AN200<100,$D$13),AN200+AH201+$X$70,NA()) ->  | AP200: =IF(AI200*VLOOKUP(AN200,$AR$42:$AS$242,2)<VLOOKUP(AN200,$AR$42:$AS$242,2)-$AS$40/$AU$40,AI200*VLOOKUP(AN200,$AR$42:$AS$242,2),NA()) ->  | AQ200: 0.9264707404 | AR200: 79 | AS200: -999 | AT200: -999 | AV200: =IF(AU200="",NA(),COUNTIF(AU200:$AU$404,AU200)) -> 
... 272 more rows

Sheet Normal z t
D1: Normal z t | J1: =($AI$14+$AI$16)/100000000 -> 8.238e-05 | K1: =$J$1 -> 8.238e-05 | L1: 8.238e-05 | M1: 8.238e-05 | N1: 8.238e-05 | O1: 8.238e-05 | P1: 8.238e-05 | Q1: 8.238e-05 | R1: 8.238e-05 | S1: 8.238e-05 | T1: 8.238e-05 | U1: 8.238e-05 | V1: 8.238e-05 | W1: 8.238e-05 | X1: 8.238e-05 | Y1: 8.238e-05 | Z1: 8.238e-05 | AA1: 8.238e-05 | AB1: 8.238e-05 | AH1: z R tail | AI1: =1-NORMDIST(U29,AI17,AI18,TRUE) -> 0.0129402575 | AJ1: t R tail | AK1: =IF(U29>=0,TDIST(U29,AI14,1),1-TDIST(-U29,AI14,1)) -> 0.0250058855 | AL1: for disp | AM1: =IF($AI$13=1,AI1,AK1) -> 0.0250058855 | AN1: disp 1 tail values | AQ1: 1 tail | AR1: 2 tail
D2: Display normal, t distributions | J2: =$J$1 -> 8.238e-05 | AB2: =$J$1 -> 8.238e-05 | AH2: z L area | AI2: =1-AI1 -> 0.9870597425 | AJ2: t L area | AK2: =1-AK1 -> 0.9749941145 | AL2: for disp | AM2: =IF($AI$13=1,AI2,AK2) -> 0.9749941145 | AN2: x offset | AO2: 0.435 | AP2: z height | AQ2: =IF($AI$15=1,NORMDIST(AK13,$AI$17,$AI$18,FALSE),NA()) ->  | AR2: =IF($AI$15=2,NORMDIST(AK14,$AI$17,$AI$18,FALSE),NA()) -> 0.03334222947
D3: Find areas, critical values, | J3: =$J$1 -> 8.238e-05 | AB3: 8.238e-05 | AH3: z 2 tails | AI3: =MIN(1,2*AI1) -> 0.025880515 | AJ3: t 2 tails | AK3: =MIN(1,2*AK1) -> 0.05001177101 | AL3: for disp | AM3: =IF($AI$13=1,AI3,AK3) -> 0.05001177101 | AN3: =IF(IF($AI$11,AI15=1),U29+AO2,NA()) ->  | AO3: 0.02 | AP3: for t height
E4: and heights | J4: 8.238e-05 | AB4: 8.238e-05 | AH4: z central | AI4: =1-AI3 -> 0.974119485 | AJ4: t central | AK4: =1-AK3 -> 0.949988229 | AL4: for disp | AM4: =IF($AI$13=1,AI4,AK4) -> 0.949988229 | AN4: =IF(IF($AI$11,AI15=1),U29-AO2,NA()) ->  | AO4: =AO3 -> 0.02 | AQ4: cursor - | AR4: cursor + | AS4: t - area | AT4: t + area | AU4: t height
J5: 8.238e-05 | AB5: 8.238e-05 | AH5: disp 2 tail values | AL5: tail for 2 | AM5: =MIN(0.5,AM1) -> 0.0250058855 | AP5: 1 tail | AQ5: =IF($AI$15=1,AK13-$AL$19,NA()) ->  | AR5: =IF($AI$15=1,AK13+$AL$19,NA()) ->  | AS5: =IF(AQ5<0,TDIST(-AQ5,$AI$14,1),1-TDIST(AQ5,$AI$14,1)) ->  | AT5: =IF(AR5<0,TDIST(-AR5,$AI$14,1),1-TDIST(AR5,$AI$14,1)) ->  | AU5: =IF($AI$13>1,(AT5-AS5)/(2*$AL$19),NA()) -> 
B6: 1 | C6: Curves | J6: 8.238e-05 | AB6: 8.238e-05 | AH6: =IF(IF($AI$11,$AI$15=2),AK15-AO2,NA()) -> -2.663 | AI6: =AO3 -> 0.02 | AK6: Disp mean line | AL6: FALSE | AM6: For SD lines | AP6: 2 tail | AQ6: =IF($AI$15=2,AK14-$AL$19,NA()) -> 2.22799 | AR6: =IF($AI$15=2,AK14+$AL$19,NA()) -> 2.22801 | AS6: =IF(AQ6<0,TDIST(-AQ6,$AI$14,1),1-TDIST(AQ6,$AI$14,1)) -> 0.9749936905 | AT6: =IF(AR6<0,TDIST(-AR6,$AI$14,1),1-TDIST(AR6,$AI$14,1)) -> 0.9749945384 | AU6: =IF($AI$13>1,(AT6-AS6)/(2*$AL$19),NA()) -> 0.04239462124
D7: z | J7: 8.238e-05 | AB7: 8.238e-05 | AH7: =IF(IF($AI$11,AI15=2),0,NA()) -> 0 | AI7: 0.05 | AK7: Disp SD lines | AL7: FALSE | AM7: =IF($AL$7,$AI$17+AO7*$AI$18,NA()) ->  | AN7: 0 | AO7: -6 | AQ7: extra x offset, disp hts | AR7: 0.3
J8: 8.238e-05 | AB8: 8.238e-05 | AH8: =IF(IF($AI$11,$AI$15=2),AK14+AO2,NA()) -> 2.663 | AI8: =AI6 -> 0.02 | AK8: No. points | AL8: 1200 | AN8: 0 | AO8: -5 | AP8: disp heights | AQ8: z | AR8: z | AS8: t | AT8: t
D9: t | J9: 8.238e-05 | AB9: 8.238e-05 | AH9: =AH8 -> 2.663 | AI9: 0.1 | AK9: X max | AL9: 6 | AN9: 0 | AO9: -4 | AP9: 1 tail | AQ9: =IF(AND($AI$15=1,$AI$12,$AI$13=1),U29+$AR$7,NA()) ->  | AR9: 0.408 | AS9: =IF(AND($AI$15=1,$AI$12,$AI$13>1),U29+$AR$7,NA()) ->  | AT9: =AR9 -> 0.408
F10: df | G10: =IF(AI13>1,AI14,"") -> 10 | J10: 8.238e-05 | AB10: 8.238e-05 | AH10: =AH9 -> 2.663 | AI10: 0.13 | AK10: X step size | AL10: =(AL9/AL8)*2 -> 0.01 | AN10: 0 | AO10: -3 | AP10: 2 tails | AQ10: =IF(AND($AI$12,$AI$13=1),AK14+$AR$7,NA()) ->  | AR10: =AR9 -> 0.408 | AS10: =IF(AND($AI$12,$AI$13>1),AK14+$AR$7,NA()) ->  | AT10: =AT9 -> 0.408
D11: t (and z) | J11: 8.238e-05 | AB11: 8.238e-05 | AH11: areas? | AI11: TRUE | AN11: 0 | AO11: -2 | AQ11: =IF(AND($AI$12,$AI$13=1),AK15-$AR$7,NA()) ->  | AR11: =AR9 -> 0.408 | AS11: =IF(AND($AI$12,$AI$13>1),AK15-$AR$7,NA()) ->  | AT11: =AT9 -> 0.408
J12: 8.238e-05 | AB12: 8.238e-05 | AH12: heights? | AI12: FALSE | AK12: xcursordisp | AL12: y | AN12: 0 | AO12: -1 | AP12: For greater accuracy
B13: 3 | C13: Lines | J13: 8.238e-05 | AB13: 8.238e-05 | AH13: Curve? | AI13: 2 | AJ13: 1 tail | AK13: =IF($AI$15=1,U29,NA()) ->  | AL13: 0 | AN13: 0 | AO13: 0 | AQ13: Displayed tail
J14: 8.238e-05 | AB14: 8.238e-05 | AH14: df | AI14: 10 | AJ14: 2 tails | AK14: =IF($AI$15=2,MAX(0,U29),NA()) -> 2.228 | AL14: 0 | AN14: 0 | AO14: 1 | AP14: Accurate | AQ14: =IF(AI15=1,IF(AI13=1,AI1,AK1),IF(AI13=1,AI3,AK3)) -> 0.05001177101 | AR14: z 1 tail | AS14: z 2 tail | AT14: t 1 tail | AU14: t 2 tail | AV14: display
J15: 8.238e-05 | AB15: 8.238e-05 | AH15: tails | AI15: 2 | AK15: =IF($AI$15=2,MIN(0,-U29),NA()) -> -2.228 | AL15: 0 | AN15: 0 | AO15: 2 | AP15: Rounded | AQ15: =ROUND(AQ14,4) -> 0.05 | AR15: =NORMINV(1-AQ15,AI17,AI18) -> 1.644853627 | AS15: =NORMINV(1-AQ15/2,AI17,AI18) -> 1.959963985 | AT15: =IF(AQ15<=0.5,TINV(2*AQ15,AI14),-TINV(2*(1-AQ15),AI14)) -> 1.812461102 | AU15: =TINV(AQ15,AI14) -> 2.228138842 | AV15: =IF(AI15=1,IF(AI13=1,AR15,AT15),IF(AI13=1,AS15,AU15)) -> 2.228138842
B16: 4 | C16: Tails | J16: 8.238e-05 | AB16: 8.238e-05 | AH16: slider | AI16: 8228 | AJ16: For m line | AK16: =IF(AL6,AI17,NA()) ->  | AL16: 0 | AN16: 0 | AO16: 3
D17: No tails | J17: 8.238e-05 | AB17: =$J$1 -> 8.238e-05 | AH17: m | AI17: 0 | AK17: Max z ht | AL17: 0.3989422804 | AN17: 0 | AO17: 4 | AQ17: cutoff | AS17: cutoff
J18: 8.238e-05 | AB18: 8.238e-05 | AH18: s | AI18: 1 | AL18: delta | AN18: 0 | AO18: 5 | AQ18: 0.004 | AR18: tweak ht | AS18: 0.004 | AT18: tweak ht
D19: One tail | J19: 8.238e-05 | AB19: 8.238e-05 | AH19: Max height | AI19: 0.41 | AJ19: Ht mean line | AK19: 0.44 | AL19: 1e-05 | AN19: 0 | AO19: 6 | AQ19: =U29+AQ18 -> 2.232 | AR19: 0.001 | AS19: =U29+AS18 -> 2.232 | AT19: 0.001
J20: 8.238e-05 | AB20: 8.238e-05 | AH20: NormDist | AI20: x | AJ20: z height | AK20: grey z curve | AL20: x - | AM20: x + | AN20: t - area | AO20: t + area | AP20: t height | AQ20: z tail(s) | AR20: z tail(s) ht | AS20: t tail(s) | AT20: t tail(s) ht
D21: Two tails | J21: 8.238e-05 | AB21: 8.238e-05 | AH21: =NORMDIST(AI21,$AI$17,$AI$18,TRUE) -> 9.86587645e-10 | AI21: =-AL9 -> -6 | AJ21: =IF($AI$13=1,NORMDIST(AI21,$AI$17,$AI$18,FALSE),NA()) ->  | AK21: =IF($AI$13=3,NORMDIST(AI21,$AI$17,$AI$18,FALSE),NA()) ->  | AL21: =AI21-$AL$19 -> -6.00001 | AM21: =AI21+$AL$19 -> -5.99999 | AN21: =IF(AL21<0,TDIST(-AL21,$AI$14,1),1-TDIST(AL21,$AI$14,1)) -> 6.605354933e-05 | AO21: =IF(AM21<0,TDIST(-AM21,$AI$14,1),1-TDIST(AM21,$AI$14,1)) -> 6.605531103e-05 | AP21: =IF($AI$13>1,(AO21-AN21)/(2*$AL$19),NA()) -> 8.808511267e-05 | AQ21: =IF($AI$15=1,IF(AI21>=$AQ$19,AJ21,NA()),IF($AI$15=2,IF(ABS(AI21)>=$AQ$19,AJ21,NA()),NA())) ->  | AR21: =IF(ISNUMBER(AQ21),AQ21-$AR$19,NA()) ->  | AS21: =IF($AI$15=1,IF(AI21>=$AS$19,AP21,NA()),IF($AI$15=2,IF(ABS(AI21)>=$AS$19,AP21,NA()),NA())) -> 8.808511267e-05 | AT21: =IF(ISNUMBER(AS21),AS21-$AT$19,NA()) -> -0.0009119148873
J22: 8.238e-05 | AB22: 8.238e-05 | AH22: 1.049205188e-09 | AI22: =AI21+$AL$10 -> -5.99 | AL22: -5.99001 | AM22: -5.98999 | AN22: 6.69407392e-05 | AO22: 6.694252638e-05 | AP22: 8.935865668e-05 | AR22: =IF(ISNUMBER(AQ22),AQ22-$AR$19,NA()) ->  | AS22: 8.935865668e-05 | AT22: =IF(ISNUMBER(AS22),AS22-$AT$19,NA()) -> -0.0009106413433
B23: 5 | C23: Heights | J23: 8.238e-05 | AB23: 8.238e-05 | AH23: 1.115688101e-09 | AI23: -5.98 | AL23: -5.98001 | AM23: -5.97999 | AN23: 6.784076226e-05 | AO23: 6.784257529e-05 | AP23: 9.06518397e-05 | AS23: 9.06518397e-05 | AT23: -0.0009093481603
J24: 8.238e-05 | AB24: 8.238e-05 | AH24: 1.186267936e-09 | AI24: -5.97 | AL24: -5.97001 | AM24: -5.96999 | AN24: 6.875381647e-05 | AO24: 6.875565577e-05 | AP24: 9.196498192e-05 | AS24: 9.196498192e-05 | AT24: -0.0009080350181
J25: 8.238e-05 | AB25: 8.238e-05 | AH25: 1.261189667e-09 | AI25: -5.96 | AL25: -5.96001 | AM25: -5.95999 | AN25: 6.968010304e-05 | AO25: 6.968196901e-05 | AP25: 9.329840898e-05 | AS25: 9.329840898e-05 | AT25: -0.000906701591
J26: 8.238e-05 | AB26: 8.238e-05 | AH26: 1.340712444e-09 | AI26: -5.95 | AL26: -5.95001 | AM26: -5.94999 | AN26: 7.061982649e-05 | AO26: 7.062171954e-05 | AP26: 9.46524521e-05 | AS26: 9.46524521e-05 | AT26: -0.0009053475479
J27: 8.238e-05 | AB27: 8.238e-05 | AH27: 1.425110384e-09 | AI27: -5.94 | AL27: -5.94001 | AM27: -5.93999 | AN27: 7.157319464e-05 | AO27: 7.157511519e-05 | AP27: 9.602744816e-05 | AS27: 9.602744816e-05 | AT27: -0.0009039725518
J28: 8.238e-05 | AB28: 8.238e-05 | AH28: 1.514673402e-09 | AI28: -5.93 | AL28: -5.93001 | AM28: -5.92999 | AN28: 7.254041873e-05 | AO28: 7.25423672e-05 | AP28: 9.742373984e-05 | AS28: 9.742373984e-05 | AT28: -0.0009025762602
S29: 2 | T29: z or t slider | U29: =(AI16-6000)/1000 -> 2.228 | AH29: 1.609708093e-09 | AI29: -5.92 | AL29: -5.92001 | AM29: -5.91999 | AN29: 7.352171344e-05 | AO29: 7.352369027e-05 | AP29: 9.884167564e-05 | AS29: 9.884167564e-05 | AT29: -0.0009011583244
AH30: 1.710538656e-09 | AI30: -5.91 | AL30: -5.91001 | AM30: -5.90999 | AN30: 7.451729699e-05 | AO30: 7.451930262e-05 | AP30: 0.0001002816101 | AS30: 0.0001002816101 | AT30: -0.0008997183899
AH31: 1.817507863e-09 | AI31: -5.9 | AL31: -5.90001 | AM31: -5.89999 | AN31: 7.552739115e-05 | AO31: 7.552942603e-05 | AP31: 0.0001017439038 | AS31: 0.0001017439038 | AT31: -0.0008982560962
AH32: 1.930978094e-09 | AI32: -5.89 | AL32: -5.89001 | AM32: -5.88999 | AN32: 7.655222134e-05 | AO32: 7.655428592e-05 | AP32: 0.0001032289235 | AS32: 0.0001032289235 | AT32: -0.0008967710765
AH33: 2.051332411e-09 | AI33: -5.88 | AL33: -5.88001 | AM33: -5.87999 | AN33: 7.759201668e-05 | AO33: 7.759411143e-05 | AP33: 0.0001047370423 | AS33: 0.0001047370423 | AT33: -0.0008952629577
K34: 6 | L34: Greater accuracy | R34: For the displayed slider value | S34: =IF(AND(AI11,AI15<3),U29,"") -> 2.228 | W34: , the tail probability is, more accurately, | X34: =IF(AND(AI11,AI15<3),AQ14,"") -> 0.05001177101 | AH34: 2.178975696e-09 | AI34: -5.87 | AL34: -5.87001 | AM34: -5.86999 | AN34: 7.864701005e-05 | AO34: 7.864913543e-05 | AP34: 0.0001062686396 | AS34: 0.0001062686396 | AT34: -0.0008937313604
R35: The slider value would, more accurately, need to be | S35: =IF(AND(AI11,AI15<3),AV15,"") -> 2.228138842 | W35: for the displayed tail probability | X35: =IF(AND(AI11,AI15<3),AQ15,"") -> 0.05 | AH35: 2.314335853e-09 | AI35: -5.86 | AL35: -5.86001 | AM35: -5.85999 | AN35: 7.971743816e-05 | AO35: 7.971959464e-05 | AP35: 0.0001078241017 | AS35: 0.0001078241017 | AT35: -0.0008921758983
AH36: 2.457865062e-09 | AI36: -5.85 | AL36: -5.85001 | AM36: -5.84999 | AN36: 8.080354159e-05 | AO36: 8.080572967e-05 | AP36: 0.000109403821 | AS36: 0.000109403821 | AT36: -0.000890596179
AH37: 2.610041112e-09 | AI37: -5.84 | AL37: -5.84001 | AM37: -5.83999 | AN37: 8.190556492e-05 | AO37: 8.190778509e-05 | AP37: 0.000111008197 | AS37: 0.000111008197 | AT37: -0.000888991803
AH38: 2.771368794e-09 | AI38: -5.83 | AL38: -5.83001 | AM38: -5.82999 | AN38: 8.302375674e-05 | AO38: 8.302600949e-05 | AP38: 0.0001126376361 | AS38: 0.0001126376361 | AT38: -0.0008873623639
AH39: 2.942381371e-09 | AI39: -5.82 | AL39: -5.82001 | AM39: -5.81999 | AN39: 8.415836972e-05 | AO39: 8.416065557e-05 | AP39: 0.0001142925516 | AS39: 0.0001142925516 | AT39: -0.0008857074484
AH40: 3.123642124e-09 | AI40: -5.81 | AL40: -5.81001 | AM40: -5.80999 | AN40: 8.530966073e-05 | AO40: 8.53119802e-05 | AP40: 0.0001159733639 | AS40: 0.0001159733639 | AT40: -0.0008840266361
AH41: 3.315745978e-09 | AI41: -5.8 | AL41: -5.80001 | AM41: -5.79999 | AN41: 8.647789087e-05 | AO41: 8.648024448e-05 | AP41: 0.0001176805008 | AS41: 0.0001176805008 | AT41: -0.0008823194992
AH42: 3.519321215e-09 | AI42: -5.79 | AL42: -5.79001 | AM42: -5.78999 | AN42: 8.766332554e-05 | AO42: 8.766571382e-05 | AP42: 0.0001194143974 | AS42: 0.0001194143974 | AT42: -0.0008805856026
AH43: 3.73503127e-09 | AI43: -5.78 | AL43: -5.78001 | AM43: -5.77999 | AN43: 8.886623454e-05 | AO43: 8.886865805e-05 | AP43: 0.0001211754964 | AS43: 0.0001211754964 | AT43: -0.0008788245036
AH44: 3.963576627e-09 | AI44: -5.77 | AL44: -5.77001 | AM44: -5.76999 | AN44: 9.008689214e-05 | AO44: 9.008935142e-05 | AP44: 0.000122964248 | AS44: 0.000122964248 | AT44: -0.000877035752
AH45: 4.205696805e-09 | AI45: -5.76 | AL45: -5.76001 | AM45: -5.75999 | AN45: 9.132557714e-05 | AO45: 9.132807277e-05 | AP45: 0.0001247811103 | AS45: 0.0001247811103 | AT45: -0.0008752188897
AH46: 4.462172454e-09 | AI46: -5.75 | AL46: -5.75001 | AM46: -5.74999 | AN46: 9.258257298e-05 | AO46: 9.258510551e-05 | AP46: 0.0001266265494 | AS46: 0.0001266265494 | AT46: -0.0008733734506
AH47: 4.733827554e-09 | AI47: -5.74 | AL47: -5.74001 | AM47: -5.73999 | AN47: 9.385816777e-05 | AO47: 9.386073779e-05 | AP47: 0.0001285010395 | AS47: 0.0001285010395 | AT47: -0.0008714989605
AH48: 5.021531725e-09 | AI48: -5.73 | AL48: -5.73001 | AM48: -5.72999 | AN48: 9.515265443e-05 | AO48: 9.515526253e-05 | AP48: 0.0001304050627 | AS48: 0.0001304050627 | AT48: -0.0008695949373
AH49: 5.326202659e-09 | AI49: -5.72 | AL49: -5.72001 | AM49: -5.71999 | AN49: 9.646633072e-05 | AO49: 9.64689775e-05 | AP49: 0.0001323391099 | AS49: 0.0001323391099 | AT49: -0.0008676608901
AH50: 5.648808676e-09 | AI50: -5.71 | AL50: -5.71001 | AM50: -5.70999 | AN50: 9.779949938e-05 | AO50: 9.780218545e-05 | AP50: 0.0001343036803 | AS50: 0.0001343036803 | AT50: -0.0008656963197
AH51: 5.990371401e-09 | AI51: -5.7 | AL51: -5.70001 | AM51: -5.69999 | AN51: 9.915246816e-05 | AO51: 9.915519415e-05 | AP51: 0.0001362992818 | AS51: 0.0001362992818 | AT51: -0.0008637007182
AH52: 6.351968593e-09 | AI52: -5.69 | AL52: -5.69001 | AM52: -5.68999 | AN52: 0.0001005255499 | AO52: 0.0001005283165 | AP52: 0.0001383264311 | AS52: 0.0001383264311 | AT52: -0.0008616735689
AH53: 6.734737102e-09 | AI53: -5.68 | AL53: -5.68001 | AM53: -5.67999 | AN53: 0.0001019190628 | AO53: 0.0001019218705 | AP53: 0.000140385654 | AS53: 0.000140385654 | AT53: -0.000859614346
AH54: 7.139875979e-09 | AI54: -5.67 | AL54: -5.67001 | AM54: -5.66999 | AN54: 0.0001033333302 | AO54: 0.0001033361798 | AP54: 0.0001424774853 | AS54: 0.0001424774853 | AT54: -0.0008575225147
AH55: 7.568649752e-09 | AI55: -5.66 | AL55: -5.66001 | AM55: -5.65999 | AN55: 0.0001047686809 | AO55: 0.0001047715729 | AP55: 0.0001446024693 | AS55: 0.0001446024693 | AT55: -0.0008553975307
AH56: 8.022391851e-09 | AI56: -5.65 | AL56: -5.65001 | AM56: -5.64999 | AN56: 0.0001062254491 | AO56: 0.0001062283843 | AP56: 0.0001467611596 | AS56: 0.0001467611596 | AT56: -0.0008532388404
AH57: 8.502508215e-09 | AI57: -5.64 | AL57: -5.64001 | AM57: -5.63999 | AN57: 0.0001077039748 | AO57: 0.0001077069539 | AP57: 0.0001489541197 | AS57: 0.0001489541197 | AT57: -0.0008510458803
AH58: 9.010481081e-09 | AI58: -5.63 | AL58: -5.63001 | AM58: -5.62999 | AN58: 0.0001092046034 | AO58: 0.0001092076271 | AP58: 0.0001511819226 | AS58: 0.0001511819226 | AT58: -0.0008488180774
AH59: 9.547872948e-09 | AI59: -5.62 | AL59: -5.62001 | AM59: -5.61999 | AN59: 0.0001107276864 | AO59: 0.0001107307553 | AP59: 0.0001534451515 | AS59: 0.0001534451515 | AT59: -0.0008465548485
AH60: 1.011633076e-08 | AI60: -5.61 | AL60: -5.61001 | AM60: -5.60999 | AN60: 0.0001122735809 | AO60: 0.0001122766958 | AP60: 0.0001557443999 | AS60: 0.0001557443999 | AT60: -0.0008442556001
AH61: 1.071759026e-08 | AI61: -5.6 | AL61: -5.60001 | AM61: -5.59999 | AN61: 0.0001138426501 | AO61: 0.0001138458117 | AP61: 0.0001580802714 | AS61: 0.0001580802714 | AT61: -0.0008419197286
AH62: 1.135348062e-08 | AI62: -5.59 | AL62: -5.59001 | AM62: -5.58999 | AN62: 0.0001154352634 | AO62: 0.0001154384724 | AP62: 0.0001604533805 | AS62: 0.0001604533805 | AT62: -0.0008395466195
AH63: 1.202592923e-08 | AI63: -5.58 | AL63: -5.58001 | AM63: -5.57999 | AN63: 0.0001170517961 | AO63: 0.0001170550534 | AP63: 0.0001628643521 | AS63: 0.0001628643521 | AT63: -0.0008371356479
AH64: 1.273696677e-08 | AI64: -5.57 | AL64: -5.57001 | AM64: -5.56999 | AN64: 0.0001186926301 | AO64: 0.0001186959364 | AP64: 0.0001653138222 | AS64: 0.0001653138222 | AT64: -0.0008346861778
AH65: 1.348873252e-08 | AI65: -5.56 | AL65: -5.56001 | AM65: -5.55999 | AN65: 0.0001203581537 | AO65: 0.0001203615097 | AP65: 0.0001678024381 | AS65: 0.0001678024381 | AT65: -0.0008321975619
AH66: 1.428347989e-08 | AI66: -5.55 | AL66: -5.55001 | AM66: -5.54999 | AN66: 0.0001220487614 | AO66: 0.000122052168 | AP66: 0.0001703308581 | AS66: 0.0001703308581 | AT66: -0.0008296691419
AH67: 1.512358234e-08 | AI67: -5.54 | AL67: -5.54001 | AM67: -5.53999 | AN67: 0.0001237648548 | AO67: 0.0001237683128 | AP67: 0.0001728997525 | AS67: 0.0001728997525 | AT67: -0.0008271002475
AH68: 1.601153939e-08 | AI68: -5.53 | AL68: -5.53001 | AM68: -5.52999 | AN68: 0.0001255068419 | AO68: 0.0001255103521 | AP68: 0.0001755098028 | AS68: 0.0001755098028 | AT68: -0.0008244901972
AH69: 1.694998314e-08 | AI69: -5.52 | AL69: -5.52001 | AM69: -5.51999 | AN69: 0.0001272751377 | AO69: 0.0001272787009 | AP69: 0.0001781617031 | AS69: 0.0001781617031 | AT69: -0.0008218382969
AH70: 1.794168494e-08 | AI70: -5.51 | AL70: -5.51001 | AM70: -5.50999 | AN70: 0.0001290701643 | AO70: 0.0001290737814 | AP70: 0.0001808561592 | AS70: 0.0001808561592 | AT70: -0.0008191438408
AH71: 1.898956247e-08 | AI71: -5.5 | AL71: -5.50001 | AM71: -5.49999 | AN71: 0.0001308923508 | AO71: 0.0001308960227 | AP71: 0.0001835938895 | AS71: 0.0001835938895 | AT71: -0.0008164061105
AH72: 2.009668713e-08 | AI72: -5.49 | AL72: -5.49001 | AM72: -5.48999 | AN72: 0.0001327421336 | AO72: 0.0001327458611 | AP72: 0.000186375625 | AS72: 0.000186375625 | AT72: -0.000813624375
AH73: 2.12662918e-08 | AI73: -5.48 | AL73: -5.48001 | AM73: -5.47999 | AN73: 0.0001346199564 | AO73: 0.0001346237404 | AP73: 0.0001892021097 | AS73: 0.0001892021097 | AT73: -0.0008107978903
AH74: 2.250177895e-08 | AI74: -5.47 | AL74: -5.47001 | AM74: -5.46999 | AN74: 0.0001365262705 | AO74: 0.000136530112 | AP74: 0.0001920741005 | AS74: 0.0001920741005 | AT74: -0.0008079258995
AH75: 2.380672916e-08 | AI75: -5.46 | AL75: -5.46001 | AM75: -5.45999 | AN75: 0.0001384615347 | AO75: 0.0001384654346 | AP75: 0.0001949923677 | AS75: 0.0001949923677 | AT75: -0.0008050076323
AH76: 2.518491005e-08 | AI76: -5.45 | AL76: -5.45001 | AM76: -5.44999 | AN76: 0.0001404262159 | AO76: 0.000140430175 | AP76: 0.0001979576954 | AS76: 0.0001979576954 | AT76: -0.0008020423046
AH77: 2.664028561e-08 | AI77: -5.44 | AL77: -5.44001 | AM77: -5.43999 | AN77: 0.0001424207884 | AO77: 0.0001424248078 | AP77: 0.0002009708811 | AS77: 0.0002009708811 | AT77: -0.0007990291189
AH78: 2.817702598e-08 | AI78: -5.43 | AL78: -5.43001 | AM78: -5.42999 | AN78: 0.000144445735 | AO78: 0.0001444498156 | AP78: 0.0002040327367 | AS78: 0.0002040327367 | AT78: -0.0007959672633
AH79: 2.979951771e-08 | AI79: -5.42 | AL79: -5.42001 | AM79: -5.41999 | AN79: 0.0001465015464 | AO79: 0.0001465056893 | AP79: 0.0002071440885 | AS79: 0.0002071440885 | AT79: -0.0007928559115
AH80: 3.151237452e-08 | AI80: -5.41 | AL80: -5.41001 | AM80: -5.40999 | AN80: 0.0001485887218 | AO80: 0.0001485929279 | AP80: 0.000210305777 | AS80: 0.000210305777 | AT80: -0.000789694223
AH81: 3.332044849e-08 | AI81: -5.4 | AL81: -5.40001 | AM81: -5.39999 | AN81: 0.0001507077688 | AO81: 0.0001507120392 | AP81: 0.000213518658 | AS81: 0.000213518658 | AT81: -0.000786481342
AH82: 3.522884186e-08 | AI82: -5.39 | AL82: -5.39001 | AM82: -5.38999 | AN82: 0.0001528592037 | AO82: 0.0001528635394 | AP82: 0.0002167836021 | AS82: 0.0002167836021 | AT82: -0.0007832163979
AH83: 3.724291936e-08 | AI83: -5.38 | AL83: -5.38001 | AM83: -5.37999 | AN83: 0.0001550435515 | AO83: 0.0001550479536 | AP83: 0.0002201014956 | AS83: 0.0002201014956 | AT83: -0.0007798985044
AH84: 3.936832107e-08 | AI84: -5.37 | AL84: -5.37001 | AM84: -5.36999 | AN84: 0.0001572613462 | AO84: 0.0001572658157 | AP84: 0.0002234732402 | AS84: 0.0002234732402 | AT84: -0.0007765267598
AH85: =NORMDIST(AI85,$AI$17,$AI$18,TRUE) -> 4.161097595e-08 | AI85: -5.36 | AJ85: =IF($AI$13=1,NORMDIST(AI85,$AI$17,$AI$18,FALSE),NA()) ->  | AK85: =IF($AI$13=3,NORMDIST(AI85,$AI$17,$AI$18,FALSE),NA()) ->  | AL85: =AI85-$AL$19 -> -5.36001 | AM85: =AI85+$AL$19 -> -5.35999 | AN85: =IF(AL85<0,TDIST(-AL85,$AI$14,1),1-TDIST(AL85,$AI$14,1)) -> 0.0001595131309 | AO85: =IF(AM85<0,TDIST(-AM85,$AI$14,1),1-TDIST(AM85,$AI$14,1)) -> 0.0001595176689 | AP85: =IF($AI$13>1,(AO85-AN85)/(2*$AL$19),NA()) -> 0.0002268997537 | AQ85: =IF($AI$15=1,IF(AI85>=$AQ$19,AJ85,NA()),IF($AI$15=2,IF(ABS(AI85)>=$AQ$19,AJ85,NA()),NA())) ->  | AS85: =IF($AI$15=1,IF(AI85>=$AS$19,AP85,NA()),IF($AI$15=2,IF(ABS(AI85)>=$AS$19,AP85,NA()),NA())) -> 0.0002268997537 | AT85: -0.0007731002463
AH86: 4.397711594e-08 | AI86: =AI85+$AL$10 -> -5.35 | AL86: -5.35001 | AM86: -5.34999 | AN86: 0.0001617994579 | AO86: 0.0001618040655 | AP86: 0.0002303819703 | AR86: =IF(ISNUMBER(AQ86),AQ86-$AR$19,NA()) ->  | AS86: 0.0002303819703 | AT86: =IF(ISNUMBER(AS86),AS86-$AT$19,NA()) -> -0.0007696180297
AH87: 4.647329075e-08 | AI87: -5.34 | AL87: -5.34001 | AM87: -5.33999 | AN87: 0.000164120889 | AO87: 0.0001641255674 | AP87: 0.0002339208406 | AS87: 0.0002339208406 | AT87: -0.0007660791594
AH88: 4.910638333e-08 | AI88: -5.33 | AL88: -5.33001 | AM88: -5.32999 | AN88: 0.0001664779954 | AO88: 0.0001664827458 | AP88: 0.0002375173319 | AS88: 0.0002375173319 | AT88: -0.0007624826681
AH89: 5.188362602e-08 | AI89: -5.32 | AL89: -5.32001 | AM89: -5.31999 | AN89: 0.0001688713584 | AO89: 0.0001688761819 | AP89: 0.0002411724291 | AS89: 0.0002411724291 | AT89: -0.0007588275709
AH90: 5.481261748e-08 | AI90: -5.31 | AL90: -5.31001 | AM90: -5.30999 | AN90: 0.000171301569 | AO90: 0.0001713064667 | AP90: 0.0002448871343 | AS90: 0.0002448871343 | AT90: -0.0007551128657
AH91: 5.79013404e-08 | AI91: -5.3 | AL91: -5.30001 | AM91: -5.29999 | AN91: 0.0001737692283 | AO91: 0.0001737742016 | AP91: 0.0002486624674 | AS91: 0.0002486624674 | AT91: -0.0007513375326
AH92: 6.115817997e-08 | AI92: -5.29 | AL92: -5.29001 | AM92: -5.28999 | AN92: 0.0001762749478 | AO92: 0.0001762799978 | AP92: 0.0002524994665 | AS92: 0.0002524994665 | AT92: -0.0007475005335
AH93: 6.459194326e-08 | AI93: -5.28 | AL93: -5.28001 | AM93: -5.27999 | AN93: 0.0001788193493 | AO93: 0.0001788244773 | AP93: 0.0002563991882 | AS93: 0.0002563991882 | AT93: -0.0007436008118
AH94: 6.821187941e-08 | AI94: -5.27 | AL94: -5.27001 | AM94: -5.26999 | AN94: 0.0001814030656 | AO94: 0.0001814082728 | AP94: 0.0002603627077 | AS94: 0.0002603627077 | AT94: -0.0007396372923
AH95: 7.202770081e-08 | AI95: -5.26 | AL95: -5.26001 | AM95: -5.25999 | AN95: 0.0001840267399 | AO95: 0.0001840320277 | AP95: 0.0002643911196 | AS95: 0.0002643911196 | AT95: -0.0007356088804
AH96: 7.604960516e-08 | AI96: -5.25 | AL96: -5.25001 | AM96: -5.24999 | AN96: 0.0001866910268 | AO96: 0.0001866963965 | AP96: 0.0002684855378 | AS96: 0.0002684855378 | AT96: -0.0007315144622
AH97: 8.028829861e-08 | AI97: -5.24 | AL97: -5.24001 | AM97: -5.23999 | AN97: 0.0001893965919 | AO97: 0.0001894020448 | AP97: 0.0002726470961 | AS97: 0.0002726470961 | AT97: -0.0007273529039
AH98: 8.475501986e-08 | AI98: -5.23 | AL98: -5.23001 | AM98: -5.22999 | AN98: 0.0001921441124 | AO98: 0.0001921496499 | AP98: 0.0002768769485 | AS98: 0.0002768769485 | AT98: -0.0007231230515
AH99: 8.946156536e-08 | AI99: -5.22 | AL99: -5.22001 | AM99: -5.21999 | AN99: 0.0001949342771 | AO99: 0.0001949399006 | AP99: 0.0002811762698 | AS99: 0.0002811762698 | AT99: -0.0007188237302
AH100: 9.442031572e-08 | AI100: -5.21 | AL100: -5.21001 | AM100: -5.20999 | AN100: 0.0001977677867 | AO100: 0.0001977734976 | AP100: 0.0002855462553 | AS100: 0.0002855462553 | AT100: -0.0007144537447
AH101: 9.964426317e-08 | AI101: -5.2 | AL101: -5.20001 | AM101: -5.19999 | AN101: 0.0002006453537 | AO101: 0.0002006511535 | AP101: 0.0002899881219 | AS101: 0.0002899881219 | AT101: -0.0007100118781
AH102: 1.051470403e-07 | AI102: -5.19 | AL102: -5.19001 | AM102: -5.18999 | AN102: 0.0002035677033 | AO102: 0.0002035735933 | AP102: 0.0002945031084 | AS102: 0.0002945031084 | AT102: -0.0007054968916
AH103: 1.109429501e-07 | AI103: -5.18 | AL103: -5.18001 | AM103: -5.17999 | AN103: 0.0002065355728 | AO103: 0.0002065415546 | AP103: 0.0002990924754 | AS103: 0.0002990924754 | AT103: -0.0007009075246
AH104: 1.170469974e-07 | AI104: -5.17 | AL104: -5.17001 | AM104: -5.16999 | AN104: 0.0002095497124 | AO104: 0.0002095557876 | AP104: 0.0003037575061 | AS104: 0.0003037575061 | AT104: -0.0006962424939
AH105: 1.234749212e-07 | AI105: -5.16 | AL105: -5.16001 | AM105: -5.15999 | AN105: 0.0002126108854 | AO105: 0.0002126170554 | AP105: 0.0003084995069 | AS105: 0.0003084995069 | AT105: -0.0006915004931
AH106: 1.302432295e-07 | AI106: -5.15 | AL106: -5.15001 | AM106: -5.14999 | AN106: 0.0002157198679 | AO106: 0.0002157261343 | AP106: 0.0003133198073 | AS106: 0.0003133198073 | AT106: -0.0006866801927
AH107: 1.373692344e-07 | AI107: -5.14 | AL107: -5.14001 | AM107: -5.13999 | AN107: 0.0002188774498 | AO107: 0.0002188838142 | AP107: 0.0003182197605 | AS107: 0.0003182197605 | AT107: -0.0006817802395
AH108: 1.448710893e-07 | AI108: -5.13 | AL108: -5.13001 | AM108: -5.12999 | AN108: 0.0002220844344 | AO108: 0.0002220908985 | AP108: 0.0003232007443 | AS108: 0.0003232007443 | AT108: -0.0006767992557
AH109: 1.527678283e-07 | AI109: -5.12 | AL109: -5.12001 | AM109: -5.11999 | AN109: 0.000225341639 | AO109: 0.0002253482043 | AP109: 0.000328264161 | AS109: 0.000328264161 | AT109: -0.000671735839
AH110: 1.610794061e-07 | AI110: -5.11 | AL110: -5.11001 | AM110: -5.10999 | AN110: 0.0002286498951 | AO110: 0.0002286565633 | AP110: 0.0003334114377 | AS110: 0.0003334114377 | AT110: -0.0006665885623
AH111: 1.698267407e-07 | AI111: -5.1 | AL111: -5.10001 | AM111: -5.09999 | AN111: 0.0002320100484 | AO111: 0.0002320168213 | AP111: 0.0003386440277 | AS111: 0.0003386440277 | AT111: -0.0006613559723
AH112: 1.790317572e-07 | AI112: -5.09 | AL112: -5.09001 | AM112: -5.08999 | AN112: 0.0002354229594 | AO112: 0.0002354298387 | AP112: 0.0003439634097 | AS112: 0.0003439634097 | AT112: -0.0006560365903
AH113: 1.887174342e-07 | AI113: -5.08 | AL113: -5.08001 | AM113: -5.07999 | AN113: 0.0002388895036 | AO113: 0.000238896491 | AP113: 0.0003493710894 | AS113: 0.0003493710894 | AT113: -0.0006506289106
AH114: 1.989078511e-07 | AI114: -5.07 | AL114: -5.07001 | AM114: -5.06999 | AN114: 0.0002424105716 | AO114: 0.000242417669 | AP114: 0.0003548685994 | AS114: 0.0003548685994 | AT114: -0.0006451314006
AH115: 2.09628239e-07 | AI115: -5.06 | AL115: -5.06001 | AM115: -5.05999 | AN115: 0.0002459870694 | AO115: 0.0002459942785 | AP115: 0.0003604574997 | AS115: 0.0003604574997 | AT115: -0.0006395425003
AH116: 2.209050323e-07 | AI116: -5.05 | AL116: -5.05001 | AM116: -5.04999 | AN116: 0.0002496199188 | AO116: 0.0002496272416 | AP116: 0.0003661393783 | AS116: 0.0003661393783 | AT116: -0.0006338606217
AH117: 2.32765923e-07 | AI117: -5.04 | AL117: -5.04001 | AM117: -5.03999 | AN117: 0.0002533100577 | AO117: 0.000253317496 | AP117: 0.0003719158519 | AS117: 0.0003719158519 | AT117: -0.0006280841481
AH118: 2.452399181e-07 | AI118: -5.03 | AL118: -5.03001 | AM118: -5.02999 | AN118: 0.0002570584401 | AO118: 0.0002570659959 | AP118: 0.0003777885661 | AS118: 0.0003777885661 | AT118: -0.0006222114339
AH119: 2.583573976e-07 | AI119: -5.02 | AL119: -5.02001 | AM119: -5.01999 | AN119: 0.000260866037 | AO119: 0.0002608737121 | AP119: 0.0003837591963 | AS119: 0.0003837591963 | AT119: -0.0006162408037
AH120: 2.721501773e-07 | AI120: -5.01 | AL120: -5.01001 | AM120: -5.00999 | AN120: 0.0002647338357 | AO120: 0.0002647416323 | AP120: 0.0003898294476 | AS120: 0.0003898294476 | AT120: -0.0006101705524
AH121: 2.866515719e-07 | AI121: -5 | AL121: -5.00001 | AM121: -4.99999 | AN121: 0.0002686628413 | AO121: 0.0002686707614 | AP121: 0.0003960010562 | AS121: 0.0003960010562 | AT121: -0.0006039989438
AH122: 3.018962818e-07 | AI122: -4.99 | AL122: -4.99001 | AM122: -4.98999 | AN122: 0.0002726540761 | AO122: 0.0002726621217 | AP122: 0.0004022757895 | AS122: 0.0004022757895 | AT122: -0.0005977242105
AH123: 3.179213215e-07 | AI123: -4.98 | AL123: -4.98001 | AM123: -4.97999 | AN123: 0.0002767085803 | AO123: 0.0002767167534 | AP123: 0.0004086554463 | AS123: 0.0004086554463 | AT123: -0.0005913445537
AH124: 3.34764518e-07 | AI124: -4.97 | AL124: -4.97001 | AM124: -4.96999 | AN124: 0.0002808274123 | AO124: 0.0002808357151 | AP124: 0.0004151418583 | AS124: 0.0004151418583 | AT124: -0.0005848581417
AH125: 3.524661363e-07 | AI125: -4.96 | AL125: -4.96001 | AM125: -4.95999 | AN125: 0.0002850116487 | AO125: 0.0002850200835 | AP125: 0.0004217368899 | AS125: 0.0004217368899 | AT125: -0.0005782631101
AH126: 3.710675003e-07 | AI126: -4.95 | AL126: -4.95001 | AM126: -4.94999 | AN126: 0.0002892623854 | AO126: 0.0002892709543 | AP126: 0.0004284424393 | AS126: 0.0004284424393 | AT126: -0.0005715575607
AH127: 3.906127936e-07 | AI127: -4.94 | AL127: -4.94001 | AM127: -4.93999 | AN127: 0.0002935807371 | AO127: 0.0002935894423 | AP127: 0.0004352604386 | AS127: 0.0004352604386 | AT127: -0.0005647395614
AH128: 4.111481622e-07 | AI128: -4.93 | AL128: -4.93001 | AM128: -4.92999 | AN128: 0.0002979678381 | AO128: 0.0002979766819 | AP128: 0.0004421928551 | AS128: 0.0004421928551 | AT128: -0.0005578071449
AH129: 4.327209664e-07 | AI129: -4.92 | AL129: -4.92001 | AM129: -4.91999 | AN129: 0.0003024248425 | AO129: 0.0003024338273 | AP129: 0.0004492416913 | AS129: 0.0004492416913 | AT129: -0.0005507583087
AH130: 4.553823343e-07 | AI130: -4.91 | AL130: -4.91001 | AM130: -4.90999 | AN130: 0.0003069529246 | AO130: 0.0003069620528 | AP130: 0.000456408986 | AS130: 0.000456408986 | AT130: -0.000543591014
AH131: 4.791834531e-07 | AI131: -4.9 | AL131: -4.90001 | AM131: -4.89999 | AN131: 0.0003115532794 | AO131: 0.0003115625534 | AP131: 0.0004636968147 | AS131: 0.0004636968147 | AT131: -0.0005363031853
AH132: 5.0417991e-07 | AI132: -4.89 | AL132: -4.89001 | AM132: -4.88999 | AN132: 0.0003162271227 | AO132: 0.0003162365449 | AP132: 0.0004711072904 | AS132: 0.0004711072904 | AT132: -0.0005288927096
AH133: 5.304293346e-07 | AI133: -4.88 | AL133: -4.88001 | AM133: -4.87999 | AN133: 0.0003209756918 | AO133: 0.0003209852646 | AP133: 0.0004786425643 | AS133: 0.0004786425643 | AT133: -0.0005213574357
AH134: 5.579912383e-07 | AI134: -4.87 | AL134: -4.87001 | AM134: -4.86999 | AN134: 0.0003258002453 | AO134: 0.0003258099714 | AP134: 0.0004863048265 | AS134: 0.0004863048265 | AT134: -0.0005136951735
AH135: 5.869288484e-07 | AI135: -4.86 | AL135: -4.86001 | AM135: -4.85999 | AN135: 0.0003307020645 | AO135: 0.0003307119464 | AP135: 0.0004940963064 | AS135: 0.0004940963064 | AT135: -0.0005059036936
AH136: 6.17307501e-07 | AI136: -4.85 | AL136: -4.85001 | AM136: -4.84999 | AN136: 0.0003356824526 | AO136: 0.000335692493 | AP136: 0.0005020192739 | AS136: 0.0005020192739 | AT136: -0.0004979807261
AH137: 6.49195717e-07 | AI137: -4.84 | AL137: -4.84001 | AM137: -4.83999 | AN137: 0.0003407427361 | AO137: 0.0003407529377 | AP137: 0.0005100760399 | AS137: 0.0005100760399 | AT137: -0.0004899239601
AH138: 6.826652423e-07 | AI138: -4.83 | AL138: -4.83001 | AM138: -4.82999 | AN138: 0.0003458842648 | AO138: 0.0003458946301 | AP138: 0.0005182689572 | AS138: 0.0005182689572 | AT138: -0.0004817310428
AH139: 7.177910061e-07 | AI139: -4.82 | AL139: -4.82001 | AM139: -4.81999 | AN139: 0.0003511084119 | AO139: 0.0003511189439 | AP139: 0.0005266004209 | AS139: 0.0005266004209 | AT139: -0.0004733995791
AH140: 7.546516891e-07 | AI140: -4.81 | AL140: -4.81001 | AM140: -4.80999 | AN140: 0.0003564165751 | AO140: 0.0003564272765 | AP140: 0.0005350728697 | AS140: 0.0005350728697 | AT140: -0.0004649271303
AH141: 7.933281385e-07 | AI141: -4.8 | AL141: -4.80001 | AM141: -4.79999 | AN141: 0.0003618101766 | AO141: 0.0003618210504 | AP141: 0.0005436887862 | AS141: 0.0005436887862 | AT141: -0.0004563112138
AH142: 8.339068069e-07 | AI142: -4.79 | AL142: -4.79001 | AM142: -4.78999 | AN142: 0.0003672906637 | AO142: 0.0003673017127 | AP142: 0.0005524506979 | AS142: 0.0005524506979 | AT142: -0.0004475493021
AH143: 8.764759725e-07 | AI143: -4.78 | AL143: -4.78001 | AM143: -4.77999 | AN143: 0.0003728595091 | AO143: 0.0003728707363 | AP143: 0.0005613611784 | AS143: 0.0005613611784 | AT143: -0.0004386388216
AH144: 9.211295593e-07 | AI144: -4.77 | AL144: -4.77001 | AM144: -4.76999 | AN144: 0.0003785182115 | AO144: 0.0003785296199 | AP144: 0.0005704228476 | AS144: 0.0005704228476 | AT144: -0.0004295771524
AH145: 9.679646917e-07 | AI145: -4.76 | AL145: -4.76001 | AM145: -4.75999 | AN145: 0.0003842682961 | AO145: 0.0003842798889 | AP145: 0.0005796383728 | AS145: 0.0005796383728 | AT145: -0.0004203616272
AH146: 1.017083252e-06 | AI146: -4.75 | AL146: -4.75001 | AM146: -4.74999 | AN146: 0.000390111315 | AO146: 0.0003901230952 | AP146: 0.0005890104697 | AS146: 0.0005890104697 | AT146: -0.0004109895303
AH147: 1.068590969e-06 | AI147: -4.74 | AL147: -4.74001 | AM147: -4.73999 | AN147: 0.0003960488476 | AO147: 0.0003960608184 | AP147: 0.0005985419035 | AS147: 0.0005985419035 | AT147: -0.0004014580965
AH148: 1.122599155e-06 | AI148: -4.73 | AL148: -4.73001 | AM148: -4.72999 | AN148: 0.0004020825013 | AO148: 0.000402094666 | AP148: 0.0006082354891 | AS148: 0.0006082354891 | AT148: -0.0003917645109
AH149: =NORMDIST(AI149,$AI$17,$AI$18,TRUE) -> 1.179223325e-06 | AI149: -4.72 | AJ149: =IF($AI$13=1,NORMDIST(AI149,$AI$17,$AI$18,FALSE),NA()) ->  | AK149: =IF($AI$13=3,NORMDIST(AI149,$AI$17,$AI$18,FALSE),NA()) ->  | AL149: =AI149-$AL$19 -> -4.72001 | AM149: =AI149+$AL$19 -> -4.71999 | AN149: =IF(AL149<0,TDIST(-AL149,$AI$14,1),1-TDIST(AL149,$AI$14,1)) -> 0.0004082139119 | AO149: =IF(AM149<0,TDIST(-AM149,$AI$14,1),1-TDIST(AM149,$AI$14,1)) -> 0.0004082262738 | AP149: =IF($AI$13>1,(AO149-AN149)/(2*$AL$19),NA()) -> 0.0006180940924 | AQ149: =IF($AI$15=1,IF(AI149>=$AQ$19,AJ149,NA()),IF($AI$15=2,IF(ABS(AI149)>=$AQ$19,AJ149,NA()),NA())) ->  | AS149: =IF($AI$15=1,IF(AI149>=$AS$19,AP149,NA()),IF($AI$15=2,IF(ABS(AI149)>=$AS$19,AP149,NA()),NA())) -> 0.0006180940924 | AT149: -0.0003819059076
AH150: 1.238583957e-06 | AI150: =AI149+$AL$10 -> -4.71 | AL150: -4.71001 | AM150: -4.70999 | AN150: 0.0004144447441 | AO150: 0.0004144573065 | AP150: 0.0006281206315 | AR150: =IF(ISNUMBER(AQ150),AQ150-$AR$19,NA()) ->  | AS150: 0.0006281206315 | AT150: =IF(ISNUMBER(AS150),AS150-$AT$19,NA()) -> -0.0003718793685
AH151: 1.300807423e-06 | AI151: -4.7 | AL151: -4.70001 | AM151: -4.69999 | AN151: 0.000420776692 | AO151: 0.0004207894583 | AP151: 0.0006383180774 | AS151: 0.0006383180774 | AT151: -0.0003616819226
AH152: 1.366025329e-06 | AI152: -4.69 | AL152: -4.69001 | AM152: -4.68999 | AN152: 0.0004272114797 | AO152: 0.0004272244535 | AP152: 0.0006486894548 | AS152: 0.0006486894548 | AT152: -0.0003513105452
AH153: 1.434374663e-06 | AI153: -4.68 | AL153: -4.68001 | AM153: -4.67999 | AN153: 0.0004337508619 | AO153: 0.0004337640466 | AP153: 0.0006592378432 | AS153: 0.0006592378432 | AT153: -0.0003407621568
AH154: 1.505998698e-06 | AI154: -4.67 | AL154: -4.67001 | AM154: -4.66999 | AN154: 0.0004403966243 | AO154: 0.0004404100236 | AP154: 0.0006699663783 | AS154: 0.0006699663783 | AT154: -0.0003300336217
AH155: 1.581046996e-06 | AI155: -4.66 | AL155: -4.66001 | AM155: -4.65999 | AN155: 0.0004471505842 | AO155: 0.0004471642017 | AP155: 0.0006808782523 | AS155: 0.0006808782523 | AT155: -0.0003191217477
AH156: 1.659675199e-06 | AI156: -4.65 | AL156: -4.65001 | AM156: -4.64999 | AN156: 0.0004540145912 | AO156: 0.0004540284307 | AP156: 0.0006919767156 | AS156: 0.0006919767156 | AT156: -0.0003080232844
AH157: 1.742045939e-06 | AI157: -4.64 | AL157: -4.64001 | AM157: -4.63999 | AN157: 0.0004609905276 | AO157: 0.0004610045929 | AP157: 0.0007032650774 | AS157: 0.0007032650774 | AT157: -0.0002967349226
AH158: 1.828328684e-06 | AI158: -4.63 | AL158: -4.63001 | AM158: -4.62999 | AN158: 0.0004680803092 | AO158: 0.0004680946042 | AP158: 0.0007147467069 | AS158: 0.0007147467069 | AT158: -0.0002852532931
AH159: 1.918700231e-06 | AI159: -4.62 | AL159: -4.62001 | AM159: -4.61999 | AN159: 0.0004752858858 | AO159: 0.0004753004143 | AP159: 0.0007264250348 | AS159: 0.0007264250348 | AT159: -0.0002735749652
AH160: 2.013344911e-06 | AI160: -4.61 | AL160: -4.61001 | AM160: -4.60999 | AN160: 0.0004826092417 | AO160: 0.0004826240077 | AP160: 0.0007383035537 | AS160: 0.0007383035537 | AT160: -0.0002616964463
AH161: 2.112454748e-06 | AI161: -4.6 | AL161: -4.60001 | AM161: -4.59999 | AN161: 0.0004900523964 | AO161: 0.0004900674041 | AP161: 0.0007503858195 | AS161: 0.0007503858195 | AT161: -0.0002496141805
AH162: 2.216230078e-06 | AI162: -4.59 | AL162: -4.59001 | AM162: -4.58999 | AN162: 0.0004976174056 | AO162: 0.0004976326591 | AP162: 0.0007626754533 | AS162: 0.0007626754533 | AT162: -0.0002373245467
AH163: 2.324879644e-06 | AI163: -4.58 | AL163: -4.58001 | AM163: -4.57999 | AN163: 0.0005053063611 | AO163: 0.0005053218646 | AP163: 0.0007751761412 | AS163: 0.0007751761412 | AT163: -0.0002248238588
AH164: 2.438621044e-06 | AI164: -4.57 | AL164: -4.57001 | AM164: -4.56999 | AN164: 0.0005131213922 | AO164: 0.0005131371501 | AP164: 0.0007878916366 | AS164: 0.0007878916366 | AT164: -0.0002121083634
AH165: 2.557681046e-06 | AI165: -4.56 | AL165: -4.56001 | AM165: -4.55999 | AN165: 0.0005210646661 | AO165: 0.0005210806826 | AP165: 0.000800825761 | AS165: 0.000800825761 | AT165: -0.000199174239
AH166: 2.682295767e-06 | AI166: -4.55 | AL166: -4.55001 | AM166: -4.54999 | AN166: 0.0005291383883 | AO166: 0.0005291546679 | AP166: 0.0008139824055 | AS166: 0.0008139824055 | AT166: -0.0001860175945
AH167: 2.8127114e-06 | AI167: -4.54 | AL167: -4.54001 | AM167: -4.53999 | AN167: 0.0005373448037 | AO167: 0.000537361351 | AP167: 0.0008273655312 | AS167: 0.0008273655312 | AT167: -0.0001726344688
AH168: 2.949184354e-06 | AI168: -4.53 | AL168: -4.53001 | AM168: -4.52999 | AN168: 0.0005456861973 | AO168: 0.0005457030169 | AP168: 0.000840979172 | AS168: 0.000840979172 | AT168: -0.000159020828
AH169: 3.091981548e-06 | AI169: -4.52 | AL169: -4.52001 | AM169: -4.51999 | AN169: 0.0005541648946 | AO169: 0.0005541819912 | AP169: 0.0008548274343 | AS169: 0.0008548274343 | AT169: -0.0001451725657
AH170: 3.241381328e-06 | AI170: -4.51 | AL170: -4.51001 | AM170: -4.50999 | AN170: 0.0005627832626 | AO170: 0.0005628006409 | AP170: 0.0008689144996 | AS170: 0.0008689144996 | AT170: -0.0001310855004
AH171: 3.397673159e-06 | AI171: -4.5 | AL171: -4.50001 | AM171: -4.49999 | AN171: 0.0005715437106 | AO171: 0.0005715613755 | AP171: 0.0008832446249 | AS171: 0.0008832446249 | AT171: -0.0001167553751
AH172: 3.561158687e-06 | AI172: -4.49 | AL172: -4.49001 | AM172: -4.48999 | AN172: 0.0005804486907 | AO172: 0.0005804666472 | AP172: 0.0008978221451 | AS172: 0.0008978221451 | AT172: -0.0001021778549
AH173: 3.732151973e-06 | AI173: -4.48 | AL173: -4.48001 | AM173: -4.47999 | AN173: 0.0005895006988 | AO173: 0.0005895189518 | AP173: 0.000912651473 | AS173: 0.000912651473 | AT173: -8.734852695e-05
AH174: 3.91097989e-06 | AI174: -4.47 | AL174: -4.47001 | AM174: -4.46999 | AN174: 0.0005987022754 | AO174: 0.0005987208301 | AP174: 0.0009277371024 | AS174: 0.0009277371024 | AT174: -7.22628976e-05
AH175: 4.097982671e-06 | AI175: -4.46 | AL175: -4.46001 | AM175: -4.45999 | AN175: 0.0006080560061 | AO175: 0.0006080748678 | AP175: 0.000943083608 | AS175: 0.000943083608 | AT175: -5.691639197e-05
AH176: 4.293514486e-06 | AI176: -4.45 | AL176: -4.45001 | AM176: -4.44999 | AN176: 0.000617564523 | AO176: 0.0006175836969 | AP176: 0.000958695648 | AS176: 0.000958695648 | AT176: -4.130435199e-05
AH177: 4.49794389e-06 | AI177: -4.44 | AL177: -4.44001 | AM177: -4.43999 | AN177: 0.0006272305051 | AO177: 0.0006272499966 | AP177: 0.0009745779651 | AS177: 0.0009745779651 | AT177: -2.542203493e-05
AH178: 4.711654429e-06 | AI178: -4.43 | AL178: -4.43001 | AM178: -4.42999 | AN178: 0.000637056679 | AO178: 0.0006370764937 | AP178: 0.0009907353877 | AS178: 0.0009907353877 | AT178: -9.264612266e-06
AH179: 4.935045058e-06 | AI179: -4.42 | AL179: -4.42001 | AM179: -4.41999 | AN179: 0.0006470458203 | AO179: 0.0006470659637 | AP179: 0.001007172833 | AS179: 0.001007172833 | AT179: 7.172832537e-06
AH180: 5.168530942e-06 | AI180: -4.41 | AL180: -4.41001 | AM180: -4.40999 | AN180: 0.0006572007541 | AO180: 0.000657221232 | AP180: 0.001023895305 | AS180: 0.001023895305 | AT180: 2.389530513e-05
AH181: 5.412543892e-06 | AI181: -4.4 | AL181: -4.40001 | AM181: -4.39999 | AN181: 0.0006675243561 | AO181: 0.0006675451742 | AP181: 0.001040907902 | AS181: 0.001040907902 | AT181: 4.090790199e-05
AH182: 5.667533076e-06 | AI182: -4.39 | AL182: -4.39001 | AM182: -4.38999 | AN182: 0.0006780195533 | AO182: 0.0006780407176 | AP182: 0.001058215812 | AS182: 0.001058215812 | AT182: 5.821581208e-05
AH183: 5.933965466e-06 | AI183: -4.38 | AL183: -4.38001 | AM183: -4.37999 | AN183: 0.0006886893251 | AO183: 0.0006887108416 | AP183: 0.001075824319 | AS183: 0.001075824319 | AT183: 7.58243186e-05
AH184: 6.212326827e-06 | AI184: -4.37 | AL184: -4.37001 | AM184: -4.36999 | AN184: 0.0006995367043 | AO184: 0.0006995585791 | AP184: 0.001093738801 | AS184: 0.001093738801 | AT184: 9.373880065e-05
AH185: 6.503122219e-06 | AI185: -4.36 | AL185: -4.36001 | AM185: -4.35999 | AN185: 0.0007105647779 | AO185: 0.0007105870172 | AP185: 0.001111964735 | AS185: 0.001111964735 | AT185: 0.0001119647347
AH186: 6.80687659e-06 | AI186: -4.35 | AL186: -4.35001 | AM186: -4.34999 | AN186: 0.0007217766881 | AO186: 0.0007217992983 | AP186: 0.001130507697 | AS186: 0.001130507697 | AT186: 0.0001305076969
AH187: 7.124135798e-06 | AI187: -4.34 | AL187: -4.34001 | AM187: -4.33999 | AN187: 0.0007331756334 | AO187: 0.0007331986209 | AP187: 0.001149373364 | AS187: 0.001149373364 | AT187: 0.0001493733642
AH188: 7.455467077e-06 | AI188: -4.33 | AL188: -4.33001 | AM188: -4.32999 | AN188: 0.0007447648697 | AO188: 0.0007447882411 | AP188: 0.001168567517 | AS188: 0.001168567517 | AT188: 0.0001685675166
AH189: 7.801460057e-06 | AI189: -4.32 | AL189: -4.32001 | AM189: -4.31999 | AN189: 0.0007565477111 | AO189: 0.000756571473 | AP189: 0.001188096039 | AS189: 0.001188096039 | AT189: 0.0001880960392
AH190: 8.162727273e-06 | AI190: -4.31 | AL190: -4.31001 | AM190: -4.30999 | AN190: 0.0007685275311 | AO190: 0.0007685516904 | AP190: 0.001207964923 | AS190: 0.001207964923 | AT190: 0.0002079649232
AH191: 8.539905472e-06 | AI191: -4.3 | AL191: -4.30001 | AM191: -4.29999 | AN191: 0.0007807077636 | AO191: 0.0007807323272 | AP191: 0.001228180269 | AS191: 0.001228180269 | AT191: 0.000228180269
AH192: 8.933655918e-06 | AI192: -4.29 | AL192: -4.29001 | AM192: -4.28999 | AN192: 0.0007930919042 | AO192: 0.0007931168791 | AP192: 0.001248748287 | AS192: 0.001248748287 | AT192: 0.0002487482871
AH193: 9.344665677e-06 | AI193: -4.28 | AL193: -4.28001 | AM193: -4.27999 | AN193: 0.000805683511 | AO193: 0.0008057089045 | AP193: 0.001269675301 | AS193: 0.001269675301 | AT193: 0.0002696753008
AH194: 9.773648378e-06 | AI194: -4.27 | AL194: -4.27001 | AM194: -4.26999 | AN194: 0.0008184862061 | AO194: 0.0008185120255 | AP194: 0.001290967748 | AS194: 0.001290967748 | AT194: 0.0002909677476
AH195: 1.022134519e-05 | AI195: -4.26 | AL195: -4.26001 | AM195: -4.25999 | AN195: 0.0008315036764 | AO195: 0.000831529929 | AP195: 0.001312632182 | AS195: 0.001312632182 | AT195: 0.0003126321819
AH196: 1.068852578e-05 | AI196: -4.25 | AL196: -4.25001 | AM196: -4.24999 | AN196: 0.0008447396749 | AO196: 0.0008447663684 | AP196: 0.001334675277 | AS196: 0.001334675277 | AT196: 0.0003346752765
AH197: 1.117598934e-05 | AI197: -4.24 | AL197: -4.24001 | AM197: -4.23999 | AN197: 0.000858198022 | AO197: 0.0008582251641 | AP197: 0.001357103825 | AS197: 0.001357103825 | AT197: 0.0003571038254
AH198: 1.16845656e-05 | AI198: -4.23 | AL198: -4.23001 | AM198: -4.22999 | AN198: 0.0008718826068 | AO198: 0.0008719102053 | AP198: 0.001379924745 | AS198: 0.001379924745 | AT198: 0.0003799247447
AH199: 1.221511592e-05 | AI199: -4.22 | AL199: -4.22001 | AM199: -4.21999 | AN199: 0.0008857973879 | AO199: 0.0008858254508 | AP199: 0.001403145076 | AS199: 0.001403145076 | AT199: 0.0004031450764
AH200: 1.276853441e-05 | AI200: -4.21 | AL200: -4.21001 | AM200: -4.20999 | AN200: 0.0008999463951 | AO200: 0.0008999749305 | AP200: 0.00142677199 | AS200: 0.00142677199 | AT200: 0.0004267719896
... 1021 more rows

Sheet CI function
C1: CI function | J1: =($F$6+$F$8+$F$12+$G$21+$F$28)/1000000 -> 0.000245 | K1: =$J$1 -> 0.000245 | L1: 0.000245 | M1: 0.000245 | N1: 0.000245 | O1: 0.000245 | P1: 0.000245 | Q1: 0.000245 | R1: 0.000245 | S1: 0.000245 | T1: 0.000245 | U1: 0.000245 | V1: 0.000245 | W1: 0.000245 | X1: 0.000245 | AJ1: Display values at end? | AK1: TRUE
C2: A graph of C and the p value | J2: =$J$1 -> 0.000245 | X2: =$J$1 -> 0.000245 | AJ2: 1=pop SD | AK2: 1 | AL2: =(AK2=1) -> TRUE | AM2: Pop SD?
C3: against CI limits | J3: 0.000245 | X3: 0.000245 | AJ3: 2-sided CI? | AK3: TRUE
J4: 0.000245 | X4: 0.000245 | AJ4: 2 tail pvf? | AK4: TRUE
A5: 1 | C5: Set your sample mean | J5: 0.000245 | X5: 0.000245 | AJ5: Show mu0? | AK5: TRUE
E6: M | F6: 50 | J6: 0.000245 | X6: 0.000245 | AJ6: Slider | AK6: 100 | AN6: bars
C7: Set the SD | J7: 0.000245 | X7: 0.000245 | AI7: w2 | AJ7: =$B$13*IF(AL2,NORMSINV(0.5+G21/200),TINV((100-G21)/100,$F$13)) -> 37.18770194 | AK7: CI LL | AL7: =F6-AJ7 -> 12.81229806 | AM7: =AJ17 -> 0.05 | AN7: =VLOOKUP(AL7+AL15,K70:N470,4)-AM7 -> 
E8: SD | F8: 60 | J8: 0.000245 | X8: 0.000245 | AK8: CI UL | AL8: =F6+AJ7 -> 87.18770194 | AM8: =AJ17 -> 0.05
J9: 0.000245 | X9: 0.000245 | AI9: Show mean | AJ9: TRUE
A10: Assume this is: | J10: 0.000245 | X10: 0.000245 | AI10: =IF(AJ9,F6,NA()) -> 50 | AJ10: 0
J11: 0.000245 | X11: 0.000245 | AJ11: Display fixed CI? | AK11: FALSE | AL11: bars
E12: Your sample size N | F12: 10 | J12: 0.000245 | X12: 0.000245 | AI12: For fixed CI | AJ12: =IF(AK11,F6,NA()) ->  | AK12: =(100-G32)/100 -> 1 | AL12: =$B$13*IF($AL$2,NORMSINV(1-AK12/2),TINV(AK12,$F$13)) -> -2.641395446e-15
A13: SE | B13: =F8/SQRT(F12) -> 18.97366596 | E13: df | F13: =F12-1 -> 9 | J13: 0.000245 | X13: 0.000245 | AJ13: 50 | AK13: 0
J14: 0.000245 | X14: 0.000245 | AI14: X coords | AJ14: 0 | AK14: 100
B15: Mark sample mean | J15: 0.000245 | X15: 0.000245 | AI15: no. points | AJ15: 400 | AK15: inc | AL15: =(AK14-AJ14)/AJ15 -> 0.25
J16: 0.000245 | X16: 0.000245 | AI16: ht scaling | AJ16: =F28/10 -> 3
A17: 2 | J17: 0.000245 | X17: 0.000245 | AI17: Find p | AJ17: =VLOOKUP(1,A70:J470,10,FALSE) -> 0.05 | AK17: C | AL17: =1-AJ17 -> 0.95
B18: Display the CI function | J18: 0.000245 | X18: 0.000245 | AI18: Disp bulge? | AJ18: FALSE
J19: 0.000245 | X19: 0.000245 | AI19: For labels | AJ19: =IF(AK1,5,NA()) -> 5 | AK19: =AJ17+AL19 -> 0.07 | AL19: 0.02
J20: 0.000245 | X20: 0.000245 | AJ20: =IF(AK1,97,NA()) -> 97 | AK20: =AK19 -> 0.07
A21: 3 | F21: Choose C | G21: =LOOKUP($AK$6,B71:B205,C71:C205) -> 95 | J21: 0.000245 | X21: 0.000245 | AI21: Set of fixed | AJ21: =IF(AK11,F6,NA()) ->  | AK21: 0.01 | AL21: =$B$13*IF($AL$2,NORMSINV(1-AK21/2),TINV(AK21,$F$13)) -> 48.87292478
B22: Display the C% confidence interval | J22: 0.000245 | X22: 0.000245 | AJ22: =IF(AK11,F6,NA()) ->  | AK22: 0.05 | AL22: =$B$13*IF($AL$2,NORMSINV(1-AK22/2),TINV(AK22,$F$13)) -> 37.18770194
B23: CI limits: ( | C23: =IF(AND(AK3,AK4,F6-AJ7>-99),F6-AJ7,"") -> 12.81229806 | D23: , | E23: =IF(AND(AK3,AK4,F6+AJ7<199),F6+AJ7,"") -> 87.18770194 | F23: ) | J23: 0.000245 | X23: 0.000245 | AJ23: =IF(AK11,F6,NA()) ->  | AK23: =NA() ->  | AL23: =$B$13*IF($AL$2,NORMSINV(1-AK23/2),TINV(AK23,$F$13)) -> 
J24: 0.000245 | X24: 0.000245 | AJ24: =IF(AK11,F6,NA()) ->  | AK24: =IF($AL$2,2*(1-NORMSDIST(1)),TDIST(1,$F$13,2)) -> 0.3173105079 | AL24: =$B$13 -> 18.97366596
B25: Display cat's eye picture | J25: 0.000245 | X25: 0.000245 | AJ25: =IF(AK11,F6,NA()) ->  | AK25: 0.5 | AL25: =$B$13*IF($AL$2,NORMSINV(1-AK25/2),TINV(AK25,$F$13)) -> 12.79754321
C26: Display values | J26: 0.000245 | X26: 0.000245 | AI26: sliders
J27: 0.000245 | X27: 0.000245 | AI27: 10
E28: Amount of bulge | F28: 30 | J28: 0.000245 | X28: 0.000245 | AI28: 10
J29: 0.000245 | X29: 0.000245
C30: Fatness ratio | E30: =IF(AJ18,NORMDIST(0,0,1,FALSE)/NORMDIST(NORMSINV(0.5+G21/200),0,1,FALSE),"") ->  | J30: 0.000245 | X30: 0.000245
J31: 0.000245 | X31: 0.000245
B32: Display fixed intervals | J32: 0.000245 | X32: 0.000245
J33: 0.000245 | X33: 0.000245
J34: 0.000245 | X34: 0.000245
J35: 0.000245 | X35: 0.000245
F68: 2t pvf | I68: 2t pvf | L68: bulge | M68: bulge | X68: delta | Y68: 1e-05
A69: findp | B69: Slider | C69: C | E69: w2 | F69: lower | I69: upper | J69: p | K69: X | L69: z or t + | M69: z or t - | N69: outline + | O69: outline - | P69: Xforbars | Q69: Y | R69: bars | S69: Mean | T69: L mark | U69: 1-p | V69: R mark | W69: z | X69: z - | Y69: z + | Z69: t - area | AA69: t + area | AB69: t height
F70: =IF($AK$4,0,NA()) -> 0 | I70: =IF($AK$4,100,NA()) -> 100 | J70: 0 | K70: =AJ14 -> 0 | L70: =IF($AJ$18,$AJ$17+$AJ$16*IF($AL$2,NORMDIST(K70,$F$6,$B$13,FALSE),AB70/$B$13),NA()) ->  | M70: =IF($AJ$18,$AJ$17-$AJ$16*IF($AL$2,NORMDIST(K70,$F$6,$B$13,FALSE),AB70/$B$13),NA()) ->  | N70: =IF(ISNUMBER(L70),IF(AND(K70>=$AL$7,K70<=$AL$8),L70,NA()),NA()) ->  | O70: =IF(ISNUMBER(M70),IF(AND(K70>=$AL$7,K70<=$AL$8),M70,NA()),NA()) ->  | P70: =IF(ISNUMBER(L70),IF(AND(K70>=$AL$7,K70<=$AL$8),K70,NA()),NA()) ->  | Q70: =$AJ$17 -> 0.05 | R70: =N70-$AJ$17 ->  | W70: =(K70-$F$6)/$B$13 -> -2.635231383 | X70: =W70-$Y$68 -> -2.635241383 | Y70: =W70+$Y$68 -> -2.635221383 | Z70: =IF(X70<0,TDIST(-X70,$F$13,1),1-TDIST(X70,$F$13,1)) -> 0.01356228021 | AA70: =IF(Y70<0,TDIST(-Y70,$F$13,1),1-TDIST(Y70,$F$13,1)) -> 0.01356272491 | AB70: =(AA70-Z70)/(2*$Y$68) -> 0.0222349617
A71: =IF(ISNUMBER(S71),1,0) -> 0 | B71: 0 | C71: 0 | E71: =$B$13*IF($AL$2,NORMSINV(1-J71/2),TINV(J71,$F$13)) -> 62.43335504 | F71: =IF($AK$4,$F$6-E71,NA()) -> -12.43335504 | I71: =IF($AK$4,$F$6+E71,NA()) -> 112.433355 | J71: 0.001 | K71: =K70+$AL$15 -> 0.25 | Q71: 0.05 | S71: =IF(AND($AK$3,$G$21=ROUND((1-J71)*100,4)),$F$6,NA()) ->  | T71: =IF(AND($AK$3,NOT($AJ$18),$G$21=ROUND((1-J71)*100,4)),0,NA()) ->  | U71: 0.999 | V71: =IF(AND($AK$3,NOT($AJ$18),$G$21=ROUND((1-J71)*100,4)),100,NA()) ->  | W71: -2.622055227 | X71: -2.622065227 | Y71: -2.622045227 | Z71: 0.01385845926 | AA71: 0.01385891375 | AB71: 0.02272432158
A72: 0 | B72: 1 | C72: 1 | E72: 58.63303552 | F72: -8.633035519 | I72: 108.6330355 | J72: 0.002 | K72: 0.5 | Q72: 0.05 | U72: 0.998 | W72: -2.60887907 | X72: -2.60888907 | Y72: -2.60886907 | Z72: 0.01416115458 | AA72: 0.01416161907 | AB72: 0.02322411162
A73: 0 | B73: 2 | C73: 2 | E73: 56.30886806 | F73: -6.308868055 | I73: 106.3088681 | J73: 0.003 | K73: 0.75 | Q73: 0.05 | U73: 0.997 | W73: -2.595702913 | X73: -2.595712913 | Y73: -2.595692913 | Z73: 0.01447050493 | AA73: 0.01447097962 | AB73: 0.02373453201
A74: 0 | B74: 3 | C74: 3 | E74: 54.60927942 | F74: -4.609279419 | I74: 104.6092794 | J74: 0.004 | K74: 1 | Q74: 0.05 | U74: 0.996 | W74: -2.582526756 | X74: -2.582536756 | Y74: -2.582516756 | Z74: 0.01478665168 | AA74: 0.0147871368 | AB74: 0.02425578578
A75: 0 | B75: 4 | C75: 4 | E75: 53.25972106 | F75: -3.259721062 | I75: 103.2597211 | J75: 0.005 | K75: 1.25 | Q75: 0.05 | U75: 0.995 | W75: -2.569350599 | X75: -2.569360599 | Y75: -2.569340599 | Z75: 0.01510973895 | AA75: 0.01511023471 | AB75: 0.02478807873
A76: 0 | B76: 5 | C76: 5 | E76: 52.13548614 | F76: -2.135486141 | I76: 102.1354861 | J76: 0.006 | K76: 1.5 | Q76: 0.05 | U76: 0.994 | W76: -2.556174442 | X76: -2.556184442 | Y76: -2.556164442 | Z76: 0.01543991356 | AA76: 0.01544042019 | AB76: 0.02533161949
A77: 0 | B77: 6 | C77: 6 | E77: 51.16902215 | F77: -1.169022155 | I77: 101.1690222 | J77: 0.007 | K77: 1.75 | Q77: 0.05 | U77: 0.993 | W77: -2.542998285 | X77: -2.543008285 | Y77: -2.542988285 | Z77: 0.01577732508 | AA77: 0.01577784282 | AB77: 0.02588661944
A78: 0 | B78: 7 | C78: 7 | E78: 50.31948664 | F78: -0.3194866404 | I78: 100.3194866 | J78: 0.008 | K78: 2 | Q78: 0.05 | U78: 0.992 | W78: -2.529822128 | X78: -2.529832128 | Y78: -2.529812128 | Z78: 0.01612212593 | AA78: 0.01612265499 | AB78: 0.02645329276
A79: 0 | B79: 8 | C79: 8 | E79: 49.56024275 | F79: 0.4397572522 | I79: 99.56024275 | J79: 0.009 | K79: 2.25 | Q79: 0.05 | U79: 0.991 | W79: -2.516645971 | X79: -2.516655971 | Y79: -2.516635971 | Z79: 0.01647447133 | AA79: 0.01647501196 | AB79: 0.02703185636
A80: 0 | B80: 9 | C80: 9 | E80: 48.87292478 | F80: 1.127075222 | I80: 98.87292478 | J80: 0.01 | K80: 2.5 | Q80: 0.05 | U80: 0.99 | W80: -2.503469814 | X80: -2.503479814 | Y80: -2.503459814 | Z80: 0.01683451939 | AA80: 0.01683507184 | AB80: 0.02762252991
A81: 0 | B81: 10 | C81: 10 | E81: 48.24431804 | F81: 1.755681961 | I81: 98.24431804 | J81: 0.011 | K81: 2.75 | Q81: 0.05 | U81: 0.989 | W81: -2.490293657 | X81: -2.490303657 | Y81: -2.490283657 | Z81: 0.01720243113 | AA81: 0.01720299564 | AB81: 0.02822553578
A82: 0 | B82: 11 | C82: 11 | E82: 47.66458732 | F82: 2.335412676 | I82: 97.66458732 | J82: 0.012 | K82: 3 | Q82: 0.05 | U82: 0.988 | W82: -2.4771175 | X82: -2.4771275 | Y82: -2.4771075 | Z82: 0.01757837053 | AA82: 0.01757894735 | AB82: 0.02884109902
A83: 0 | B83: 12 | C83: 12 | E83: 47.12620889 | F83: 2.873791106 | I83: 97.12620889 | J83: 0.013 | K83: 3.25 | Q83: 0.05 | U83: 0.987 | W83: -2.463941344 | X83: -2.463951344 | Y83: -2.463931344 | Z83: 0.01796250454 | AA83: 0.01796309393 | AB83: 0.02946944733
A84: 0 | B84: 13 | C84: 13 | E84: 46.62329474 | F84: 3.376705256 | I84: 96.62329474 | J84: 0.014 | K84: 3.5 | Q84: 0.05 | U84: 0.986 | W84: -2.450765187 | X84: -2.450775187 | Y84: -2.450755187 | Z84: 0.01835500312 | AA84: 0.01835560534 | AB84: 0.03011081104
A85: 0 | B85: 14 | C85: 14 | E85: 46.15114775 | F85: 3.848852252 | I85: 96.15114775 | J85: 0.015 | K85: 3.75 | Q85: 0.05 | U85: 0.985 | W85: -2.43758903 | X85: -2.43759903 | Y85: -2.43757903 | Z85: 0.01875603931 | AA85: 0.01875665461 | AB85: 0.03076542308
A86: 0 | B86: 15 | C86: 15 | E86: 45.70595889 | F86: 4.294041105 | I86: 95.70595889 | J86: 0.016 | K86: 4 | Q86: 0.05 | U86: 0.984 | W86: -2.424412873 | X86: -2.424422873 | Y86: -2.424402873 | Z86: 0.0191657892 | AA86: 0.01916641787 | AB86: 0.03143351889
A87: 0 | B87: 16 | C87: 16 | E87: 45.2845953 | F87: 4.715404699 | I87: 95.2845953 | J87: 0.017 | K87: 4.25 | Q87: 0.05 | U87: 0.983 | W87: -2.411236716 | X87: -2.411246716 | Y87: -2.411226716 | Z87: 0.01958443203 | AA87: 0.01958507433 | AB87: 0.03211533645
A88: 0 | B88: 17 | C88: 17 | E88: 44.88444813 | F88: 5.11555187 | I88: 94.88444813 | J88: 0.018 | K88: 4.5 | Q88: 0.05 | U88: 0.982 | W88: -2.398060559 | X88: -2.398070559 | Y88: -2.398050559 | Z88: 0.02001215017 | AA88: 0.02001280639 | AB88: 0.03281111616
A89: 0 | B89: 18 | C89: 18 | E89: 44.50332114 | F89: 5.496678859 | I89: 94.50332114 | J89: 0.019 | K89: 4.75 | Q89: 0.05 | U89: 0.981 | W89: -2.384884402 | X89: -2.384894402 | Y89: -2.384874402 | Z89: 0.02044912919 | AA89: 0.02044979961 | AB89: 0.03352110083
A90: 0 | B90: 19 | C90: 19 | E90: 44.13934747 | F90: 5.860652529 | I90: 94.13934747 | J90: 0.02 | K90: 5 | Q90: 0.05 | U90: 0.98 | W90: -2.371708245 | X90: -2.371718245 | Y90: -2.371698245 | Z90: 0.02089555786 | AA90: 0.02089624277 | AB90: 0.03424553564
A91: 0 | B91: 20 | C91: 20 | E91: 43.45667504 | F91: 6.543324958 | I91: 93.45667504 | J91: 0.022 | K91: 5.25 | Q91: 0.05 | U91: 0.978 | W91: -2.358532088 | X91: -2.358542088 | Y91: -2.358522088 | Z91: 0.02135162821 | AA91: 0.0213523279 | AB91: 0.034984668
A92: 0 | B92: 21 | C92: 21 | E92: 42.82601632 | F92: 7.173983684 | I92: 92.82601632 | J92: 0.024 | K92: 5.5 | Q92: 0.05 | U92: 0.976 | W92: -2.345355931 | X92: -2.345365931 | Y92: -2.345345931 | Z92: 0.02181753553 | AA92: 0.0218182503 | AB92: 0.03573874758
A93: 0 | B93: 22 | C93: 22 | E93: 42.23939847 | F93: 7.760601531 | I93: 92.23939847 | J93: 0.026 | K93: 5.75 | Q93: 0.05 | U93: 0.974 | W93: -2.332179774 | X93: -2.332189774 | Y93: -2.332169774 | Z93: 0.02229347842 | AA93: 0.02229420858 | AB93: 0.03650802619
A94: 0 | B94: 23 | C94: 23 | E94: 41.69057773 | F94: 8.309422269 | I94: 91.69057773 | J94: 0.028 | K94: 6 | Q94: 0.05 | U94: 0.972 | W94: -2.319003617 | X94: -2.319013617 | Y94: -2.318993617 | Z94: 0.02277965882 | AA94: 0.02278040468 | AB94: 0.03729275768
A95: 0 | B95: 24 | C95: 24 | E95: 41.17456993 | F95: 8.825430071 | I95: 91.17456993 | J95: 0.03 | K95: 6.25 | Q95: 0.05 | U95: 0.97 | W95: -2.305827461 | X95: -2.305837461 | Y95: -2.305817461 | Z95: 0.02327628202 | AA95: 0.02327704388 | AB95: 0.03809319791
A96: 0 | B96: 25 | C96: 25 | E96: 40.6873308 | F96: 9.312669196 | I96: 90.6873308 | J96: 0.032 | K96: 6.5 | Q96: 0.05 | U96: 0.968 | W96: -2.292651304 | X96: -2.292661304 | Y96: -2.292641304 | Z96: 0.02378355668 | AA96: 0.02378433488 | AB96: 0.03890960466
A97: 0 | B97: 26 | C97: 26 | E97: 40.22553205 | F97: 9.774467945 | I97: 90.22553205 | J97: 0.034 | K97: 6.75 | Q97: 0.05 | U97: 0.966 | W97: -2.279475147 | X97: -2.279485147 | Y97: -2.279465147 | Z97: 0.02430169491 | AA97: 0.02430248975 | AB97: 0.03974223749
A98: 0 | B98: 27 | C98: 27 | E98: 39.78640059 | F98: 10.21359941 | I98: 89.78640059 | J98: 0.036 | K98: 7 | Q98: 0.05 | U98: 0.964 | W98: -2.26629899 | X98: -2.26630899 | Y98: -2.26628899 | Z98: 0.0248309122 | AA98: 0.02483172402 | AB98: 0.04059135771
A99: 0 | B99: 28 | C99: 28 | E99: 39.36760065 | F99: 10.63239935 | I99: 89.36760065 | J99: 0.038 | K99: 7.25 | Q99: 0.05 | U99: 0.962 | W99: -2.253122833 | X99: -2.253132833 | Y99: -2.253112833 | Z99: 0.02537142752 | AA99: 0.02537225667 | AB99: 0.0414572282
A100: 0 | B100: 29 | C100: 29 | E100: 38.9671458 | F100: 11.0328542 | I100: 88.9671458 | J100: 0.04 | K100: 7.5 | Q100: 0.05 | U100: 0.96 | W100: -2.239946676 | X100: -2.239956676 | Y100: -2.239936676 | Z100: 0.02592346333 | AA100: 0.02592431013 | AB100: 0.04234011338
A101: 0 | B101: 30 | C101: 30 | E101: 38.58333204 | F101: 11.41666796 | I101: 88.58333204 | J101: 0.042 | K101: 7.75 | Q101: 0.05 | U101: 0.958 | W101: -2.226770519 | X101: -2.226780519 | Y101: -2.226760519 | Z101: 0.02648724554 | AA101: 0.02648811035 | AB101: 0.04324027906
A102: 0 | B102: 31 | C102: 31 | E102: 38.21468628 | F102: 11.78531372 | I102: 88.21468628 | J102: 0.044 | K102: 8 | Q102: 0.05 | U102: 0.956 | W102: -2.213594362 | X102: -2.213604362 | Y102: -2.213584362 | Z102: 0.02706300362 | AA102: 0.02706388678 | AB102: 0.04415799231
A103: =IF(ISNUMBER(S103),1,0) -> 0 | B103: 32 | C103: 32 | E103: =$B$13*IF($AL$2,NORMSINV(1-J103/2),TINV(J103,$F$13)) -> 37.85992613 | F103: =IF($AK$4,$F$6-E103,NA()) -> 12.14007387 | I103: =IF($AK$4,$F$6+E103,NA()) -> 87.85992613 | J103: 0.046 | K103: 8.25 | Q103: 0.05 | S103: =IF(AND($AK$3,$G$21=ROUND((1-J103)*100,4)),$F$6,NA()) ->  | T103: =IF(AND($AK$3,NOT($AJ$18),$G$21=ROUND((1-J103)*100,4)),0,NA()) ->  | U103: 0.954 | V103: =IF(AND($AK$3,NOT($AJ$18),$G$21=ROUND((1-J103)*100,4)),100,NA()) ->  | W103: -2.200418205 | X103: -2.200428205 | Y103: -2.200408205 | Z103: 0.02765097053 | AA103: 0.0276518724 | AB103: 0.04509352133
A104: 0 | B104: 33 | C104: 33 | E104: 37.51792804 | F104: 12.48207196 | I104: 87.51792804 | J104: 0.048 | K104: 8.5 | Q104: 0.05 | U104: 0.952 | W104: -2.187242048 | X104: -2.187252048 | Y104: -2.187232048 | Z104: 0.02825138279 | AA104: 0.02825230373 | AB104: 0.04604713535
A105: 1 | B105: 34 | C105: 34 | E105: 37.18770194 | F105: 12.81229806 | I105: 87.18770194 | J105: 0.05 | K105: 8.75 | Q105: 0.05 | S105: 50 | T105: 0 | U105: 0.95 | V105: 100 | W105: -2.174065891 | X105: -2.174075891 | Y105: -2.174055891 | Z105: 0.02886448045 | AA105: 0.02886542083 | AB105: 0.04701910448
A106: 0 | B106: 35 | C106: 35 | E106: 36.40811654 | F106: 13.59188346 | I106: 86.40811654 | J106: 0.055 | K106: 9 | Q106: 0.05 | U106: 0.945 | W106: -2.160889734 | X106: -2.160899734 | Y106: -2.160879734 | Z106: 0.02949050716 | AA106: 0.02949146736 | AB106: 0.04800969954
A107: 0 | B107: 36 | C107: 36 | E107: 35.68554966 | F107: 14.31445034 | I107: 85.68554966 | J107: 0.06 | K107: 9.25 | Q107: 0.05 | U107: 0.94 | W107: -2.147713578 | X107: -2.147723578 | Y107: -2.147703578 | Z107: 0.03012971012 | AA107: 0.0301306905 | AB107: 0.04901919191
A108: 0 | B108: 37 | C108: 37 | E108: 35.01131112 | F108: 14.98868888 | I108: 85.01131112 | J108: 0.065 | K108: 9.5 | Q108: 0.05 | U108: 0.935 | W108: -2.134537421 | X108: -2.134547421 | Y108: -2.134527421 | Z108: 0.0307823401 | AA108: 0.03078334106 | AB108: 0.0500478534
A109: 0 | B109: 38 | C109: 38 | E109: 34.37858786 | F109: 15.62141214 | I109: 84.37858786 | J109: 0.07 | K109: 9.75 | Q109: 0.05 | U109: 0.93 | W109: -2.121361264 | X109: -2.121371264 | Y109: -2.121351264 | Z109: 0.03144865148 | AA109: 0.0314496734 | AB109: 0.05109595606
A110: 0 | B110: 39 | C110: 39 | E110: 33.78193567 | F110: 16.21806433 | I110: 83.78193567 | J110: 0.075 | K110: 10 | Q110: 0.05 | U110: 0.925 | W110: -2.108185107 | X110: -2.108195107 | Y110: -2.108175107 | Z110: 0.03212890286 | AA110: 0.03212994614 | AB110: 0.05216377784
A111: 0 | B111: 40 | C111: 40 | E111: 33.21693272 | F111: 16.78306728 | I111: 83.21693272 | J111: 0.08 | K111: 10.25 | Q111: 0.05 | U111: 0.92 | W111: -2.09500895 | X111: -2.09501895 | Y111: -2.09499895 | Z111: 0.03282335454 | AA111: 0.03282441957 | AB111: 0.05325157979
A112: 0 | B112: 41 | C112: 41 | E112: 32.67993659 | F112: 17.32006341 | I112: 82.67993659 | J112: 0.085 | K112: 10.5 | Q112: 0.05 | U112: 0.915 | W112: -2.081832793 | X112: -2.081842793 | Y112: -2.081822793 | Z112: 0.03353227222 | AA112: 0.03353335941 | AB112: 0.0543596388
A113: 0 | B113: 42 | C113: 42 | E113: 32.16790983 | F113: 17.83209017 | I113: 82.16790983 | J113: 0.09 | K113: 10.75 | Q113: 0.05 | U113: 0.91 | W113: -2.068656636 | X113: -2.068666636 | Y113: -2.068646636 | Z113: 0.03425592459 | AA113: 0.03425703436 | AB113: 0.05548822609
A114: 0 | B114: 43 | C114: 43 | E114: 31.67829185 | F114: 18.32170815 | I114: 81.67829185 | J114: 0.095 | K114: 11 | Q114: 0.05 | U114: 0.905 | W114: -2.055480479 | X114: -2.055490479 | Y114: -2.055470479 | Z114: 0.03499458394 | AA114: 0.03499571669 | AB114: 0.05663761215
A115: 0 | B115: 44 | C115: 44 | E115: 31.20890327 | F115: 18.79109673 | I115: 81.20890327 | J115: 0.1 | K115: 11.25 | Q115: 0.05 | U115: 0.9 | W115: -2.042304322 | X115: -2.042314322 | Y115: -2.042294322 | Z115: 0.03574852606 | AA115: 0.03574968222 | AB115: 0.05780806656
A116: 0 | B116: 45 | C116: 45 | E116: 30.32358278 | F116: 19.67641722 | I116: 80.32358278 | J116: 0.11 | K116: 11.5 | Q116: 0.05 | U116: 0.89 | W116: -2.029128165 | X116: -2.029138165 | Y116: -2.029118165 | Z116: 0.03651803034 | AA116: 0.03651921033 | AB116: 0.05899985774
A117: 0 | B117: 46 | C117: 46 | E117: 29.49975483 | F117: 20.50024517 | I117: 79.49975483 | J117: 0.12 | K117: 11.75 | Q117: 0.05 | U117: 0.88 | W117: -2.015952008 | X117: -2.015962008 | Y117: -2.015942008 | Z117: 0.03730337966 | AA117: 0.03730458393 | AB117: 0.06021325278
A118: 0 | B118: 47 | C118: 47 | E118: 28.72806345 | F118: 21.27193655 | I118: 78.72806345 | J118: 0.13 | K118: 12 | Q118: 0.05 | U118: 0.87 | W118: -2.002775851 | X118: -2.002785851 | Y118: -2.002765851 | Z118: 0.03810486044 | AA118: 0.03810608941 | AB118: 0.06144851711
A119: 0 | B119: 48 | C119: 48 | E119: 28.001166 | F119: 21.998834 | I119: 78.001166 | J119: 0.14 | K119: 12.25 | Q119: 0.05 | U119: 0.86 | W119: -1.989599695 | X119: -1.989609695 | Y119: -1.989589695 | Z119: 0.03892276255 | AA119: 0.03892401667 | AB119: 0.06270591433
A120: 0 | B120: 49 | C120: 49 | E120: 27.31318927 | F120: 22.68681073 | I120: 77.31318927 | J120: 0.15 | K120: 12.5 | Q120: 0.05 | U120: 0.85 | W120: -1.976423538 | X120: -1.976433538 | Y120: -1.976413538 | Z120: 0.03975737936 | AA120: 0.03975865907 | AB120: 0.06398570593
A121: 0 | B121: 50 | C121: 50 | E121: 26.65935844 | F121: 23.34064156 | I121: 76.65935844 | J121: 0.16 | K121: 12.75 | Q121: 0.05 | U121: 0.84 | W121: -1.963247381 | X121: -1.963257381 | Y121: -1.963237381 | Z121: 0.04060900763 | AA121: 0.04061031339 | AB121: 0.06528815101
A122: 0 | B122: 51 | C122: 51 | E122: 26.0357367 | F122: 23.9642633 | I122: 76.0357367 | J122: 0.17 | K122: 13 | Q122: 0.05 | U122: 0.83 | W122: -1.950071224 | X122: -1.950081224 | Y122: -1.950061224 | Z122: 0.04147794755 | AA122: 0.04147927982 | AB122: 0.06661350605
A123: 0 | B123: 52 | C123: 52 | E123: 25.43903814 | F123: 24.56096186 | I123: 75.43903814 | J123: 0.18 | K123: 13.25 | Q123: 0.05 | U123: 0.82 | W123: -1.936895067 | X123: -1.936905067 | Y123: -1.936885067 | Z123: 0.04236450264 | AA123: 0.04236586188 | AB123: 0.06796202455
A124: 0 | B124: 53 | C124: 53 | E124: 24.86649029 | F124: 25.13350971 | I124: 74.86649029 | J124: 0.19 | K124: 13.5 | Q124: 0.05 | U124: 0.81 | W124: -1.92371891 | X124: -1.92372891 | Y124: -1.92370891 | Z124: 0.04326897978 | AA124: 0.04327036645 | AB124: 0.06933395685
A125: 0 | B125: 54 | C125: 54 | E125: 24.31573132 | F125: 25.68426868 | I125: 74.31573132 | J125: 0.2 | K125: 13.75 | Q125: 0.05 | U125: 0.8 | W125: -1.910542753 | X125: -1.910552753 | Y125: -1.910532753 | Z125: 0.04419168908 | AA125: 0.04419310367 | AB125: 0.07072954974
A126: 0 | B126: 55 | C126: 55 | E126: 23.78473189 | F126: 26.21526811 | I126: 73.78473189 | J126: 0.21 | K126: 14 | Q126: 0.05 | U126: 0.79 | W126: -1.897366596 | X126: -1.897376596 | Y126: -1.897356596 | Z126: 0.0451329439 | AA126: 0.04513438688 | AB126: 0.07214904618
A127: 0 | B127: 56 | C127: 56 | E127: 23.27173484 | F127: 26.72826516 | I127: 73.27173484 | J127: 0.22 | K127: 14.25 | Q127: 0.05 | U127: 0.78 | W127: -1.884190439 | X127: -1.884200439 | Y127: -1.884180439 | Z127: 0.04609306079 | AA127: 0.04609453264 | AB127: 0.07359268502
A128: 0 | B128: 57 | C128: 57 | E128: 22.77520801 | F128: 27.22479199 | I128: 72.77520801 | J128: 0.23 | K128: 14.5 | Q128: 0.05 | U128: 0.77 | W128: -1.871014282 | X128: -1.871024282 | Y128: -1.871004282 | Z128: 0.04707235938 | AA128: 0.0470738606 | AB128: 0.07506070062
A129: 0 | B129: 58 | C129: 58 | E129: 22.2938069 | F129: 27.7061931 | I129: 72.2938069 | J129: 0.24 | K129: 14.75 | Q129: 0.05 | U129: 0.76 | W129: -1.857838125 | X129: -1.857848125 | Y129: -1.857828125 | Z129: 0.04807116239 | AA129: 0.04807269346 | AB129: 0.07655332256
A130: 0 | B130: 59 | C130: 59 | E130: 21.82634488 | F130: 28.17365512 | I130: 71.82634488 | J130: 0.25 | K130: 15 | Q130: 0.05 | U130: 0.75 | W130: -1.844661968 | X130: -1.844671968 | Y130: -1.844651968 | Z130: 0.04908979552 | AA130: 0.04909135694 | AB130: 0.07807077526
A131: 0 | B131: 60 | C131: 60 | E131: 21.37176902 | F131: 28.62823098 | I131: 71.37176902 | J131: 0.26 | K131: 15.25 | Q131: 0.05 | U131: 0.74 | W131: -1.831485812 | X131: -1.831495812 | Y131: -1.831475812 | Z131: 0.05012858739 | AA131: 0.05013017965 | AB131: 0.07961327767
A132: 0 | B132: 61 | C132: 61 | E132: 20.92914048 | F132: 29.07085952 | I132: 70.92914048 | J132: 0.27 | K132: 15.5 | Q132: 0.05 | U132: 0.73 | W132: -1.818309655 | X132: -1.818319655 | Y132: -1.818299655 | Z132: 0.05118786945 | AA132: 0.05118949308 | AB132: 0.08118104286
A133: 0 | B133: 62 | C133: 62 | E133: 20.4976183 | F133: 29.5023817 | I133: 70.4976183 | J133: 0.28 | K133: 15.75 | Q133: 0.05 | U133: 0.72 | W133: -1.805133498 | X133: -1.805143498 | Y133: -1.805123498 | Z133: 0.05226797596 | AA133: 0.05226963145 | AB133: 0.08277427771
A134: 0 | B134: 63 | C134: 63 | E134: 20.07644612 | F134: 29.92355388 | I134: 70.07644612 | J134: 0.29 | K134: 16 | L134: =IF($AJ$18,$AJ$17+$AJ$16*IF($AL$2,NORMDIST(K134,$F$6,$B$13,FALSE),AB134/$B$13),NA()) ->  | M134: =IF($AJ$18,$AJ$17-$AJ$16*IF($AL$2,NORMDIST(K134,$F$6,$B$13,FALSE),AB134/$B$13),NA()) ->  | N134: =IF(ISNUMBER(L134),IF(AND(K134>=$AL$7,K134<=$AL$8),L134,NA()),NA()) ->  | O134: =IF(ISNUMBER(M134),IF(AND(K134>=$AL$7,K134<=$AL$8),M134,NA()),NA()) ->  | P134: =IF(ISNUMBER(L134),IF(AND(K134>=$AL$7,K134<=$AL$8),K134,NA()),NA()) ->  | Q134: =$AJ$17 -> 0.05 | R134: =N134-$AJ$17 ->  | U134: 0.71 | W134: =(K134-$F$6)/$B$13 -> -1.791957341 | X134: =W134-$Y$68 -> -1.791967341 | Y134: =W134+$Y$68 -> -1.791947341 | Z134: =IF(X134<0,TDIST(-X134,$F$13,1),1-TDIST(X134,$F$13,1)) -> 0.05336924382 | AA134: =IF(Y134<0,TDIST(-Y134,$F$13,1),1-TDIST(Y134,$F$13,1)) -> 0.05337093169 | AB134: =(AA134-Z134)/(2*$Y$68) -> 0.08439318249
A135: =IF(ISNUMBER(S135),1,0) -> 0 | B135: 64 | C135: 64 | E135: =$B$13*IF($AL$2,NORMSINV(1-J135/2),TINV(J135,$F$13)) -> 19.66494092 | F135: =IF($AK$4,$F$6-E135,NA()) -> 30.33505908 | I135: =IF($AK$4,$F$6+E135,NA()) -> 69.66494092 | J135: 0.3 | K135: =K134+$AL$15 -> 16.25 | Q135: 0.05 | S135: =IF(AND($AK$3,$G$21=ROUND((1-J135)*100,4)),$F$6,NA()) ->  | T135: =IF(AND($AK$3,NOT($AJ$18),$G$21=ROUND((1-J135)*100,4)),0,NA()) ->  | U135: 0.7 | V135: =IF(AND($AK$3,NOT($AJ$18),$G$21=ROUND((1-J135)*100,4)),100,NA()) ->  | W135: -1.778781184 | X135: -1.778791184 | Y135: -1.778771184 | Z135: 0.05449201255 | AA135: 0.05449373331 | AB135: 0.08603795049
A136: 0 | B136: 65 | C136: 65 | E136: 19.26248373 | F136: 30.73751627 | I136: 69.26248373 | J136: 0.31 | K136: 16.5 | Q136: 0.05 | U136: 0.69 | W136: -1.765605027 | X136: -1.765615027 | Y136: -1.765595027 | Z136: 0.05563662415 | AA136: 0.05563837833 | AB136: 0.08770876764
A137: 0 | B137: 66 | C137: 66 | E137: 18.86851169 | F137: 31.13148831 | I137: 68.86851169 | J137: 0.32 | K137: 16.75 | Q137: 0.05 | U137: 0.68 | W137: -1.75242887 | X137: -1.75243887 | Y137: -1.75241887 | Z137: 0.05680342303 | AA137: 0.05680521115 | AB137: 0.08940581206
A138: 0 | B138: 67 | C138: 67 | E138: 18.48251131 | F138: 31.51748869 | I138: 68.48251131 | J138: 0.33 | K138: 17 | Q138: 0.05 | U138: 0.67 | W138: -1.739252713 | X138: -1.739262713 | Y138: -1.739242713 | Z138: 0.0579927578 | AA138: 0.05799458039 | AB138: 0.09112927336
A139: 0 | B139: 68 | C139: 68 | E139: 18.10401278 | F139: 31.89598722 | I139: 68.10401278 | J139: 0.34 | K139: 17.25 | Q139: 0.05 | U139: 0.66 | W139: -1.726076556 | X139: -1.726086556 | Y139: -1.726066556 | Z139: 0.05920497382 | AA139: 0.0592068314 | AB139: 0.09287927652
A140: 0 | B140: 69 | C140: 69 | E140: 17.73258502 | F140: 32.26741498 | I140: 67.73258502 | J140: 0.35 | K140: 17.5 | Q140: 0.05 | U140: 0.65 | W140: -1.712900399 | X140: -1.712910399 | Y140: -1.712890399 | Z140: 0.0604404237 | AA140: 0.06044231682 | AB140: 0.09465599102
A141: 0 | B141: 70 | C141: 70 | E141: 17.36783141 | F141: 32.63216859 | I141: 67.36783141 | J141: 0.36 | K141: 17.75 | Q141: 0.05 | U141: 0.64 | W141: -1.699724242 | X141: -1.699734242 | Y141: -1.699714242 | Z141: 0.06169946034 | AA141: 0.06170138953 | AB141: 0.09645955981
A142: 0 | B142: 71 | C142: 71 | E142: 17.00938615 | F142: 32.99061385 | I142: 67.00938615 | J142: 0.37 | K142: 18 | Q142: 0.05 | U142: 0.63 | W142: -1.686548085 | X142: -1.686558085 | Y142: -1.686538085 | Z142: 0.06298243848 | AA142: 0.06298440428 | AB142: 0.09829011592
A143: 0 | B143: 72 | C143: 72 | E143: 16.65691105 | F143: 33.34308895 | I143: 66.65691105 | J143: 0.38 | K143: 18.25 | Q143: 0.05 | U143: 0.62 | W143: -1.673371929 | X143: -1.673381929 | Y143: -1.673361929 | Z143: 0.06428971451 | AA143: 0.06429171747 | AB143: 0.1001477821
A144: 0 | B144: 73 | C144: 73 | E144: 16.31009272 | F144: 33.68990728 | I144: 66.31009272 | J144: 0.39 | K144: 18.5 | Q144: 0.05 | U144: 0.61 | W144: -1.660195772 | X144: -1.660205772 | Y144: -1.660185772 | Z144: 0.0656216464 | AA144: 0.06562368705 | AB144: 0.1020326702
A145: 0 | B145: 74 | C145: 74 | E145: 15.96864015 | F145: 34.03135985 | I145: 65.96864015 | J145: 0.4 | K145: 18.75 | Q145: 0.05 | U145: 0.6 | W145: -1.647019615 | X145: -1.647029615 | Y145: -1.647009615 | Z145: 0.06697859349 | AA145: 0.06698067239 | AB145: 0.1039448809
A146: 0 | B146: 75 | C146: 75 | E146: 15.63228253 | F146: 34.36771747 | I146: 65.63228253 | J146: 0.41 | K146: 19 | Q146: 0.05 | U146: 0.59 | W146: -1.633843458 | X146: -1.633853458 | Y146: -1.633833458 | Z146: 0.0683609164 | AA146: 0.06836303409 | AB146: 0.1058845033
A147: 0 | B147: 76 | C147: 76 | E147: 15.30076736 | F147: 34.69923264 | I147: 65.30076736 | J147: 0.42 | K147: 19.25 | Q147: 0.05 | U147: 0.58 | W147: -1.620667301 | X147: -1.620677301 | Y147: -1.620657301 | Z147: 0.06976897682 | AA147: 0.06977113385 | AB147: 0.1078516141
A148: 0 | B148: 77 | C148: 77 | E148: 14.9738588 | F148: 35.0261412 | I148: 64.9738588 | J148: 0.43 | K148: 19.5 | Q148: 0.05 | U148: 0.57 | W148: -1.607491144 | X148: -1.607501144 | Y148: -1.607481144 | Z148: 0.07120313738 | AA148: 0.0712053343 | AB148: 0.1098462775
A149: 0 | B149: 78 | C149: 78 | E149: 14.6513361 | F149: 35.3486639 | I149: 64.6513361 | J149: 0.44 | K149: 19.75 | Q149: 0.05 | U149: 0.56 | W149: -1.594314987 | X149: -1.594324987 | Y149: -1.594304987 | Z149: 0.07266376147 | AA149: 0.07266599884 | AB149: 0.1118685446
A150: 0 | B150: 79 | C150: 79 | E150: 14.33299237 | F150: 35.66700763 | I150: 64.33299237 | J150: 0.45 | K150: 20 | Q150: 0.05 | U150: 0.55 | W150: -1.58113883 | X150: -1.58114883 | Y150: -1.58112883 | Z150: 0.07415121306 | AA150: 0.07415349143 | AB150: 0.1139184527
A151: 0 | B151: 80 | C151: 80 | E151: 14.01863331 | F151: 35.98136669 | I151: 64.01863331 | J151: 0.46 | K151: 20.25 | Q151: 0.05 | U151: 0.54 | W151: -1.567962673 | X151: -1.567972673 | Y151: -1.567952673 | Z151: 0.07566585652 | AA151: 0.07566817644 | AB151: 0.1159960253
A152: 0 | B152: 81 | C152: 81 | E152: 13.7080762 | F152: 36.2919238 | I152: 63.7080762 | J152: 0.47 | K152: 20.5 | Q152: 0.05 | U152: 0.53 | W152: -1.554786516 | X152: -1.554796516 | Y152: -1.554776516 | Z152: 0.07720805846 | AA152: 0.07721042048 | AB152: 0.1181012946
A153: 0 | B153: 82 | C153: 82 | E153: 13.40114889 | F153: 36.59885111 | I153: 63.40114889 | J153: 0.48 | K153: 20.75 | Q153: 0.05 | U153: 0.52 | W153: -1.541610359 | X153: -1.541620359 | Y153: -1.541600359 | Z153: 0.07877817977 | AA153: 0.07878058446 | AB153: 0.1202342115
A154: 0 | B154: 83 | C154: 83 | E154: 13.09768904 | F154: 36.90231096 | I154: 63.09768904 | J154: 0.49 | K154: 21 | Q154: 0.05 | U154: 0.51 | W154: -1.528434202 | X154: -1.528444202 | Y154: -1.528424202 | Z154: 0.08037658662 | AA154: 0.08037903452 | AB154: 0.122394774
A155: 0 | B155: 84 | C155: 84 | E155: 12.79754321 | F155: 37.20245679 | I155: 62.79754321 | J155: 0.5 | K155: 21.25 | Q155: 0.05 | U155: 0.5 | W155: -1.515258045 | X155: -1.515268045 | Y155: -1.515248045 | Z155: 0.08200364304 | AA155: 0.0820061347 | AB155: 0.1245829446
A156: 0 | B156: 85 | C156: 85 | E156: 12.5005663 | F156: 37.4994337 | I156: 62.5005663 | J156: 0.51 | K156: 21.5 | Q156: 0.05 | U156: 0.49 | W156: -1.502081889 | X156: -1.502091889 | Y156: -1.502071889 | Z156: 0.08365971246 | AA156: 0.08366224843 | AB156: 0.1267986688
A157: 0 | B157: 86 | C157: 86 | E157: 12.20662082 | F157: 37.79337918 | I157: 62.20662082 | J157: 0.52 | K157: 21.75 | Q157: 0.05 | U157: 0.48 | W157: -1.488905732 | X157: -1.488915732 | Y157: -1.488895732 | Z157: 0.08534515747 | AA157: 0.08534773831 | AB157: 0.1290418754
A158: 0 | B158: 87 | C158: 87 | E158: 11.91557634 | F158: 38.08442366 | I158: 61.91557634 | J158: 0.53 | K158: 22 | Q158: 0.05 | U158: 0.47 | W158: -1.475729575 | X158: -1.475739575 | Y158: -1.475719575 | Z158: 0.08706033963 | AA158: 0.08706296588 | AB158: 0.1313124754
A159: 0 | B159: 88 | C159: 88 | E159: 11.62730899 | F159: 38.37269101 | I159: 61.62730899 | J159: 0.54 | K159: 22.25 | Q159: 0.05 | U159: 0.46 | W159: -1.462553418 | X159: -1.462563418 | Y159: -1.462543418 | Z159: 0.0888056192 | AA159: 0.0888082914 | AB159: 0.1336103622
A160: 0 | B160: 89 | C160: 89 | E160: 11.34170096 | F160: 38.65829904 | I160: 61.34170096 | J160: 0.55 | K160: 22.5 | Q160: 0.05 | U160: 0.45 | W160: -1.449377261 | X160: -1.449387261 | Y160: -1.449367261 | Z160: 0.0905813549 | AA160: 0.0905840736 | AB160: 0.1359354103
A161: 0 | B161: 90 | C161: 90 | E161: 11.05864007 | F161: 38.94135993 | I161: 61.05864007 | J161: 0.56 | K161: 22.75 | Q161: 0.05 | U161: 0.44 | W161: -1.436201104 | X161: -1.436211104 | Y161: -1.436191104 | Z161: 0.09238790368 | AA161: 0.09239066943 | AB161: 0.1382874755
A162: 0 | B162: 91 | C162: 90.5 | E162: 10.77801938 | F162: 39.22198062 | I162: 60.77801938 | J162: 0.57 | K162: 23 | Q162: 0.05 | U162: 0.43 | W162: -1.423024947 | X162: -1.423034947 | Y162: -1.423014947 | Z162: 0.09422562048 | AA162: 0.09422843381 | AB162: 0.140666394
A163: 0 | B163: 92 | C163: 91 | E163: 10.49973682 | F163: 39.50026318 | I163: 60.49973682 | J163: 0.58 | K163: 23.25 | Q163: 0.05 | U163: 0.42 | W163: -1.40984879 | X163: -1.40985879 | Y163: -1.40983879 | Z163: 0.09609485793 | AA163: 0.09609771937 | AB163: 0.1430719821
A164: 0 | B164: 93 | C164: 91.5 | E164: 10.22369485 | F164: 39.77630515 | I164: 60.22369485 | J164: 0.59 | K164: 23.5 | Q164: 0.05 | U164: 0.41 | W164: -1.396672633 | X164: -1.396682633 | Y164: -1.396662633 | Z164: 0.09799596612 | AA164: 0.0979988762 | AB164: 0.1455040359
A165: 0 | B165: 94 | C165: 92 | E165: 9.949800158 | F165: 40.05019984 | I165: 59.94980016 | J165: 0.6 | K165: 23.75 | Q165: 0.05 | U165: 0.4 | W165: -1.383496476 | X165: -1.383506476 | Y165: -1.383486476 | Z165: 0.0999292923 | AA165: 0.09993225155 | AB165: 0.1479623304
A166: 0 | B166: 95 | C166: 92.5 | E166: 9.677963388 | F166: 40.32203661 | I166: 59.67796339 | J166: 0.61 | K166: 24 | Q166: 0.05 | U166: 0.39 | W166: -1.370320319 | X166: -1.370330319 | Y166: -1.370310319 | Z166: 0.1018951806 | AA166: 0.1018981896 | AB166: 0.1504466193
A167: =IF(ISNUMBER(S167),1,0) -> 0 | B167: 96 | C167: 93 | E167: =$B$13*IF($AL$2,NORMSINV(1-J167/2),TINV(J167,$F$13)) -> 9.408098857 | F167: =IF($AK$4,$F$6-E167,NA()) -> 40.59190114 | I167: =IF($AK$4,$F$6+E167,NA()) -> 59.40809886 | J167: 0.62 | K167: 24.25 | Q167: 0.05 | S167: =IF(AND($AK$3,$G$21=ROUND((1-J167)*100,4)),$F$6,NA()) ->  | T167: =IF(AND($AK$3,NOT($AJ$18),$G$21=ROUND((1-J167)*100,4)),0,NA()) ->  | U167: 0.38 | V167: =IF(AND($AK$3,NOT($AJ$18),$G$21=ROUND((1-J167)*100,4)),100,NA()) ->  | W167: -1.357144162 | X167: -1.357154162 | Y167: -1.357134162 | Z167: 0.1038939719 | AA167: 0.103897031 | AB167: 0.1529566348
A168: 0 | B168: 97 | C168: 93.5 | E168: 9.140124328 | F168: 40.85987567 | I168: 59.14012433 | J168: 0.63 | K168: 24.5 | Q168: 0.05 | U168: 0.37 | W168: -1.343968006 | X168: -1.343978006 | Y168: -1.343958006 | Z168: 0.1059260031 | AA168: 0.105929113 | AB168: 0.1554920868
A169: 0 | B169: 98 | C169: 94 | E169: 8.873960785 | F169: 41.12603922 | I169: 58.87396078 | J169: 0.64 | K169: 24.75 | Q169: 0.05 | U169: 0.36 | W169: -1.330791849 | X169: -1.330801849 | Y169: -1.330781849 | Z169: 0.1079916075 | AA169: 0.1079947686 | AB169: 0.1580526623
A170: 0 | B170: 99 | C170: 94.5 | E170: 8.609532222 | F170: 41.39046778 | I170: 58.60953222 | J170: 0.65 | K170: 25 | Q170: 0.05 | U170: 0.35 | W170: -1.317615692 | X170: -1.317625692 | Y170: -1.317605692 | Z170: 0.1100911139 | AA170: 0.1100943267 | AB170: 0.1606380256
A171: 0 | B171: 100 | C171: 95 | E171: 8.346765457 | F171: 41.65323454 | I171: 58.34676546 | J171: 0.66 | K171: 25.25 | Q171: 0.05 | U171: 0.34 | W171: -1.304439535 | X171: -1.304449535 | Y171: -1.304429535 | Z171: 0.1122248465 | AA171: 0.1122281115 | AB171: 0.1632478176
A172: 0 | B172: 101 | C172: 95.2 | E172: 8.085589951 | F172: 41.91441005 | I172: 58.08558995 | J172: 0.67 | K172: 25.5 | Q172: 0.05 | U172: 0.33 | W172: -1.291263378 | X172: -1.291273378 | Y172: -1.291253378 | Z172: 0.1143931248 | AA172: 0.1143964424 | AB172: 0.165881655
A173: 0 | B173: 102 | C173: 95.4 | E173: 7.825937639 | F173: 42.17406236 | I173: 57.82593764 | J173: 0.68 | K173: 25.75 | Q173: 0.05 | U173: 0.32 | W173: -1.278087221 | X173: -1.278097221 | Y173: -1.278077221 | Z173: 0.1165962629 | AA173: 0.1165996337 | AB173: 0.1685391308
A174: 0 | B174: 103 | C174: 95.6 | E174: 7.567742782 | F174: 42.43225722 | I174: 57.56774278 | J174: 0.69 | K174: 26 | Q174: 0.05 | U174: 0.31 | W174: -1.264911064 | X174: -1.264921064 | Y174: -1.264901064 | Z174: 0.1188345694 | AA174: 0.1188379938 | AB174: 0.1712198131
A175: 0 | B175: 104 | C175: 95.8 | E175: 7.310941818 | F175: 42.68905818 | I175: 57.31094182 | J175: 0.7 | K175: 26.25 | Q175: 0.05 | U175: 0.3 | W175: -1.251734907 | X175: -1.251744907 | Y175: -1.251724907 | Z175: 0.1211083472 | AA175: 0.1211118257 | AB175: 0.1739232453
A176: 0 | B176: 105 | C176: 96 | E176: 7.055473226 | F176: 42.94452677 | I176: 57.05547323 | J176: 0.71 | K176: 26.5 | Q176: 0.05 | U176: 0.29 | W176: -1.23855875 | X176: -1.23856875 | Y176: -1.23854875 | Z176: 0.1234178929 | AA176: 0.1234214259 | AB176: 0.1766489453
A177: 0 | B177: 106 | C177: 96.2 | E177: 6.801277404 | F177: 43.1987226 | I177: 56.8012774 | J177: 0.72 | K177: 26.75 | Q177: 0.05 | U177: 0.28 | W177: -1.225382593 | X177: -1.225392593 | Y177: -1.225372593 | Z177: 0.1257634965 | AA177: 0.1257670844 | AB177: 0.1793964059
A178: 0 | B178: 107 | C178: 96.4 | E178: 6.548296549 | F178: 43.45170345 | I178: 56.54829655 | J178: 0.73 | K178: 27 | Q178: 0.05 | U178: 0.27 | W178: -1.212206436 | X178: -1.212216436 | Y178: -1.212196436 | Z178: 0.1281454413 | AA178: 0.1281490847 | AB178: 0.1821650938
A179: 0 | B179: 108 | C179: 96.6 | E179: 6.296474543 | F179: 43.70352546 | I179: 56.29647454 | J179: 0.74 | K179: 27.25 | Q179: 0.05 | U179: 0.26 | W179: -1.199030279 | X179: -1.199040279 | Y179: -1.199020279 | Z179: 0.1305640034 | AA179: 0.1305677025 | AB179: 0.1849544496
A180: 0 | B180: 109 | C180: 96.8 | E180: 6.045756854 | F180: 43.95424315 | I180: 56.04575685 | J180: 0.75 | K180: 27.5 | Q180: 0.05 | U180: 0.25 | W180: -1.185854123 | X180: -1.185864123 | Y180: -1.185844123 | Z180: 0.1330194513 | AA180: 0.1330232065 | AB180: 0.1877638878
A181: 0 | B181: 110 | C181: 97 | E181: 5.796090431 | F181: 44.20390957 | I181: 55.79609043 | J181: 0.76 | K181: 27.75 | Q181: 0.05 | U181: 0.24 | W181: -1.172677966 | X181: -1.172687966 | Y181: -1.172667966 | Z181: 0.1355120455 | AA181: 0.1355158573 | AB181: 0.1905927963
A182: 0 | B182: 111 | C182: 97.2 | E182: 5.547423616 | F182: 44.45257638 | I182: 55.54742362 | J182: 0.77 | K182: 28 | Q182: 0.05 | U182: 0.23 | W182: -1.159501809 | X182: -1.159511809 | Y182: -1.159491809 | Z182: 0.1380420384 | AA182: 0.1380459072 | AB182: 0.1934405362
A183: 0 | B183: 112 | C183: 97.4 | E183: 5.299706056 | F183: 44.70029394 | I183: 55.29970606 | J183: 0.78 | K183: 28.25 | Q183: 0.05 | U183: 0.22 | W183: -1.146325652 | X183: -1.146335652 | Y183: -1.146315652 | Z183: 0.1406096738 | AA183: 0.1406136 | AB183: 0.1963064418
A184: 0 | B184: 113 | C184: 97.6 | E184: 5.052888617 | F184: 44.94711138 | I184: 55.05288862 | J184: 0.79 | K184: 28.5 | Q184: 0.05 | U184: 0.21 | W184: -1.133149495 | X184: -1.133159495 | Y184: -1.133139495 | Z184: 0.1432151866 | AA184: 0.1432191704 | AB184: 0.1991898204
A185: 0 | B185: 114 | C185: 97.8 | E185: 4.806923307 | F185: 45.19307669 | I185: 54.80692331 | J185: 0.8 | K185: 28.75 | Q185: 0.05 | U185: 0.2 | W185: -1.119973338 | X185: -1.119983338 | Y185: -1.119963338 | Z185: 0.1458588022 | AA185: 0.145862844 | AB185: 0.202089952
A186: 0 | B186: 115 | C186: 98 | E186: 4.561763203 | F186: 45.4382368 | I186: 54.5617632 | J186: 0.81 | K186: 29 | Q186: 0.05 | U186: 0.19 | W186: -1.106797181 | X186: -1.106807181 | Y186: -1.106787181 | Z186: 0.1485407366 | AA186: 0.1485448367 | AB186: 0.2050060896
A187: 0 | B187: 116 | C187: 98.1 | E187: 4.317362378 | F187: 45.68263762 | I187: 54.31736238 | J187: 0.82 | K187: 29.25 | Q187: 0.05 | U187: 0.18 | W187: -1.093621024 | X187: -1.093631024 | Y187: -1.093611024 | Z187: 0.1512611955 | AA187: 0.1512653542 | AB187: 0.2079374588
A188: 0 | B188: 117 | C188: 98.2 | E188: 4.073675833 | F188: 45.92632417 | I188: 54.07367583 | J188: 0.83 | K188: 29.5 | Q188: 0.05 | U188: 0.17 | W188: -1.080444867 | X188: -1.080454867 | Y188: -1.080434867 | Z188: 0.1540203744 | AA188: 0.154024592 | AB188: 0.2108832579
A189: 0 | B189: 118 | C189: 98.3 | E189: 3.830659433 | F189: 46.16934057 | I189: 53.83065943 | J189: 0.84 | K189: 29.75 | Q189: 0.05 | U189: 0.16 | W189: -1.06726871 | X189: -1.06727871 | Y189: -1.06725871 | Z189: 0.156818458 | AA189: 0.1568227348 | AB189: 0.2138426581
A190: 0 | B190: 119 | C190: 98.4 | E190: 3.588269847 | F190: 46.41173015 | I190: 53.58826985 | J190: 0.85 | K190: 30 | Q190: 0.05 | U190: 0.15 | W190: -1.054092553 | X190: -1.054102553 | Y190: -1.054082553 | Z190: 0.1596556199 | AA190: 0.1596599562 | AB190: 0.2168148028
A191: 0 | B191: 120 | C191: 98.5 | E191: 3.346464487 | F191: 46.65353551 | I191: 53.34646449 | J191: 0.86 | K191: 30.25 | Q191: 0.05 | U191: 0.14 | W191: -1.040916396 | X191: -1.040926396 | Y191: -1.040906396 | Z191: 0.1625320223 | AA191: 0.1625364182 | AB191: 0.2197988095
A192: 0 | B192: 121 | C192: 98.6 | E192: 3.105201449 | F192: 46.89479855 | I192: 53.10520145 | J192: 0.87 | K192: 30.5 | Q192: 0.05 | U192: 0.13 | W192: -1.02774024 | X192: -1.02775024 | Y192: -1.02773024 | Z192: 0.1654478154 | AA192: 0.1654522713 | AB192: 0.2227937674
A193: 0 | B193: 122 | C193: 98.7 | E193: 2.864439465 | F193: 47.13556053 | I193: 52.86443947 | J193: 0.88 | K193: 30.75 | Q193: 0.05 | U193: 0.12 | W193: -1.014564083 | X193: -1.014574083 | Y193: -1.014554083 | Z193: 0.1684031375 | AA193: 0.1684076535 | AB193: 0.2257987392
A194: 0 | B194: 123 | C194: 98.8 | E194: 2.624137843 | F194: 47.37586216 | I194: 52.62413784 | J194: 0.89 | K194: 31 | Q194: 0.05 | U194: 0.11 | W194: -1.001387926 | X194: -1.001397926 | Y194: -1.001377926 | Z194: 0.1713981142 | AA194: 0.1714026905 | AB194: 0.2288127611
A195: 0 | B195: 124 | C195: 98.9 | E195: 2.384256419 | F195: 47.61574358 | I195: 52.38425642 | J195: 0.9 | K195: 31.25 | Q195: 0.05 | U195: 0.1 | W195: -0.9882117688 | X195: -0.9882217688 | Y195: -0.9882017688 | Z195: 0.1744328583 | AA195: 0.174437495 | AB195: 0.2318348425
A196: 0 | B196: 125 | C196: 99 | E196: 2.144755511 | F196: 47.85524449 | I196: 52.14475551 | J196: 0.91 | K196: 31.5 | Q196: 0.05 | U196: 0.09 | W196: -0.9750356119 | X196: -0.9750456119 | Y196: -0.9750256119 | Z196: 0.1775074692 | AA196: 0.1775121665 | AB196: 0.2348639669
A197: 0 | B197: 126 | C197: 99.1 | E197: 1.905595864 | F197: 48.09440414 | I197: 51.90559586 | J197: 0.92 | K197: 31.75 | Q197: 0.05 | U197: 0.08 | W197: -0.961859455 | X197: -0.961869455 | Y197: -0.961849455 | Z197: 0.1806220329 | AA197: 0.1806267909 | AB197: 0.2378990917
A198: 0 | B198: 127 | C198: 99.2 | E198: 1.666738611 | F198: 48.33326139 | I198: 51.66673861 | J198: 0.93 | K198: 32 | L198: =IF($AJ$18,$AJ$17+$AJ$16*IF($AL$2,NORMDIST(K198,$F$6,$B$13,FALSE),AB198/$B$13),NA()) ->  | M198: =IF($AJ$18,$AJ$17-$AJ$16*IF($AL$2,NORMDIST(K198,$F$6,$B$13,FALSE),AB198/$B$13),NA()) ->  | N198: =IF(ISNUMBER(L198),IF(AND(K198>=$AL$7,K198<=$AL$8),L198,NA()),NA()) ->  | O198: =IF(ISNUMBER(M198),IF(AND(K198>=$AL$7,K198<=$AL$8),M198,NA()),NA()) ->  | P198: =IF(ISNUMBER(L198),IF(AND(K198>=$AL$7,K198<=$AL$8),K198,NA()),NA()) ->  | Q198: =$AJ$17 -> 0.05 | R198: =N198-$AJ$17 ->  | U198: 0.07 | W198: =(K198-$F$6)/$B$13 -> -0.9486832981 | X198: =W198-$Y$68 -> -0.9486932981 | Y198: =W198+$Y$68 -> -0.9486732981 | Z198: =IF(X198<0,TDIST(-X198,$F$13,1),1-TDIST(X198,$F$13,1)) -> 0.1837766216 | AA198: =IF(Y198<0,TDIST(-Y198,$F$13,1),1-TDIST(Y198,$F$13,1)) -> 0.1837814404 | AB198: =(AA198-Z198)/(2*$Y$68) -> 0.2409391489
A199: =IF(ISNUMBER(S199),1,0) -> 0 | B199: 128 | C199: 99.3 | E199: =$B$13*IF($AL$2,NORMSINV(1-J199/2),TINV(J199,$F$13)) -> 1.42814522 | F199: =IF($AK$4,$F$6-E199,NA()) -> 48.57185478 | I199: =IF($AK$4,$F$6+E199,NA()) -> 51.42814522 | J199: 0.94 | K199: =K198+$AL$15 -> 32.25 | Q199: 0.05 | S199: =IF(AND($AK$3,$G$21=ROUND((1-J199)*100,4)),$F$6,NA()) ->  | T199: =IF(AND($AK$3,NOT($AJ$18),$G$21=ROUND((1-J199)*100,4)),0,NA()) ->  | U199: 0.06 | V199: =IF(AND($AK$3,NOT($AJ$18),$G$21=ROUND((1-J199)*100,4)),100,NA()) ->  | W199: -0.9355071411 | X199: -0.9355171411 | Y199: -0.9354971411 | Z199: 0.186971293 | AA199: 0.1869761727 | AB199: 0.2439830452
A200: 0 | B200: 129 | C200: 99.4 | E200: 1.189777458 | F200: 48.81022254 | I200: 51.18977746 | J200: 0.95 | K200: 32.5 | Q200: 0.05 | U200: 0.05 | W200: -0.9223309842 | X200: -0.9223409842 | Y200: -0.9223209842 | Z200: 0.1902060904 | AA200: 0.190211031 | AB200: 0.2470296624
A201: 0 | B201: 130 | C201: 99.5 | E201: 0.9515973394 | F201: 49.04840266 | I201: 50.95159734 | J201: 0.96 | K201: 32.75 | Q201: 0.05 | U201: 0.04 | W201: -0.9091548273 | X201: -0.9091648273 | Y201: -0.9091448273 | Z201: 0.1934810422 | AA201: 0.1934860438 | AB201: 0.2500778583
A202: 0 | B202: 131 | C202: 99.6 | E202: 0.7135670875 | F202: 49.28643291 | I202: 50.71356709 | J202: 0.97 | K202: 33 | Q202: 0.05 | U202: 0.03 | W202: -0.8959786704 | X202: -0.8959886704 | Y202: -0.8959686704 | Z202: 0.1967961615 | AA202: 0.196801224 | AB202: 0.2531264667
A203: 0 | B203: 132 | C203: 99.7 | E203: 0.4756490913 | F203: 49.52435091 | I203: 50.47564909 | J203: 0.98 | K203: 33.25 | Q203: 0.05 | U203: 0.02 | W203: -0.8828025135 | X203: -0.8828125135 | Y203: -0.8827925135 | Z203: 0.2001514459 | AA203: 0.2001565694 | AB203: 0.2561742984
A204: 0 | B204: 133 | C204: 99.8 | E204: 0.2378058638 | F204: 49.76219414 | I204: 50.23780586 | J204: 0.99 | K204: 33.5 | Q204: 0.05 | U204: 0.01 | W204: -0.8696263565 | X204: -0.8696363565 | Y204: -0.8696163565 | Z204: 0.2035468773 | AA204: 0.2035520617 | AB204: 0.2592201413
A205: 0 | B205: 134 | C205: 99.9 | E205: -2.641395446e-15 | F205: 50 | I205: 50 | J205: 1 | K205: 33.75 | Q205: 0.05 | U205: 0 | W205: -0.8564501996 | X205: -0.8564601996 | Y205: -0.8564401996 | Z205: 0.2069824214 | AA205: 0.2069876667 | AB205: 0.2622627614
K206: 34 | Q206: 0.05 | W206: -0.8432740427 | X206: -0.8432840427 | Y206: -0.8432640427 | Z206: 0.2104580275 | AA206: 0.2104633335 | AB206: 0.2653009035
K207: 34.25 | Q207: 0.05 | W207: -0.8300978858 | X207: -0.8301078858 | Y207: -0.8300878858 | Z207: 0.2139736281 | AA207: 0.2139789948 | AB207: 0.2683332917
K208: 34.5 | Q208: 0.05 | W208: -0.8169217289 | X208: -0.8169317289 | Y208: -0.8169117289 | Z208: 0.217529139 | AA208: 0.2175345662 | AB208: 0.2713586301
K209: 34.75 | Q209: 0.05 | W209: -0.803745572 | X209: -0.803755572 | Y209: -0.803735572 | Z209: 0.2211244587 | AA209: 0.2211299462 | AB209: 0.2743756041
K210: 35 | Q210: 0.05 | W210: -0.790569415 | X210: -0.790579415 | Y210: -0.790559415 | Z210: 0.2247594682 | AA210: 0.2247650159 | AB210: 0.2773828807
K211: 35.25 | Q211: 0.05 | W211: -0.7773932581 | X211: -0.7774032581 | Y211: -0.7773832581 | Z211: 0.2284340309 | AA211: 0.2284396385 | AB211: 0.2803791097
K212: 35.5 | Q212: 0.05 | W212: -0.7642171012 | X212: -0.7642271012 | Y212: -0.7642071012 | Z212: 0.2321479922 | AA212: 0.2321536595 | AB212: 0.2833629245
K213: 35.75 | Q213: 0.05 | W213: -0.7510409443 | X213: -0.7510509443 | Y213: -0.7510309443 | Z213: 0.2359011795 | AA213: 0.2359069061 | AB213: 0.2863329432
K214: 36 | Q214: 0.05 | W214: -0.7378647874 | X214: -0.7378747874 | Y214: -0.7378547874 | Z214: 0.2396934018 | AA214: 0.2396991876 | AB214: 0.2892877696
K215: 36.25 | Q215: 0.05 | W215: -0.7246886305 | X215: -0.7246986305 | Y215: -0.7246786305 | Z215: 0.2435244497 | AA215: 0.2435302943 | AB215: 0.2922259939
K216: 36.5 | Q216: 0.05 | W216: -0.7115124735 | X216: -0.7115224735 | Y216: -0.7115024735 | Z216: 0.2473940952 | AA216: 0.2473999981 | AB216: 0.2951461946
K217: 36.75 | Q217: 0.05 | W217: -0.6983363166 | X217: -0.6983463166 | Y217: -0.6983263166 | Z217: 0.2513020912 | AA217: 0.2513080522 | AB217: 0.2980469386
K218: 37 | Q218: 0.05 | W218: -0.6851601597 | X218: -0.6851701597 | Y218: -0.6851501597 | Z218: 0.255248172 | AA218: 0.2552541906 | AB218: 0.3009267832
K219: 37.25 | Q219: 0.05 | W219: -0.6719840028 | X219: -0.6719940028 | Y219: -0.6719740028 | Z219: 0.2592320527 | AA219: 0.2592381284 | AB219: 0.3037842771
K220: 37.5 | Q220: 0.05 | W220: -0.6588078459 | X220: -0.6588178459 | Y220: -0.6587978459 | Z220: 0.2632534292 | AA220: 0.2632595615 | AB220: 0.3066179613
K221: 37.75 | Q221: 0.05 | W221: -0.645631689 | X221: -0.645641689 | Y221: -0.645621689 | Z221: 0.267311978 | AA221: 0.2673181666 | AB221: 0.3094263709
K222: 38 | Q222: 0.05 | W222: -0.632455532 | X222: -0.632465532 | Y222: -0.632445532 | Z222: 0.2714073566 | AA222: 0.2714136008 | AB222: 0.3122080358
K223: 38.25 | Q223: 0.05 | W223: -0.6192793751 | X223: -0.6192893751 | Y223: -0.6192693751 | Z223: 0.2755392029 | AA223: 0.2755455021 | AB223: 0.3149614828
K224: 38.5 | Q224: 0.05 | W224: -0.6061032182 | X224: -0.6061132182 | Y224: -0.6060932182 | Z224: 0.2797071353 | AA224: 0.279713489 | AB224: 0.3176852361
K225: 38.75 | Q225: 0.05 | W225: -0.5929270613 | X225: -0.5929370613 | Y225: -0.5929170613 | Z225: 0.2839107529 | AA225: 0.2839171604 | AB225: 0.3203778195
K226: 39 | Q226: 0.05 | W226: -0.5797509044 | X226: -0.5797609044 | Y226: -0.5797409044 | Z226: 0.2881496352 | AA226: 0.288156096 | AB226: 0.3230377573
K227: 39.25 | Q227: 0.05 | W227: -0.5665747474 | X227: -0.5665847474 | Y227: -0.5665647474 | Z227: 0.2924233425 | AA227: 0.2924298558 | AB227: 0.325663576
K228: 39.5 | Q228: 0.05 | W228: -0.5533985905 | X228: -0.5534085905 | Y228: -0.5533885905 | Z228: 0.2967314155 | AA228: 0.2967379806 | AB228: 0.3282538054
K229: 39.75 | Q229: 0.05 | W229: -0.5402224336 | X229: -0.5402324336 | Y229: -0.5402124336 | Z229: 0.3010733756 | AA229: 0.3010799918 | AB229: 0.3308069808
K230: 40 | Q230: 0.05 | W230: -0.5270462767 | X230: -0.5270562767 | Y230: -0.5270362767 | Z230: 0.3054487251 | AA230: 0.3054553915 | AB230: 0.3333216437
K231: 40.25 | Q231: 0.05 | W231: -0.5138701198 | X231: -0.5138801198 | Y231: -0.5138601198 | Z231: 0.3098569468 | AA231: 0.3098636627 | AB231: 0.3357963439
K232: 40.5 | Q232: 0.05 | W232: -0.5006939629 | X232: -0.5007039629 | Y232: -0.5006839629 | Z232: 0.3142975048 | AA232: 0.3143042694 | AB232: 0.3382296405
... 238 more rows

Sheet CI and p
C1: CI and p | K1: =$V$1 -> 2.233e-07 | L1: 2.233e-07 | M1: 2.233e-07 | N1: 2.233e-07 | O1: 2.233e-07 | P1: 2.233e-07 | Q1: 2.233e-07 | R1: 2.233e-07 | S1: 2.233e-07 | T1: 2.233e-07 | U1: 2.233e-07 | V1: =($F$24+$H$9)/100000000 -> 2.233e-07 | W1: =$V$1 -> 2.233e-07 | X1: =$V$1 -> 2.233e-07 | Y1: =$V$1 -> 2.233e-07 | AG1: =O6 -> 2.09302405
C2: See the two-tail p value for a | K2: =$V$1 -> 2.233e-07 | N2: Display t CI? | O2: FALSE | P2: C | Q2: 95 | S2: t | T2: t axis | Y2: =$V$1 -> 2.233e-07 | AF2: z axis | AI2: Vertical axis, small ticks
C3: 95% CI that is positioned where | K3: 2.233e-07 | M3: Main point z | N3: 2 | O3: =-H9 -> -2.33 | P3: For labels | S3: 3 | T3: =IF($O$2,3,NA()) ->  | Y3: 2.233e-07 | AF3: 2.99 | AG3: =$O$3+AH3 -> 4.67 | AH3: 7 | AI3: =$AF$3 -> 2.99 | AJ3: =$O$3+AK3 -> 4.67 | AK3: 7 | AL3: z | AM3: p value axis | AP3: p value axis
C4: you choose in relation to a | K4: 2.233e-07 | M4: Main point t | N4: 4 | O4: =IF($O$2,-H9,NA()) ->  | P4: 1 | Q4: -1 | S4: =$S$3 -> 3 | T4: =IF($O$2,2,NA()) ->  | Y4: 2.233e-07 | AF4: =$AF$3 -> 2.99 | AG4: 3.67 | AH4: 6 | AI4: 2.99 | AJ4: 4.47 | AK4: 6.8 | AL4: =IF($T$12,1,NA()) ->  | AM4: =$O$3+NORMSINV(1-AN4/2) -> 0.9605267315 | AN4: 0.001 | AO4: =IF(AND($T$12,$O$2),5,NA()) ->  | AP4: =$O$3+TINV(AN4,$F$25) -> 1.553405852
C5: null hypothesised value m0 | K5: 2.233e-07 | N5: Bar s known | O5: =NORMSINV(0.5+Q2/200) -> 1.959963985 | P5: 5 | Q5: =IF($O$2,-1,NA()) ->  | S5: =$S$3 -> 3 | T5: =IF($O$2,1,NA()) ->  | Y5: 2.233e-07 | AF5: 2.99 | AG5: 2.67 | AH5: 5 | AI5: 2.99 | AJ5: 4.27 | AK5: 6.6 | AL5: =$AL$4 ->  | AM5: 0.4770337683 | AN5: 0.005 | AO5: =$AO$4 ->  | AP5: 0.8437245303
K6: 2.233e-07 | N6: Bar s not known | O6: =TINV(1-Q2/100,F25) -> 2.09302405 | Q6: For b'marks | R6: FALSE | S6: =$S$3 -> 3 | T6: =IF($O$2,0,NA()) ->  | Y6: 2.233e-07 | AF6: 2.99 | AG6: 1.67 | AH6: 4 | AI6: 2.99 | AJ6: 4.07 | AK6: 6.4 | AM6: 0.2458293035 | AN6: 0.01 | AP6: 0.530934604
A7: 1 | B7: Null hypothesised value m0 | K7: 2.233e-07 | M7: For slider | N7: 583 | P7: 0.1 | Q7: 5.9 | R7: 0.1 | S7: =$S$3 -> 3 | T7: =IF($O$2,-1,NA()) ->  | Y7: 2.233e-07 | AF7: 2.99 | AG7: 0.67 | AH7: 3 | AI7: 2.99 | AJ7: 3.87 | AK7: 6.2 | AM7: -0.0885972724 | AN7: 0.025 | AP7: 0.1034402084
K8: 2.233e-07 | M8: 0 | N8: 0 | O8: Pts for z | R8: 0.035 | S8: =$S$3 -> 3 | T8: =IF($O$2,-2,NA()) ->  | Y8: 2.233e-07 | AF8: 2.99 | AG8: -0.33 | AH8: 2 | AI8: 2.99 | AJ8: 3.67 | AK8: 6 | AM8: -0.3700360155 | AN8: 0.05 | AP8: -0.2369759501
G9: Choose m0 | H9: =-(350-N7)/100 -> 2.33 | K9: 2.233e-07 | M9: 3 | N9: 0 | P9: Points for t | R9: 0.25 | Y9: 2.233e-07 | AF9: 2.99 | AG9: -1.33 | AH9: 1 | AI9: 2.99 | AJ9: 3.47 | AK9: 5.8 | AM9: -0.685146373 | AN9: 0.1 | AP9: -0.6008672075
A10: 2 | B10: Display p value | K10: 2.233e-07 | M10: =IF($T$13,1.4,NA()) -> 1.4 | N10: =-H9+R9 -> -2.08 | P10: =M9 -> 3 | Q10: =IF($O$2,0,NA()) ->  | Y10: 2.233e-07 | AF10: 2.99 | AG10: -2.33 | AH10: 0 | AI10: 2.99 | AJ10: 3.27 | AK10: 5.6 | AM10: -1.048448434 | AN10: 0.2 | AP10: -1.002271791
K11: 2.233e-07 | M11: =M10 -> 1.4 | N11: =-H9+2*R9 -> -1.83 | O11: =1-2*(NORMSDIST(ABS(H9))-0.5) -> 0.01980615112 | P11: 6 | Q11: =IF($O$2,0,NA()) ->  | Y11: 2.233e-07 | AF11: 2.99 | AG11: -3.33 | AH11: -1 | AI11: 2.99 | AJ11: 3.07 | AK11: 5.4 | AM11: -1.293566611 | AN11: 0.3 | AP11: -1.264492601
B12: Display p scale | K12: 2.233e-07 | M12: 2.5 | N12: =N10 -> -2.08 | O12: =H9 -> 2.33 | P12: 4.6 | Q12: =IF(AND($T$13,$O$2),-H9+R9,NA()) ->  | R12: =TDIST(ABS(H9),F25,2) -> 0.03098332583 | S12: p scale? | T12: FALSE | Y12: 2.233e-07 | AF12: 2.99 | AG12: -4.33 | AH12: -2 | AI12: 2.99 | AJ12: 2.87 | AK12: 5.2 | AM12: -1.488378766 | AN12: 0.4 | AP12: -1.46904945
K13: 2.233e-07 | M13: =M12 -> 2.5 | N13: =N11 -> -1.83 | P13: =P12 -> 4.6 | Q13: =IF(AND($T$13,$O$2),-H9+2*R9,NA()) ->  | R13: =TINV(0.05,F25) -> 2.09302405 | S13: p vals? | T13: TRUE | Y13: 2.233e-07 | AF13: 2.99 | AG13: -5.33 | AH13: -3 | AI13: 2.99 | AJ13: 2.67 | AK13: 5 | AM13: -1.65551025 | AN13: 0.5 | AP13: -1.64237854
K14: 2.233e-07 | M14: p value label | Q14: benchmarks | Y14: 2.233e-07 | AF14: 2.99 | AG14: -6.33 | AH14: -4 | AI14: 2.99 | AJ14: 2.47 | AK14: 4.8 | AM14: -1.805599487 | AN14: 0.6 | AP14: -1.796686118
A15: 3 | B15: Benchmarks | K15: 2.233e-07 | M15: =IF(T12,0.75,NA()) ->  | N15: =-H9 -> -2.33 | O15: =P15+U15-$O$23 ->  | P15: =IF($R$6,3,NA()) ->  | Q15: =P7 -> 0.1 | R15: =IF($R$6,-$H$9,NA()) ->  | S15: =NORMSINV(0.75) -> 0.6744897502 | T15: =S15-$H$9 -> -1.65551025 | U15: =Q15-3+$R$8 -> -2.865 | Y15: 2.233e-07 | AF15: 2.99 | AG15: -7.33 | AH15: -5 | AI15: 2.99 | AJ15: 2.27 | AK15: 4.6 | AM15: -1.944679534 | AN15: 0.7 | AP15: -1.938797574
K16: 2.233e-07 | M16: =IF(AND(O2,T12),5.25,NA()) ->  | N16: =-H9 -> -2.33 | O16: =P16+U16-$O$23 ->  | P16: =IF($R$6,3,NA()) ->  | Q16: =Q15+$R$7 -> 0.2 | R16: =IF($R$6,-$H$9,NA()) ->  | S16: =NORMSINV(0.95) -> 1.644853627 | T16: -0.685146373 | U16: =Q16-3+$R$8 -> -2.765 | Y16: 2.233e-07 | AF16: 2.99 | AG16: -8.33 | AH16: -6 | AI16: 2.99 | AJ16: 2.07 | AK16: 4.4 | AM16: -2.076652897 | AN16: 0.8 | AP16: -2.07307718
B17: Display benchmarks | K17: 2.233e-07 | M17: z label | O17: =P17+U17-$O$23 ->  | P17: =IF($R$6,3,NA()) ->  | Q17: =Q16+$R$7 -> 0.3 | R17: =IF($R$6,-$H$9,NA()) ->  | S17: =NORMSINV(0.995) -> 2.575829304 | T17: 0.2458293035 | U17: =Q17-3+$R$8 -> -2.665 | Y17: 2.233e-07 | AF17: 2.99 | AG17: -9.33 | AH17: -7 | AI17: 2.99 | AJ17: 1.87 | AK17: 4.2 | AM17: -2.204338653 | AN17: 0.9 | AP17: -2.202648017
K18: 2.233e-07 | M18: 2.8 | N18: 4 | O18: =P18+U18-$O$23 ->  | P18: =IF($R$6,3,NA()) ->  | Q18: =Q17+$R$7 -> 0.4 | R18: =IF($R$6,-$H$9,NA()) ->  | S18: =NORMSINV(0.9995) -> 3.290526731 | T18: 0.9605267315 | U18: =Q18-3+$R$8 -> -2.565 | Y18: 2.233e-07 | AI18: 2.99 | AJ18: 1.67 | AK18: 4 | AM18: -2.33 | AN18: 1 | AP18: -2.329999958
K19: 2.233e-07 | M19: t label | O19: =P19+U19+$O$24 ->  | P19: =IF(AND($O$2,$R$6),3,NA()) ->  | Q19: =Q20-$R$7 -> 5.6 | R19: =IF(AND($O$2,$R$6),-$H$9,NA()) ->  | S19: =TINV(0.001,F25) -> 3.883405852 | T19: 1.553405852 | U19: =Q19-3-$R$8 -> 2.565 | Y19: 2.233e-07 | AF19: t axis | AI19: 2.99 | AJ19: 1.47 | AK19: 3.8 | AM19: =$O$3-NORMSINV(1-AN19/2) -> -2.455661347 | AN19: =AN17 -> 0.9 | AP19: =$O$3-TINV(AN19,$F$25) -> -2.457351983
A20: 4 | B20: If s not known | K20: 2.233e-07 | M20: =IF(O2,3.2,NA()) ->  | N20: 4 | O20: =P20+U20+$O$24 ->  | P20: =IF(AND($O$2,$R$6),3,NA()) ->  | Q20: =Q21-$R$7 -> 5.7 | R20: =IF(AND($O$2,$R$6),-$H$9,NA()) ->  | S20: =TINV(0.01,F25) -> 2.860934604 | T20: 0.530934604 | U20: =Q20-3-$R$8 -> 2.665 | Y20: 2.233e-07 | AF20: =$AF$3 -> 2.99 | AG20: =IF($O$2,AG3,NA()) ->  | AI20: 2.99 | AJ20: 1.27 | AK20: 3.6 | AM20: -2.583347103 | AN20: =AN16 -> 0.8 | AP20: -2.58692282
K21: 2.233e-07 | O21: =P21+U21+$O$24 ->  | P21: =IF(AND($O$2,$R$6),3,NA()) ->  | Q21: =Q22-$R$7 -> 5.8 | R21: =IF(AND($O$2,$R$6),-$H$9,NA()) ->  | S21: =TINV(0.1,F25) -> 1.729132792 | T21: -0.6008672075 | U21: =Q21-3-$R$8 -> 2.765 | Y21: 2.233e-07 | AF21: 2.99 | AI21: 2.99 | AJ21: 1.07 | AK21: 3.4 | AM21: -2.715320466 | AN21: =AN15 -> 0.7 | AP21: -2.721202426
B22: Display t-based CI | K22: 2.233e-07 | O22: =P22+U22+$O$24 ->  | P22: =IF(AND($O$2,$R$6),3,NA()) ->  | Q22: =Q7 -> 5.9 | R22: =IF(AND($O$2,$R$6),-$H$9,NA()) ->  | S22: =TINV(0.5,F25) -> 0.6876214603 | T22: -1.64237854 | U22: =Q22-3-$R$8 -> 2.865 | Y22: 2.233e-07 | AF22: 2.99 | AI22: 2.99 | AJ22: 0.87 | AK22: 3.2 | AM22: -2.854400513 | AN22: =AN14 -> 0.6 | AP22: -2.863313882
K23: 2.233e-07 | O23: 0.03 | Y23: 2.233e-07 | AF23: 2.99 | AI23: 2.99 | AJ23: 0.67 | AK23: 3 | AM23: -3.00448975 | AN23: =AN13 -> 0.5 | AP23: -3.01762146
E24: Sample size N | F24: 20 | K24: 2.233e-07 | O24: 0.05 | Y24: 2.233e-07 | AF24: 2.99 | AI24: 2.99 | AJ24: 0.47 | AK24: 2.8 | AM24: -3.171621234 | AN24: =AN12 -> 0.4 | AP24: -3.19095055
E25: df | F25: =F24-1 -> 19 | K25: 2.233e-07 | M25: Labels | N25: 0.2 | Y25: 2.233e-07 | AF25: 2.99 | AI25: 2.99 | AJ25: 0.27 | AK25: 2.6 | AM25: -3.366433389 | AN25: =AN11 -> 0.3 | AP25: -3.395507399
K26: 2.233e-07 | M26: z | N26: =N3-N25 -> 1.8 | O26: =CIoL-N25 -> -2.53 | Y26: 2.233e-07 | AF26: 2.99 | AI26: 2.99 | AJ26: 0.07 | AK26: 2.4 | AM26: -3.611551566 | AN26: =AN10 -> 0.2 | AP26: -3.657728209
K27: 2.233e-07 | M27: t | N27: =N4-N25 -> 3.8 | O27: =IF($O$2,-H9-N25,NA()) ->  | Y27: 2.233e-07 | AF27: 2.99 | AI27: 2.99 | AJ27: -0.13 | AK27: 2.2 | AM27: -3.974853627 | AN27: =AN9 -> 0.1 | AP27: -4.059132792
K28: 2.233e-07 | Y28: 2.233e-07 | AF28: 2.99 | AI28: 2.99 | AJ28: -0.33 | AK28: 2 | AM28: -4.289963985 | AN28: =AN8 -> 0.05 | AP28: -4.42302405
K29: 2.233e-07 | Y29: 2.233e-07 | AF29: 2.99 | AI29: 2.99 | AJ29: -0.53 | AK29: 1.8 | AM29: -4.571402728 | AN29: =AN7 -> 0.025 | AP29: -4.763440208
K30: 2.233e-07 | Y30: 2.233e-07 | AF30: 2.99 | AI30: 2.99 | AJ30: -0.73 | AK30: 1.6 | AM30: -4.905829304 | AN30: =AN6 -> 0.01 | AP30: -5.190934604
K31: 2.233e-07 | Y31: 2.233e-07 | AF31: 2.99 | AI31: 2.99 | AJ31: -0.93 | AK31: 1.4 | AM31: -5.137033768 | AN31: =AN5 -> 0.005 | AP31: -5.50372453
K32: 2.233e-07 | Y32: 2.233e-07 | AF32: 2.99 | AI32: 2.99 | AJ32: -1.13 | AK32: 1.2 | AM32: -5.620526731 | AN32: =AN4 -> 0.001 | AP32: -6.213405852
K33: 2.233e-07 | Y33: 2.233e-07 | AF33: 2.99 | AI33: 2.99 | AJ33: -1.33 | AK33: 1
K34: 2.233e-07 | Y34: 2.233e-07 | AF34: 2.99 | AI34: 2.99 | AJ34: -1.53 | AK34: 0.8
K35: 2.233e-07 | Y35: 2.233e-07 | AI35: =$AF$3 -> 2.99 | AJ35: =$O$3+AK35 -> -1.73 | AK35: 0.6
K36: 2.233e-07 | Y36: 2.233e-07 | AI36: 2.99 | AJ36: -1.93 | AK36: 0.4
K37: 2.233e-07 | Y37: 2.233e-07 | AI37: 2.99 | AJ37: -2.13 | AK37: 0.2
K38: 2.233e-07 | Y38: 2.233e-07 | AI38: 2.99 | AJ38: -2.33 | AK38: -9.769962617e-15
AI39: 2.99 | AJ39: -2.53 | AK39: -0.2
AI40: 2.99 | AJ40: -2.73 | AK40: -0.4
AI41: 2.99 | AJ41: -2.93 | AK41: -0.6
AI42: 2.99 | AJ42: -3.13 | AK42: -0.8
AI43: 2.99 | AJ43: -3.33 | AK43: -1
AI44: 2.99 | AJ44: -3.53 | AK44: -1.2
AI45: 2.99 | AJ45: -3.73 | AK45: -1.4
AI46: 2.99 | AJ46: -3.93 | AK46: -1.6
AI47: 2.99 | AJ47: -4.13 | AK47: -1.8
AI48: 2.99 | AJ48: -4.33 | AK48: -2
AI49: 2.99 | AJ49: -4.53 | AK49: -2.2
AI50: 2.99 | AJ50: -4.73 | AK50: -2.4
AI51: 2.99 | AJ51: -4.93 | AK51: -2.6
AI52: 2.99 | AJ52: -5.13 | AK52: -2.8
AI53: 2.99 | AJ53: -5.33 | AK53: -3
AI54: 2.99 | AJ54: -5.53 | AK54: -3.2
AI55: 2.99 | AJ55: -5.73 | AK55: -3.4
AI56: 2.99 | AJ56: -5.93 | AK56: -3.6
AI57: 2.99 | AJ57: -6.13 | AK57: -3.8
AI58: 2.99 | AJ58: -6.33 | AK58: -4
AI59: 2.99 | AJ59: -6.53 | AK59: -4.2
AI60: 2.99 | AJ60: -6.73 | AK60: -4.4
AI61: 2.99 | AJ61: -6.93 | AK61: -4.6
AI62: 2.99 | AJ62: -7.13 | AK62: -4.8
AI63: 2.99 | AJ63: -7.33 | AK63: -5
AI64: 2.99 | AJ64: -7.53 | AK64: -5.2
AI65: 2.99 | AJ65: -7.73 | AK65: -5.4
AI66: 2.99 | AJ66: -7.93 | AK66: -5.6
AI67: =$AF$3 -> 2.99 | AJ67: =$O$3+AK67 -> -8.13 | AK67: -5.8
AI68: 2.99 | AJ68: -8.33 | AK68: -6
AI69: 2.99 | AJ69: -8.53 | AK69: -6.2
AI70: 2.99 | AJ70: -8.73 | AK70: -6.4
AI71: 2.99 | AJ71: -8.93 | AK71: -6.6
AI72: 2.99 | AJ72: -9.13 | AK72: -6.8
AI73: 2.99 | AJ73: -9.33 | AK73: -7
